Period,Unique Record Identifier,Account,Account Code Description,Supplier Name,Amount ,
201906,2.01906E+11,R3740,disclosure of information would breach the Data Protection Act 1998,disclosure of information would breach the Data Protection Act 1998,535.5,
201906,2.01906E+11,R3740,disclosure of information would breach the Data Protection Act 1998,disclosure of information would breach the Data Protection Act 1998,550.8,
201906,2.01906E+11,R2600,Rent,Reed Rains,750,
201906,2.01906E+11,R2600,Rent,Reed Rains,750,
201906,2.01906E+11,R2600,Rent,Reed Rains,750,
201906,2.01906E+11,R1265,Employee Insurance - Supt. Association,Police Superintendents Association,598,
201906,2.01906E+11,R3660,The information is confidential or would attract an exemption under the Freedom of Information Act e.g. where disclosure could be prejudicial to the commercial interests of any person including the authority,The information is confidential or would attract an exemption under the Freedom of Information Act e.g. where disclosure could be prejudicial to the commercial interests of any person including the authority,"1,782.00",
201906,2.01906E+11,R3660,The information is confidential or would attract an exemption under the Freedom of Information Act e.g. where disclosure could be prejudicial to the commercial interests of any person including the authority,The information is confidential or would attract an exemption under the Freedom of Information Act e.g. where disclosure could be prejudicial to the commercial interests of any person including the authority,"1,782.00",
201906,2.01906E+11,R4155,External Printing,H&H Reed's Printers Ltd,505,
201906,2.01906E+11,R4155,External Printing,Liberty Printers (A.R. & R.F. Reddin) Ltd,"1,480.00",
201906,2.01906E+11,R6750,Consultants Fees - Other,SMSR Ltd,609,
201906,2.01906E+11,R4155,External Printing,Harlow Printing Ltd,502,
201906,2.01906E+11,R6730,Non-Staff Advertising,Granicus LLC (formerly GovDelivery LLC),"3,727.50",
201906,2.01906E+11,C3905,Vehicle Adaptations - Capital,Telegartner UK Ltd,"1,933.20",
201906,2.01906E+11,R2725,Cleaning Materials,Arrow County Supplies,"1,142.00",
201906,2.01906E+11,R2720,Other Cleaning & Domestic Equipment,Arrow County Supplies,"1,306.30",
201906,2.01906E+11,R2720,Other Cleaning & Domestic Equipment,Arrow County Supplies,714.8,
201906,2.01906E+11,R2720,Other Cleaning & Domestic Equipment,Arrow County Supplies,"1,166.88",
201906,2.01906E+11,R3110,Vehicle Maintenance - Tyres & Tubes,Goodyear Dunlop Tyres UK Limited,"8,942.30",
201906,2.01906E+11,R3110,Vehicle Maintenance - Tyres & Tubes,Goodyear Dunlop Tyres UK Limited,"7,249.34",
201906,2.01906E+11,R3510,Vehicle Fuel,Allstar Business Solutions Ltd,"1,493.80",
201906,2.01906E+11,R3510,Vehicle Fuel,Allstar Business Solutions Ltd,"1,431.83",
201906,2.01906E+11,R3120,Vehicle Maintenance - Parts Purchase,Ciceley Commercials,"1,322.10",
201906,2.01906E+11,R2220,Planned Survey Internal Maintenance,Chubb Fire & Security Limited,"5,119.47",
201906,2.01906E+11,R2030,Unplanned Building Services Security & Security Equipment Maintenance,Chubb Fire & Security Limited,744.48,
201906,2.01906E+11,R2030,Unplanned Building Services Security & Security Equipment Maintenance,Chubb Fire & Security Limited,702.15,
201906,2.01906E+11,R3450,Accident Damage (Below Insurance Excess)),James Alpe Ltd,971.09,
201906,2.01906E+11,R3460,Accident Damage (Below Insurance Threshold),James Alpe Ltd,"1,000.00",
201906,2.01906E+11,R3460,Accident Damage (Below Insurance Threshold),James Alpe Ltd,681.23,
201906,2.01906E+11,R3460,Accident Damage (Below Insurance Threshold),James Alpe Ltd,"1,000.00",
201906,2.01906E+11,R3460,Accident Damage (Below Insurance Threshold),James Alpe Ltd,527.36,
201906,2.01906E+11,R3460,Accident Damage (Below Insurance Threshold),James Alpe Ltd,"1,000.00",
201906,2.01906E+11,R2700,Cleaning Contract,Bulloughs Cleaning Services Ltd,"12,622.00",
201906,2.01906E+11,R2700,Cleaning Contract,Bulloughs Cleaning Services Ltd,"3,610.25",
201906,2.01906E+11,R2700,Cleaning Contract,Bulloughs Cleaning Services Ltd,577.85,
201906,2.01906E+11,R2700,Cleaning Contract,Bulloughs Cleaning Services Ltd,"4,937.90",
201906,2.01906E+11,R2700,Cleaning Contract,Bulloughs Cleaning Services Ltd,"2,337.56",
201906,2.01906E+11,R2700,Cleaning Contract,Bulloughs Cleaning Services Ltd,"3,524.91",
201906,2.01906E+11,R2700,Cleaning Contract,Bulloughs Cleaning Services Ltd,"1,444.64",
201906,2.01906E+11,R2700,Cleaning Contract,Bulloughs Cleaning Services Ltd,577.85,
201906,2.01906E+11,R2700,Cleaning Contract,Bulloughs Cleaning Services Ltd,"1,444.64",
201906,2.01906E+11,R2700,Cleaning Contract,Bulloughs Cleaning Services Ltd,"1,270.00",
201906,2.01906E+11,R2700,Cleaning Contract,Bulloughs Cleaning Services Ltd,"12,622.00",
201906,2.01906E+11,R2700,Cleaning Contract,Bulloughs Cleaning Services Ltd,"3,610.25",
201906,2.01906E+11,R2700,Cleaning Contract,Bulloughs Cleaning Services Ltd,577.85,
201906,2.01906E+11,R2700,Cleaning Contract,Bulloughs Cleaning Services Ltd,"4,937.90",
201906,2.01906E+11,R2700,Cleaning Contract,Bulloughs Cleaning Services Ltd,"2,337.56",
201906,2.01906E+11,R2700,Cleaning Contract,Bulloughs Cleaning Services Ltd,"3,524.91",
201906,2.01906E+11,R2700,Cleaning Contract,Bulloughs Cleaning Services Ltd,"1,444.64",
201906,2.01906E+11,R2700,Cleaning Contract,Bulloughs Cleaning Services Ltd,693.42,
201906,2.01906E+11,R2700,Cleaning Contract,Bulloughs Cleaning Services Ltd,"1,444.64",
201906,2.01906E+11,R7006,North West Ambulance Service - Estates Management Collaboration,BID Group Ltd,579.25,
201906,2.01906E+11,R7006,North West Ambulance Service - Estates Management Collaboration,BID Group Ltd,"1,337.00",
201906,2.01906E+11,R2170,Unplanned Building Maintenance External Maintenance,BID Group Ltd,"5,950.00",
201906,2.01906E+11,R2080,Unplanned Building Services External Other,BID Group Ltd,"1,636.00",
201906,2.01906E+11,R7006,North West Ambulance Service - Estates Management Collaboration,BID Group Ltd,685.75,
201906,2.01906E+11,R7006,North West Ambulance Service - Estates Management Collaboration,BID Group Ltd,933.85,
201906,2.01906E+11,R4540,Canteen - Hot Drink Machines,Rijo 42 Ingredients Ltd,562.94,
201906,2.01906E+11,R4540,Canteen - Hot Drink Machines,Rijo 42 Ingredients Ltd,761.84,
201906,2.01906E+11,R3120,Vehicle Maintenance - Parts Purchase,Les Wallen Manufacturing Limited,"2,092.80",
201906,2.01906E+11,R4540,Canteen - Hot Drink Machines,BNP Paribas Leasing Solutions Ltd,519.99,
201906,2.01906E+11,R4540,Canteen - Hot Drink Machines,BNP Paribas Leasing Solutions Ltd,519.99,
201906,2.01906E+11,R4540,Canteen - Hot Drink Machines,BNP Paribas Leasing Solutions Ltd,519.99,
201906,2.01906E+11,R4540,Canteen - Hot Drink Machines,BNP Paribas Leasing Solutions Ltd,519.99,
201906,2.01906E+11,R2730,Refuse,Suez Recycling & Recovery UK Ltd,"5,901.97",
201906,2.01906E+11,R4520,Canteen - Purchase of Food / Ingredients,PFD (Carlisle) Ltd t/a Pioneer Foodservice,794.24,
201906,2.01906E+11,R4520,Canteen - Purchase of Food / Ingredients,PFD (Carlisle) Ltd t/a Pioneer Foodservice,661.5,
201906,2.01906E+11,R4520,Canteen - Purchase of Food / Ingredients,PFD (Carlisle) Ltd t/a Pioneer Foodservice,899.41,
201906,2.01906E+11,R4520,Canteen - Purchase of Food / Ingredients,PFD (Carlisle) Ltd t/a Pioneer Foodservice,600.27,
201906,2.01906E+11,R4520,Canteen - Purchase of Food / Ingredients,PFD (Carlisle) Ltd t/a Pioneer Foodservice,639.24,
201906,2.01906E+11,R4520,Canteen - Purchase of Food / Ingredients,PFD (Carlisle) Ltd t/a Pioneer Foodservice,"1,132.02",
201906,2.01906E+11,R4520,Canteen - Purchase of Food / Ingredients,PFD (Carlisle) Ltd t/a Pioneer Foodservice,"1,256.48",
201906,2.01906E+11,R4520,Canteen - Purchase of Food / Ingredients,PFD (Carlisle) Ltd t/a Pioneer Foodservice,515.24,
201906,2.01906E+11,R4520,Canteen - Purchase of Food / Ingredients,PFD (Carlisle) Ltd t/a Pioneer Foodservice,810.3,
201906,2.01906E+11,R4520,Canteen - Purchase of Food / Ingredients,PFD (Carlisle) Ltd t/a Pioneer Foodservice,981.02,
201906,2.01906E+11,R4520,Canteen - Purchase of Food / Ingredients,PFD (Carlisle) Ltd t/a Pioneer Foodservice,962.09,
201906,2.01906E+11,R4520,Canteen - Purchase of Food / Ingredients,PFD (Carlisle) Ltd t/a Pioneer Foodservice,"1,128.17",
201906,2.01906E+11,R4520,Canteen - Purchase of Food / Ingredients,PFD (Carlisle) Ltd t/a Pioneer Foodservice,"1,037.73",
201906,2.01906E+11,R4520,Canteen - Purchase of Food / Ingredients,PFD (Carlisle) Ltd t/a Pioneer Foodservice,544.89,
201906,2.01906E+11,R4520,Canteen - Purchase of Food / Ingredients,PFD (Carlisle) Ltd t/a Pioneer Foodservice,994.3,
201906,2.01906E+11,R4520,Canteen - Purchase of Food / Ingredients,PFD (Carlisle) Ltd t/a Pioneer Foodservice,"1,029.92",
201906,2.01906E+11,R3460,Accident Damage (Below Insurance Threshold),Thompson Accident Repair Centre,"1,000.00",
201906,2.01906E+11,R3450,Accident Damage (Below Insurance Excess)),Thompson Accident Repair Centre,938.74,
201906,2.01906E+11,R3460,Accident Damage (Below Insurance Threshold),Thompson Accident Repair Centre,"-1,000.00",
201906,2.01906E+11,R3460,Accident Damage (Below Insurance Threshold),Thompson Accident Repair Centre,661.13,
201906,2.01906E+11,R3460,Accident Damage (Below Insurance Threshold),Thompson Accident Repair Centre,"1,000.00",
201906,2.01906E+11,R3460,Accident Damage (Below Insurance Threshold),Thompson Accident Repair Centre,"1,000.00",
201906,2.01906E+11,R3450,Accident Damage (Below Insurance Excess)),Thompson Accident Repair Centre,808.59,
201906,2.01906E+11,R3450,Accident Damage (Below Insurance Excess)),Thompson Accident Repair Centre,833.98,
201906,2.01906E+11,R3460,Accident Damage (Below Insurance Threshold),Thompson Accident Repair Centre,"1,546.26",
201906,2.01906E+11,R3460,Accident Damage (Below Insurance Threshold),Thompson Accident Repair Centre,"1,000.00",
201906,2.01906E+11,R3410,Vehicle Misuse & Neglect,Thompson Accident Repair Centre,"1,079.07",
201906,2.01906E+11,R3410,Vehicle Misuse & Neglect,Thompson Accident Repair Centre,810.85,
201906,2.01906E+11,R3460,Accident Damage (Below Insurance Threshold),Thompson Accident Repair Centre,"1,000.00",
201906,2.01906E+11,R2070,Unplanned Building Services Internal Other,D Brown Building & Joinery Limited,715,
201906,2.01906E+11,R2030,Unplanned Building Services Security & Security Equipment Maintenance,System Hydraulics Limited,574.85,
201906,2.01906E+11,R2800,Security and Alarms (inc locks),Compass Services Group (Cabling Systems) Ltd,"1,192.55",
201906,2.01906E+11,R2020,Unplanned Building Services HVAC System,Refrigeration (Mitton) Ltd,"2,512.00",
201906,2.01906E+11,R2275,Planned Servicing HVAC System,Refrigeration (Mitton) Ltd,"2,220.00",
201906,2.01906E+11,R2275,Planned Servicing HVAC System,Refrigeration (Mitton) Ltd,780,
201906,2.01906E+11,R2275,Planned Servicing HVAC System,Refrigeration (Mitton) Ltd,570,
201906,2.01906E+11,R2070,Unplanned Building Services Internal Other,Refrigeration (Mitton) Ltd,651,
201906,2.01906E+11,R2140,Unplanned Building Maintenance Internal Maintenance,Refrigeration (Mitton) Ltd,"1,991.00",
201906,2.01906E+11,C2830,Professional Fees,Unwin Jones Partnership,"2,500.00",
201906,2.01906E+11,C2830,Professional Fees,Unwin Jones Partnership,"2,500.00",
201906,2.01906E+11,R7006,North West Ambulance Service - Estates Management Collaboration,Dawson Electrical Services Ltd,580,
201906,2.01906E+11,R2150,Unplanned Building Maintenance Electrics,Dawson Electrical Services Ltd,"1,360.00",
201906,2.01906E+11,R7006,North West Ambulance Service - Estates Management Collaboration,Dawson Electrical Services Ltd,"2,870.00",
201906,2.01906E+11,R2230,Planned Survey Electrics,Dawson Electrical Services Ltd,690,
201906,2.01906E+11,R2230,Planned Survey Electrics,Dawson Electrical Services Ltd,770,
201906,2.01906E+11,R2050,Unplanned Building Services Electrics,Dawson Electrical Services Ltd,530,
201906,2.01906E+11,R7006,North West Ambulance Service - Estates Management Collaboration,Dawson Electrical Services Ltd,"1,370.00",
201906,2.01906E+11,R3420,Vehicle Other Supplements,Vertu Motors plc,522.48,
201906,2.01906E+11,R2260,Planned Servicing Boiler & Heating Plant,Cumbria Mechanical Plumbing Ltd,"9,092.00",
201906,2.01906E+11,R2160,Unplanned Building Maintenance Environmental Services/Plumbing,Cumbria Mechanical Plumbing Ltd,756,
201906,2.01906E+11,R2060,Unplanned Building Services Environmental Services/Plumbing,Cumbria Mechanical Plumbing Ltd,503.27,
201906,2.01906E+11,R2060,Unplanned Building Services Environmental Services/Plumbing,Cumbria Mechanical Plumbing Ltd,559.15,
201906,2.01906E+11,R2410,Minor Works,Cumbria Mechanical Plumbing Ltd,"1,750.00",
201906,2.01906E+11,R2160,Unplanned Building Maintenance Environmental Services/Plumbing,Cumbria Mechanical Plumbing Ltd,"1,500.00",
201906,2.01906E+11,R2230,Planned Survey Electrics,JJ Group (Contracting) Ltd,"3,103.08",
201906,2.01906E+11,R2410,Minor Works,JJ Group (Contracting) Ltd,"1,144.80",
201906,2.01906E+11,R2230,Planned Survey Electrics,Cumbria Mechanical Plumbing Ltd,"1,080.00",
201906,2.01906E+11,R2140,Unplanned Building Maintenance Internal Maintenance,Cumbria Mechanical Plumbing Ltd,"2,525.00",
201906,2.01906E+11,R2610,Estates Leases,Walton Goodland Limited,"1,324.29",
201906,2.01906E+11,R2460,Grounds Maintenance - Contract,S Nicholson Grounds Maintenance,750,
201906,2.01906E+11,R2460,Grounds Maintenance - Contract,S Nicholson Grounds Maintenance,750,
201906,2.01906E+11,C2830,Professional Fees,Martin J Withey,523,
201906,2.01906E+11,R2610,Estates Leases,Solway Plain Futures Ltd,"1,898.00",
201906,2.01906E+11,R4530,Canteen - Equipment and Utensils,Dave Hudson,550,
201906,2.01906E+11,R2170,Unplanned Building Maintenance External Maintenance,PSS Home Entertainment Ltd (Penrith Satellite Systems),"1,280.00",
201906,2.01906E+11,R2660,Business Rates,Eden District Council,910,
201906,2.01906E+11,R2730,Refuse,Amey PLC - Enterprise Managed Services Ltd,"1,159.60",
201906,2.01906E+11,R4510,Catering - Meetings,Roundthorn Country House,918.75,
201906,2.01906E+11,R4510,Catering - Meetings,Roundthorn Country House,831.25,
201906,2.01906E+11,R2060,Unplanned Building Services Environmental Services/Plumbing,R B Loveridge & Son Ltd,768.93,
201906,2.01906E+11,R2060,Unplanned Building Services Environmental Services/Plumbing,R B Loveridge & Son Ltd,885.98,
201906,2.01906E+11,R2610,Estates Leases,Allerdale Borough Council,512.5,
201906,2.01906E+11,R2140,Unplanned Building Maintenance Internal Maintenance,Spencer Ivison,700,
201906,2.01906E+11,C2245,Planned Survey Alterations & Improvements,Thomas Armstrong (Construction) Ltd,"221,558.70",
201906,2.01906E+11,C2245,Planned Survey Alterations & Improvements,Thomas Armstrong (Construction) Ltd,"431,407.21",
201906,2.01906E+11,C2245,Planned Survey Alterations & Improvements,Thomas Armstrong (Construction) Ltd,"427,994.87",
201906,2.01906E+11,R2610,Estates Leases,Frederick Potts & Sons Ltd,787.5,
201906,2.01906E+11,C2830,Professional Fees,Baker Mallett LLP,827.24,
201906,2.01906E+11,C2830,Professional Fees,Baker Mallett LLP,827.25,
201906,2.01906E+11,R2150,Unplanned Building Maintenance Electrics,Margrange Ltd,"1,375.50",
201906,2.01906E+11,R4510,Catering - Meetings,Westmorland Ltd (Rheged Discovery Centre),589,
201906,2.01906E+11,R2715,Clinical Waste,PHS Group Plc,"3,447.56",
201906,2.01906E+11,R2715,Clinical Waste,PHS Group Plc,"2,483.58",
201906,2.01906E+11,R2715,Clinical Waste,PHS Group Plc,"1,635.88",
201906,2.01906E+11,R2715,Clinical Waste,PHS Group Plc,570.6,
201906,2.01906E+11,R2715,Clinical Waste,PHS Group Plc,821.28,
201906,2.01906E+11,R2715,Clinical Waste,PHS Group Plc,889.32,
201906,2.01906E+11,R3980,Vehicle Road Fund Licenses,Post Office Counters Ltd,985,
201906,2.01906E+11,R3980,Vehicle Road Fund Licenses,Post Office Counters Ltd,680,
201906,2.01906E+11,R3980,Vehicle Road Fund Licenses,Post Office Counters Ltd,"1,311.00",
201906,2.01906E+11,R2230,Planned Survey Electrics,Pod Point Limited,595,
201906,2.01906E+11,R2680,PFI Occupancy Charges,West Cumbria Estates Management Limited,"100,965.33",
201906,2.01906E+11,R2680,PFI Occupancy Charges,West Cumbria Estates Management Limited,"100,965.33",
201906,2.01906E+11,R2680,PFI Occupancy Charges,West Cumbria Estates Management Limited,"100,965.33",
201906,2.01906E+11,R2500,Oil,Scottish Fuels,"3,472.78",
201906,2.01906E+11,R2500,Oil,Scottish Fuels,"5,418.14",
201906,2.01906E+11,R2500,Oil,Scottish Fuels,"3,975.90",
201906,2.01906E+11,R2500,Oil,Scottish Fuels,"2,009.34",
201906,2.01906E+11,R2500,Oil,Scottish Fuels,"1,292.52",
201906,2.01906E+11,R3120,Vehicle Maintenance - Parts Purchase,Arnold Clark Automobiles Ltd,816.14,
201906,2.01906E+11,R3120,Vehicle Maintenance - Parts Purchase,Arnold Clark Automobiles Ltd,715.45,
201906,2.01906E+11,R3120,Vehicle Maintenance - Parts Purchase,Arnold Clark Automobiles Ltd,512.42,
201906,2.01906E+11,R3120,Vehicle Maintenance - Parts Purchase,Arnold Clark Automobiles Ltd,792.18,
201906,2.01906E+11,R3120,Vehicle Maintenance - Parts Purchase,Arnold Clark Automobiles Ltd,792.18,
201906,2.01906E+11,R3120,Vehicle Maintenance - Parts Purchase,Arnold Clark Automobiles Ltd,514.71,
201906,2.01906E+11,R3120,Vehicle Maintenance - Parts Purchase,Arnold Clark Automobiles Ltd,792.18,
201906,2.01906E+11,R3120,Vehicle Maintenance - Parts Purchase,Arnold Clark Automobiles Ltd,566.44,
201906,2.01906E+11,R3120,Vehicle Maintenance - Parts Purchase,Arnold Clark Automobiles Ltd,508.4,
201906,2.01906E+11,R3120,Vehicle Maintenance - Parts Purchase,Arnold Clark Automobiles Ltd,817.93,
201906,2.01906E+11,R2510,Electricity,British Gas Trading,"3,888.39",
201906,2.01906E+11,R3210,Police Vehicle Recovery & Transport,FMG Support (RRRM) Ltd,"1,881.00",
201906,2.01906E+11,R3210,Police Vehicle Recovery & Transport,FMG Support (RRRM) Ltd,"2,750.00",
201906,2.01906E+11,R2730,Refuse,Biffa Waste Services Ltd,655.6,
201906,2.01906E+11,R2730,Refuse,Biffa Waste Services Ltd,513.3,
201906,2.01906E+11,R2730,Refuse,Biffa Waste Services Ltd,513.3,
201906,2.01906E+11,R2730,Refuse,Biffa Waste Services Ltd,655.6,
201906,2.01906E+11,C3905,Vehicle Adaptations - Capital,Jack Hodson Ltd,"1,200.00",
201906,2.01906E+11,R2273,Planned Servicing Firearms - Bullet Trap etc,Mawtec Systems Limited,"2,856.21",
201906,2.01906E+11,R2120,Unplanned Building Maintenance Non Structural Maintenance,George Shepherd Ltd,787,
201906,2.01906E+11,R2660,Business Rates,South Lakeland District Council,"1,990.00",
201906,2.01906E+11,R2040,Unplanned Building Services Fire Systems,FTS Fire & Security Ltd,540,
201906,2.01906E+11,R2410,Minor Works,Ian Robinson,560,
201906,2.01906E+11,R2610,Estates Leases,Sedbergh and District Charitable Incorporated Organisation (CIO),"2,400.00",
201906,2.01906E+11,R3120,Vehicle Maintenance - Parts Purchase,Lloyd Motors South Lakes Ltd,627.37,
201906,2.01906E+11,R2610,Estates Leases,Dalton Community Association,"1,100.00",
201906,2.01906E+11,R2610,Estates Leases,Millom Network Centre,"1,706.25",
201906,2.01906E+11,R2505,Gas,Flogas Britain Ltd,635.09,
201906,2.01906E+11,C3905,Vehicle Adaptations - Capital,Eibach UK,"1,733.58",
201906,2.01906E+11,R3120,Vehicle Maintenance - Parts Purchase,ECCO Safety Group UK Ltd,941.55,
201906,2.01906E+11,R3410,Vehicle Misuse & Neglect,Volkswagen Group UK Ltd,650.59,
201906,2.01906E+11,R2740,Destruction of Confidential Waste,Shred-it (Europe) Ltd,540,
201906,2.01906E+11,R2740,Destruction of Confidential Waste,Shred-it (Europe) Ltd,829,
201906,2.01906E+11,R2610,Estates Leases,Ulverston Properties Ltd,780,
201906,2.01906E+11,R2610,Estates Leases,Ulverston Properties Ltd,780,
201906,2.01906E+11,R2610,Estates Leases,Ulverston Properties Ltd,780,
201906,2.01906E+11,C3905,Vehicle Adaptations - Capital,Tennants UK Ltd,766,
201906,2.01906E+11,R2830,Professional Fees,3i Studio Ltd,"3,865.00",
201906,2.01906E+11,C3905,Vehicle Adaptations - Capital,Cleartone Telecoms Plc,"2,118.00",
201906,2.01906E+11,C3905,Vehicle Adaptations - Capital,Cleartone Telecoms Plc,"-2,118.00",
201906,2.01906E+11,C3905,Vehicle Adaptations - Capital,Cleartone Telecoms Plc,"2,118.00",
201906,2.01906E+11,R2160,Unplanned Building Maintenance Environmental Services/Plumbing,Zip Heaters UK Ltd,994.5,
201906,2.01906E+11,R2830,Professional Fees,DSSR Consulting Engineers,"1,200.00",
201906,2.01906E+11,R2830,Professional Fees,DSSR Consulting Engineers,"1,200.00",
201906,2.01906E+11,R2510,Electricity,EDF Energy,"5,662.26",
201906,2.01906E+11,R2510,Electricity,EDF Energy,"3,070.25",
201906,2.01906E+11,R2510,Electricity,EDF Energy,"15,092.22",
201906,2.01906E+11,R2530,Climate Change Levy,EDF Energy,827.62,
201906,2.01906E+11,R2510,Electricity,EDF Energy,"9,975.47",
201906,2.01906E+11,R2530,Climate Change Levy,EDF Energy,507.33,
201906,2.01906E+11,R2510,Electricity,EDF Energy,"11,523.27",
201906,2.01906E+11,R2510,Electricity,EDF Energy,"16,843.06",
201906,2.01906E+11,R2530,Climate Change Levy,EDF Energy,"1,081.91",
201906,2.01906E+11,R2510,Electricity,EDF Energy,"3,211.14",
201906,2.01906E+11,R2510,Electricity,EDF Energy,"5,678.01",
201906,2.01906E+11,R2510,Electricity,EDF Energy,"5,634.28",
201906,2.01906E+11,R2510,Electricity,EDF Energy,"3,256.59",
201906,2.01906E+11,R2510,Electricity,EDF Energy,"16,879.42",
201906,2.01906E+11,R2530,Climate Change Levy,EDF Energy,"1,086.47",
201906,2.01906E+11,R2510,Electricity,EDF Energy,"11,052.46",
201906,2.01906E+11,R2530,Climate Change Levy,EDF Energy,712.9,
201906,2.01906E+11,R2286,Planned Servicing Generators/UPS,Power Tecnique Limited,"9,162.00",
201906,2.01906E+11,R2286,Planned Servicing Generators/UPS,Power Tecnique Limited,"5,243.33",
201906,2.01906E+11,R2286,Planned Servicing Generators/UPS,Power Tecnique Limited,770,
201906,2.01906E+11,R2286,Planned Servicing Generators/UPS,Power Tecnique Limited,"4,194.67",
201906,2.01906E+11,R1720,Other Support Function Training,Institute of Car Fleet Management Limited,"2,262.00",
201906,2.01906E+11,R3450,Accident Damage (Below Insurance Excess)),Enterprise Rent-a-car UK Limited,722.48,
201906,2.01906E+11,R2410,Minor Works,Dorma UK Ltd,"1,542.84",
201906,2.01906E+11,R2170,Unplanned Building Maintenance External Maintenance,Dorma UK Ltd,914.71,
201906,2.01906E+11,R7006,North West Ambulance Service - Estates Management Collaboration,Countrywide Grounds Maintenance Ltd,641.66,
201906,2.01906E+11,R7006,North West Ambulance Service - Estates Management Collaboration,Countrywide Grounds Maintenance Ltd,641.66,
201906,2.01906E+11,R2550,Metered Water,Water Plus Ltd,520,
201906,2.01906E+11,R2565,Sewerage & Environmental Services,Water Plus Ltd,"1,017.67",
201906,2.01906E+11,R2565,Sewerage & Environmental Services,Water Plus Ltd,"1,089.53",
201906,2.01906E+11,R2565,Sewerage & Environmental Services,Water Plus Ltd,871.51,
201906,2.01906E+11,R2160,Unplanned Building Maintenance Environmental Services/Plumbing,Independent Humidifier Services Ltd,841.19,
201906,2.01906E+11,R3120,Vehicle Maintenance - Parts Purchase,Castrol (UK) Ltd,513.76,
201906,2.01906E+11,C3900,Vehicle Purchases - Capital,Volkswagen Group UK Ltd,"22,699.00",
201906,2.01906E+11,C3900,Vehicle Purchases - Capital,Volkswagen Group UK Ltd,"19,371.75",
201906,2.01906E+11,R3120,Vehicle Maintenance - Parts Purchase,Lloyd Motors Ltd,520.6,
201906,2.01906E+11,C3900,Vehicle Purchases - Capital,BMW  Group (GB) Ltd,"19,824.39",
201906,2.01906E+11,C3900,Vehicle Purchases - Capital,BMW  Group (GB) Ltd,"-19,824.39",
201906,2.01906E+11,C3900,Vehicle Purchases - Capital,BMW  Group (GB) Ltd,"19,564.39",
201906,2.01906E+11,R2830,Professional Fees,Jones Lang LaSalle Limited,"2,665.77",
201906,2.01906E+11,R2505,Gas,Corona Energy,"10,311.42",
201906,2.01906E+11,R2505,Gas,Corona Energy,"12,096.73",
201906,2.01906E+11,R3510,Vehicle Fuel,Allstar Business Solutions Ltd,639.4,
201906,2.01906E+11,R3510,Vehicle Fuel,Allstar Business Solutions Ltd,"1,381.40",
201906,2.01906E+11,R3510,Vehicle Fuel,Allstar Business Solutions Ltd,"73,096.70",
201906,2.01906E+11,R3510,Vehicle Fuel,Allstar Business Solutions Ltd,"1,577.76",
201906,2.01906E+11,R3510,Vehicle Fuel,Allstar Business Solutions Ltd,"2,707.15",
201906,2.01906E+11,R3510,Vehicle Fuel,Allstar Business Solutions Ltd,"1,433.29",
201906,2.01906E+11,R3510,Vehicle Fuel,Allstar Business Solutions Ltd,"1,850.16",
201906,2.01906E+11,R3510,Vehicle Fuel,Allstar Business Solutions Ltd,600.97,
201906,2.01906E+11,R3510,Vehicle Fuel,Allstar Business Solutions Ltd,"1,215.12",
201906,2.01906E+11,R3510,Vehicle Fuel,Allstar Business Solutions Ltd,"75,577.11",
201906,2.01906E+11,R3510,Vehicle Fuel,Allstar Business Solutions Ltd,"1,190.21",
201906,2.01906E+11,R3510,Vehicle Fuel,Allstar Business Solutions Ltd,"3,052.13",
201906,2.01906E+11,R3510,Vehicle Fuel,Allstar Business Solutions Ltd,"1,533.13",
201906,2.01906E+11,R3510,Vehicle Fuel,Allstar Business Solutions Ltd,"1,415.24",
201906,2.01906E+11,R3510,Vehicle Fuel,Allstar Business Solutions Ltd,725.82,
201906,2.01906E+11,C3900,Vehicle Purchases - Capital,Clearprime Ltd T/A Panel Financial Uk,600,
201906,2.01906E+11,Z2114,Police Property Act Fund - Transactions Money Out (Total Expenditure),Unisin Athletic U7 FC,"1,197.60",
201906,2.01906E+11,Z2114,Police Property Act Fund - Transactions Money Out (Total Expenditure),Stanwix FC Mixed Under 7's,"2,411.59",
201906,2.01906E+11,Z2114,Police Property Act Fund - Transactions Money Out (Total Expenditure),Longtown Memorial Hall Community Centre,"2,500.00",
201906,2.01906E+11,R4880,Ex-Gratia Payments,Exgratia Payments,"1,045.00",
201906,2.01906E+11,R4880,Ex-Gratia Payments,Exgratia Payments,695,
201906,2.01906E+11,R4880,Ex-Gratia Payments,Exgratia Payments,775,
201906,2.01906E+11,Z2114,Police Property Act Fund - Transactions Money Out (Total Expenditure),Cumbria Army Cadet Force Penrith Detachment,"2,453.15",
201906,2.01906E+11,Z2114,Police Property Act Fund - Transactions Money Out (Total Expenditure),Penrith 1247 Squdron Air Cadets,"2,500.00",
201906,2.01906E+11,Z2114,Police Property Act Fund - Transactions Money Out (Total Expenditure),Nemesis Boxing Club,"1,039.67",
201906,2.01906E+11,Z2114,Police Property Act Fund - Transactions Money Out (Total Expenditure),Netherhall Rugby Football Club,"2,500.00",
201906,2.01906E+11,Z2114,Police Property Act Fund - Transactions Money Out (Total Expenditure),The Whitehaven Foyer,"2,000.00",
201906,2.01906E+11,R6710,Subscriptions,The Copyright Licensing Agency Ltd,"1,946.40",
201906,2.01906E+11,Z2114,Police Property Act Fund - Transactions Money Out (Total Expenditure),1st Kendal Parish Church Boys Brigade,910,
201906,2.01906E+11,Z2114,Police Property Act Fund - Transactions Money Out (Total Expenditure),"Dalton Detachment, Cumbria Army Cadet Force","2,500.00",
201906,2.01906E+11,R7380,Settlement of 3rd Party Claims for damage to property / vehicles,Gallagher Bassett International Ltd,"3,276.83",
201906,2.01906E+11,R7380,Settlement of 3rd Party Claims for damage to property / vehicles,Gallagher Bassett International Ltd,"2,894.82",
201906,2.01906E+11,R6824,NatWest Corporate Card Payments,Natwest Corporate Card,"3,831.01",
201906,2.01906E+11,R6824,NatWest Corporate Card Payments,Natwest Corporate Card,"2,527.85",
201906,2.01906E+11,R6824,NatWest Corporate Card Payments,Natwest Corporate Card,"1,862.54",
201906,2.01906E+11,R6830,External Audit Fee,Grant Thornton UK LLP,"2,887.00",
201906,2.01906E+11,R1265,Employee Insurance - Supt. Association,Police Superintendents Association,"7,176.00",
201906,2.01906E+11,R6710,Subscriptions,EU Supply Plc,625,
201906,2.01906E+11,R6710,Subscriptions,Police and Crime Commissioner for Hampshire Constabulary,"2,907.76",
201906,2.01906E+11,R7290,Other Third Party Payments,Police and Crime Commissioner for Hampshire Constabulary,"1,231.73",
201906,2.01906E+11,R6710,Subscriptions,CPOSA,"3,074.00",
201906,2.01906E+11,R6710,Subscriptions,CPOSA,"3,074.00",
201906,2.01906E+11,R6710,Subscriptions,The Police ICT Company Ltd,"60,000.00",
201906,2.01906E+11,R6710,Subscriptions,NLA Media Access Limited,"5,462.00",
201906,2.01906E+11,R7042,Pension Services,PS Administration Limited T/A XPS Administration,"8,396.00",
201906,2.01906E+11,R7290,Other Third Party Payments,Tellemachus Limited,"28,499.90",
201906,2.01906E+11,R6710,Subscriptions,Chartered Institute of Public Finance and Accountancy,"5,395.00",
201906,2.01906E+11,R1720,Other Support Function Training,Chartered Institute of Public Finance and Accountancy,"2,500.00",
201906,2.01906E+11,R5325,Computer Software - Maintenance,Inelo Stocerz Sp. J.,"1,868.22",
201906,2.01906E+11,R5015,Telephone Charges - Mobile Phones,EE Limited,"4,623.49",
201906,2.01906E+11,R5015,Telephone Charges - Mobile Phones,EE Limited,"3,442.20",
201906,2.01906E+11,R5015,Telephone Charges - Mobile Phones,EE Limited,"4,609.34",
201906,2.01906E+11,R5015,Telephone Charges - Mobile Phones,EE Limited,"3,438.47",
201906,2.01906E+11,C5310,Computer Hardware - Purchase,SCC (Specialist Computer Centre),"4,956.84",
201906,2.01906E+11,C5310,Computer Hardware - Purchase,SCC (Specialist Computer Centre),"2,585.75",
201906,2.01906E+11,C5315,Computer Hardware - Services,SCC (Specialist Computer Centre),"30,111.70",
201906,2.01906E+11,C5310,Computer Hardware - Purchase,SCC (Specialist Computer Centre),"3,566.49",
201906,2.01906E+11,R5110,Networks Hardware Purchase,BT Business Direct Ltd,"1,490.00",
201906,2.01906E+11,C5110,Networks Hardware Purchase,BT Business Direct Ltd,728,
201906,2.01906E+11,R5110,Networks Hardware Purchase,BT Business Direct Ltd,"1,062.00",
201906,2.01906E+11,R5325,Computer Software - Maintenance,Clue Computing Ltd,"3,900.00",
201906,2.01906E+11,R6750,Consultants Fees - Other,Castlerigg Consulting Limited,"5,000.00",
201906,2.01906E+11,R5325,Computer Software - Maintenance,Force Information Systems Limited,"16,325.00",
201906,2.01906E+11,R5325,Computer Software - Maintenance,Capita Secure Information Solutions Ltd,"4,227.62",
201906,2.01906E+11,R5215,Radio / Airwave Equipment - Maintenance,Capita Secure Information Solutions Ltd,"19,399.56",
201906,2.01906E+11,R5325,Computer Software - Maintenance,Capita Secure Information Solutions Ltd,"17,481.72",
201906,2.01906E+11,R5325,Computer Software - Maintenance,Civica UK Ltd,"14,133.93",
201906,2.01906E+11,R5325,Computer Software - Maintenance,Sira Defence and Security,900,
201906,2.01906E+11,R6755,Consultants Fees - ICT,Deloitte MCS Limited,"49,000.00",
201906,2.01906E+11,R5315,Computer Hardware - Maintenance,Capita Managed IT Solutions,"26,344.64",
201906,2.01906E+11,R5325,Computer Software - Maintenance,Micro Systemation,"2,850.00",
201906,2.01906E+11,R5315,Computer Hardware - Maintenance,One Source IT Ltd,"18,598.00",
201906,2.01906E+11,R1710,ICT Training,QA Training Ltd,"5,166.00",
201906,2.01906E+11,C5310,Computer Hardware - Purchase,NCC Group Security Services Limited,"13,200.00",
201906,2.01906E+11,C5325,Computer Software - Services,NCC Group Security Services Limited,"1,832.56",
201906,2.01906E+11,R5325,Computer Software - Maintenance,ESAFE GLOBAL LIMITED,"6,100.00",
201906,2.01906E+11,R5325,Computer Software - Maintenance,Softcat PLC,"26,010.00",
201906,2.01906E+11,R5115,Networks Hardware Maintenance,Insight Direct (UK) Ltd,"6,122.36",
201906,2.01906E+11,C5120,Networks Private Circuits,Insight Direct (UK) Ltd,"-4,325.00",
201906,2.01906E+11,R5120,Networks Private Circuits,Insight Direct (UK) Ltd,"-5,877.01",
201906,2.01906E+11,R5120,Networks Private Circuits,Vodafone Limited,"11,876.21",
201906,2.01906E+11,R5120,Networks Private Circuits,Vodafone Limited,"8,409.17",
201906,2.01906E+11,R5120,Networks Private Circuits,Vodafone Limited,"11,876.21",
201906,2.01906E+11,C5120,Networks Private Circuits,Vodafone Limited,"37,250.00",
201906,2.01906E+11,R5120,Networks Private Circuits,Vodafone Limited,"4,405.07",
201906,2.01906E+11,R5120,Networks Private Circuits,Vodafone Limited,"3,958.16",
201906,2.01906E+11,R5120,Networks Private Circuits,Vodafone Limited,"11,876.21",
201906,2.01906E+11,R5120,Networks Private Circuits,Vodafone Limited,"3,958.16",
201906,2.01906E+11,R5325,Computer Software - Maintenance,Terian Computer Services Ltd,"2,497.00",
201906,2.01906E+11,C5310,Computer Hardware - Purchase,Rocom Ltd (Nimans),684.45,
201906,2.01906E+11,C5310,Computer Hardware - Purchase,Rocom Ltd (Nimans),"14,649.00",
201906,2.01906E+11,C5310,Computer Hardware - Purchase,Rocom Ltd (Nimans),780,
201906,2.01906E+11,R5315,Computer Hardware - Maintenance,Specialised Equipment Cleaning,595,
201906,2.01906E+11,R5315,Computer Hardware - Maintenance,Specialised Equipment Cleaning,745,
201906,2.01906E+11,R5010,Telephone Charges - Landlines,TalkTalk,"2,758.60",
201906,2.01906E+11,R5010,Telephone Charges - Landlines,TalkTalk,"2,676.40",
201906,2.01906E+11,R5325,Computer Software - Maintenance,JML Software Solutions Ltd,"16,139.45",
201906,2.01906E+11,C6755,Consultants Fees - ICT,I.T. Professional Services Limited,"1,500.00",
201906,2.01906E+11,R6755,Consultants Fees - ICT,Ricoh UK Ltd,614,
201906,2.01906E+11,R1710,ICT Training,Sysop Limited,747,
201906,2.01906E+11,R5120,Networks Private Circuits,Vodafone Limited,"1,776.00",
201906,2.01906E+11,R5210,Radio / Airwave Equipment - Purchases,Vodafone Limited,"3,648.00",
201906,2.01906E+11,R5120,Networks Private Circuits,Vodafone Limited,"1,776.00",
201906,2.01906E+11,R5120,Networks Private Circuits,Vodafone Limited,"1,776.00",
201906,2.01906E+11,R5010,Telephone Charges - Landlines,British Telecom,"15,824.48",
201906,2.01906E+11,R5325,Computer Software - Maintenance,Microsoft Limited,"59,828.98",
201906,2.01906E+11,R5325,Computer Software - Maintenance,Microsoft Limited,"11,160.00",
201906,2.01906E+11,R5325,Computer Software - Maintenance,Maintel Europe Ltd,"6,722.00",
201906,2.01906E+11,R5120,Networks Private Circuits,Airwave Solutions Limited (Subsidiary:- Kelvin Connect),"105,600.00",
201906,2.01906E+11,R5325,Computer Software - Maintenance,Airwave Solutions Limited (Subsidiary:- Kelvin Connect),"196,905.00",
201906,2.01906E+11,R5215,Radio / Airwave Equipment - Maintenance,Airwave Solutions Limited (Subsidiary:- Kelvin Connect),"78,003.92",
201906,2.01906E+11,R5215,Radio / Airwave Equipment - Maintenance,Airwave Solutions Limited (Subsidiary:- Kelvin Connect),"77,392.94",
201906,2.01906E+11,R5215,Radio / Airwave Equipment - Maintenance,Airwave Solutions Limited (Subsidiary:- Kelvin Connect),"78,796.62",
201906,2.01906E+11,R5310,Computer Hardware - Purchase,Stone Computers Ltd,630,
201906,2.01906E+11,R5325,Computer Software - Maintenance,The Police ICT Company Ltd,"35,770.02",
201906,2.01906E+11,R5325,Computer Software - Maintenance,Police and Crime Commissioner for West Yorkshire,"12,397.21",
201906,2.01906E+11,R5345,Computer & Printer Consumables,Xerox UK Ltd,"7,451.06",
201906,2.01906E+11,R5325,Computer Software - Maintenance,Phoenix Software Ltd,"89,969.28",
201906,2.01906E+11,R5325,Computer Software - Maintenance,Phoenix Software Ltd,"540,686.68",
201906,2.01906E+11,R5960,Community Initiatives - Activities & Competitions,B K Screenprint,759,
201906,2.01906E+11,R2410,Minor Works,Dawson Electrical Services Ltd,640,
201906,2.01906E+11,R1720,Other Support Function Training,Peter Fulton Training Associates,"1,736.50",
201906,2.01906E+11,R6840,Hotel Accommodation,Ashberry Guest House,"1,200.00",
201906,2.01906E+11,R5965,Crime Prevention - Labour Costs / Fitting,Mark Tubman (Locksmith & Joinery),550,
201906,2.01906E+11,R5965,Crime Prevention - Labour Costs / Fitting,Mark Tubman (Locksmith & Joinery),684,
201906,2.01906E+11,R5965,Crime Prevention - Labour Costs / Fitting,Mark Tubman (Locksmith & Joinery),650,
201906,2.01906E+11,R5965,Crime Prevention - Labour Costs / Fitting,Mark Tubman (Locksmith & Joinery),"2,700.00",
201906,2.01906E+11,R5965,Crime Prevention - Labour Costs / Fitting,Mark Tubman (Locksmith & Joinery),"1,450.00",
201906,2.01906E+11,R5965,Crime Prevention - Labour Costs / Fitting,Mark Tubman (Locksmith & Joinery),650,
201906,2.01906E+11,R6840,Hotel Accommodation,Appleby Manor Country House Hotel,"2,800.00",
201906,2.01906E+11,R5965,Crime Prevention - Labour Costs / Fitting,Solon Security Limited,"3,431.40",
201906,2.01906E+11,R5790,Operational Equipment - Audio / Video Equipment,Panoptech,726,
201906,2.01906E+11,R3600,Vehicle Hire - Short term,The Travellers Choice,"3,535.00",
201906,2.01906E+11,R5965,Crime Prevention - Labour Costs / Fitting,JNE Security Ltd,995,
201906,2.01906E+11,R3600,Vehicle Hire - Short term,Enterprise Rent-a-car UK Limited,672.2,
201906,2.01906E+11,R5965,Crime Prevention - Labour Costs / Fitting,City Electrical Factors,"3,420.00",
201906,2.01906E+11,R1740,Leadership Training,CENTRE FOR LEADERSHIP PERFORMANCE,724.3,
201906,2.01906E+11,R1740,Leadership Training,CENTRE FOR LEADERSHIP PERFORMANCE,"1,700.00",
201906,2.01906E+11,R1720,Other Support Function Training,Skills for Justice (Enterprise) Ltd - SFJ Awards,884,
201906,2.01906E+11,R1720,Other Support Function Training,Skills for Justice (Enterprise) Ltd - SFJ Awards,"1,156.00",
201906,2.01906E+11,R1720,Other Support Function Training,Skills for Justice (Enterprise) Ltd - SFJ Awards,"1,224.00",
201906,2.01906E+11,B2302,Inventories/Stocks - General / Admin Equipment - Purchases,Arrow County Supplies,"1,376.02",
201906,2.01906E+11,B2302,Inventories/Stocks - General / Admin Equipment - Purchases,Arrow County Supplies,932.49,
201906,2.01906E+11,B2302,Inventories/Stocks - General / Admin Equipment - Purchases,Arrow County Supplies,500.15,
201906,2.01906E+11,B2302,Inventories/Stocks - General / Admin Equipment - Purchases,Arrow County Supplies,665.64,
201906,2.01906E+11,B2302,Inventories/Stocks - General / Admin Equipment - Purchases,Arrow County Supplies,936.89,
201906,2.01906E+11,B2302,Inventories/Stocks - General / Admin Equipment - Purchases,Arrow County Supplies,561.9,
201906,2.01906E+11,B2312,Inventories/Stocks - Uniforms - Purchases,Tranam,677.08,
201906,2.01906E+11,R4005,Office Equipment - Maintenance,Nationwide Franking Sense Ltd,611.25,
201906,2.01906E+11,R4300,Furniture - General,Gresham Office Furniture,863.2,
201906,2.01906E+11,R4300,Furniture - General,Gresham Office Furniture,580,
201906,2.01906E+11,B2302,Inventories/Stocks - General / Admin Equipment - Purchases,Michael's Framing & Picture Gallery,614,
201906,2.01906E+11,R4000,Office Equipment - Purchase,B K Screenprint,700,
201906,2.01906E+11,B2312,Inventories/Stocks - Uniforms - Purchases,Earle International,"1,520.00",
201906,2.01906E+11,B2312,Inventories/Stocks - Uniforms - Purchases,Earle International,519.6,
201906,2.01906E+11,R4420,Newspapers & Periodicals,King Street News,"1,071.15",
201906,2.01906E+11,R4000,Office Equipment - Purchase,PSS Home Entertainment Ltd (Penrith Satellite Systems),550,
201906,2.01906E+11,R4000,Office Equipment - Purchase,PSS Home Entertainment Ltd (Penrith Satellite Systems),875,
201906,2.01906E+11,R4000,Office Equipment - Purchase,PSS Home Entertainment Ltd (Penrith Satellite Systems),695,
201906,2.01906E+11,R4000,Office Equipment - Purchase,PSS Home Entertainment Ltd (Penrith Satellite Systems),865,
201906,2.01906E+11,R4400,Books & Publications,Hills Books,"1,393.80",
201906,2.01906E+11,B2312,Inventories/Stocks - Uniforms - Purchases,Solon Security Limited,744,
201906,2.01906E+11,B2302,Inventories/Stocks - General / Admin Equipment - Purchases,Scenesafe Previously (WA Products (UK) Ltd),977.67,
201906,2.01906E+11,B2302,Inventories/Stocks - General / Admin Equipment - Purchases,Scenesafe Previously (WA Products (UK) Ltd),747.5,
201906,2.01906E+11,B2302,Inventories/Stocks - General / Admin Equipment - Purchases,Scenesafe Previously (WA Products (UK) Ltd),"1,482.13",
201906,2.01906E+11,B2312,Inventories/Stocks - Uniforms - Purchases,Scenesafe Previously (WA Products (UK) Ltd),977.3,
201906,2.01906E+11,B2302,Inventories/Stocks - General / Admin Equipment - Purchases,Scenesafe Previously (WA Products (UK) Ltd),520,
201906,2.01906E+11,B2302,Inventories/Stocks - General / Admin Equipment - Purchases,Scenesafe Previously (WA Products (UK) Ltd),"1,117.20",
201906,2.01906E+11,B2302,Inventories/Stocks - General / Admin Equipment - Purchases,Scenesafe Previously (WA Products (UK) Ltd),898.95,
201906,2.01906E+11,B2302,Inventories/Stocks - General / Admin Equipment - Purchases,Wurth UK Ltd,502.32,
201906,2.01906E+11,B2312,Inventories/Stocks - Uniforms - Purchases,Derby Unitex Ltd,769.81,
201906,2.01906E+11,B2312,Inventories/Stocks - Uniforms - Purchases,Endura Ltd,"2,845.90",
201906,2.01906E+11,B2312,Inventories/Stocks - Uniforms - Purchases,Endura Ltd,"2,125.00",
201906,2.01906E+11,B2312,Inventories/Stocks - Uniforms - Purchases,Yaffy (MWUK Ltd),528.75,
201906,2.01906E+11,B2312,Inventories/Stocks - Uniforms - Purchases,Yaffy (MWUK Ltd),900,
201906,2.01906E+11,B2312,Inventories/Stocks - Uniforms - Purchases,Yaffy (MWUK Ltd),"1,912.50",
201906,2.01906E+11,B2312,Inventories/Stocks - Uniforms - Purchases,Yaffy (MWUK Ltd),"2,925.00",
201906,2.01906E+11,B2312,Inventories/Stocks - Uniforms - Purchases,Yaffy (MWUK Ltd),"1,170.00",
201906,2.01906E+11,B2312,Inventories/Stocks - Uniforms - Purchases,Yaffy (MWUK Ltd),"1,575.00",
201906,2.01906E+11,B2312,Inventories/Stocks - Uniforms - Purchases,Try & Lilly Ltd,865.83,
201906,2.01906E+11,B2302,Inventories/Stocks - General / Admin Equipment - Purchases,Kays Medical Limited,"1,994.00",
201906,2.01906E+11,B2312,Inventories/Stocks - Uniforms - Purchases,Ioma Clothing Company,"1,042.59",
201906,2.01906E+11,R4302,Furniture - DSE Specialist Furniture,Centric Office Solutions Limited,550,
201906,2.01906E+11,B2302,Inventories/Stocks - General / Admin Equipment - Purchases,Cromwell Tools,"1,087.80",
201906,2.01906E+11,B2302,Inventories/Stocks - General / Admin Equipment - Purchases,Cromwell Tools,563,
201906,2.01906E+11,B2312,Inventories/Stocks - Uniforms - Purchases,Turner Virr & Co Ltd,537.5,
201906,2.01906E+11,B2312,Inventories/Stocks - Uniforms - Purchases,Turner Virr & Co Ltd,507.5,
201906,2.01906E+11,B2312,Inventories/Stocks - Uniforms - Purchases,Deenside Ltd,"1,069.49",
201906,2.01906E+11,B2312,Inventories/Stocks - Uniforms - Purchases,Mehler Vario System GmbH,667.4,
201906,2.01906E+11,B2312,Inventories/Stocks - Uniforms - Purchases,Mehler Vario System GmbH,632.8,
201906,2.01906E+11,B2312,Inventories/Stocks - Uniforms - Purchases,Mehler Vario System GmbH,"2,913.70",
201906,2.01906E+11,B2312,Inventories/Stocks - Uniforms - Purchases,Mehler Vario System GmbH,807.8,
201906,2.01906E+11,B2312,Inventories/Stocks - Uniforms - Purchases,Mehler Vario System GmbH,717,
201906,2.01906E+11,B2312,Inventories/Stocks - Uniforms - Purchases,Mehler Vario System GmbH,"2,913.00",
201906,2.01906E+11,B2312,Inventories/Stocks - Uniforms - Purchases,Mehler Vario System GmbH,"6,023.70",
201906,2.01906E+11,B2312,Inventories/Stocks - Uniforms - Purchases,Mehler Vario System GmbH,757.8,
201906,2.01906E+11,B2312,Inventories/Stocks - Uniforms - Purchases,Mehler Vario System GmbH,"1,823.50",
201906,2.01906E+11,B2312,Inventories/Stocks - Uniforms - Purchases,Mehler Vario System GmbH,632.8,
201906,2.01906E+11,B2312,Inventories/Stocks - Uniforms - Purchases,Mehler Vario System GmbH,713.6,
201906,2.01906E+11,B2312,Inventories/Stocks - Uniforms - Purchases,Peter Jones (ILG) Ltd,744,
201906,2.01906E+11,B2312,Inventories/Stocks - Uniforms - Purchases,C W Headdress Ltd,936,
201906,2.01906E+11,B2312,Inventories/Stocks - Uniforms - Purchases,C W Headdress Ltd,860,
201906,2.01906E+11,B2312,Inventories/Stocks - Uniforms - Purchases,Niton Equipment Ltd,"5,640.00",
201906,2.01906E+11,B2312,Inventories/Stocks - Uniforms - Purchases,Edgar Brothers,"1,219.90",
201906,2.01906E+11,R4400,Books & Publications,LexisNexis UK,"15,162.08",
201906,2.01906E+11,R4400,Books & Publications,Thomson Reuters,"9,908.77",
201906,2.01906E+11,B2312,Inventories/Stocks - Uniforms - Purchases,Hi-tec Europe Ltd,540,
201906,2.01906E+11,B2312,Inventories/Stocks - Uniforms - Purchases,Motorola Ltd,"2,480.00",
201906,2.01906E+11,B2312,Inventories/Stocks - Uniforms - Purchases,Price Western Leather Co Ltd,830.7,
201906,2.01906E+11,B2312,Inventories/Stocks - Uniforms - Purchases,Price Western Leather Co Ltd,830.7,
201906,2.01906E+11,B2312,Inventories/Stocks - Uniforms - Purchases,Michael Lupton Associates Ltd,"3,627.50",
201906,2.01906E+11,R7290,Other Third Party Payments,Cumbria County Council,"50,000.00",
201906,2.01906E+11,R5325,Computer Software - Maintenance,Cubic Transportation Systems (ITMS) Limited,"9,755.00",
201906,2.01906E+11,R5600,Postage Costs,Royal Mail,906.22,
201906,2.01906E+11,R5600,Postage Costs,Royal Mail,"1,788.98",
201906,2.01906E+11,R5600,Postage Costs,Royal Mail,"1,575.31",
201906,2.01906E+11,R5600,Postage Costs,Royal Mail,"1,638.47",
201906,2.01906E+11,R5600,Postage Costs,Royal Mail,"1,885.69",
201906,2.01906E+11,R5600,Postage Costs,Royal Mail,"1,565.85",
201906,2.01906E+11,R5600,Postage Costs,Royal Mail,"1,153.40",
201906,2.01906E+11,R1150,Gym Equipment - Purchase,PSS Home Entertainment Ltd (Penrith Satellite Systems),675,
201906,2.01906E+11,R3745,Travel - Public Transport,Capita Travel and Events,659.4,
201906,2.01906E+11,R6840,Hotel Accommodation,Capita Travel and Events,844.04,
201906,2.01906E+11,R3745,Travel - Public Transport,Capita Travel and Events,626.7,
201906,2.01906E+11,R1265,Employee Insurance - Supt. Association,Police Superintendents Association,"1,196.00",
201906,2.01906E+11,B4006,Provision for Insurance Liabilities - Drawdown from Provision - Own Counsel's Costs,Atlantic Chambers,"1,020.00",
201906,2.01906E+11,R6660,Counsel Fees,Atlantic Chambers,"1,080.00",
201906,2.01906E+11,B4006,Provision for Insurance Liabilities - Drawdown from Provision - Own Counsel's Costs,Atlantic Chambers,900,
201906,2.01906E+11,B4006,Provision for Insurance Liabilities - Drawdown from Provision - Own Counsel's Costs,Atlantic Chambers,"1,800.00",
201906,2.01906E+11,B4003,disclosure of information would breach the Data Protection Act 1998,disclosure of information would breach the Data Protection Act 1998,"1,000.00",
201906,2.01906E+11,B4003,disclosure of information would breach the Data Protection Act 1998,disclosure of information would breach the Data Protection Act 1998,"10,000.00",
201906,2.01906E+11,R6660,Counsel Fees,Trinity Chambers (Newcastle-upon-Tyne),"3,000.00",
201906,2.01906E+11,B4003,disclosure of information would breach the Data Protection Act 1998,disclosure of information would breach the Data Protection Act 1998,"1,000.00",
201906,2.01906E+11,B4004,disclosure of information would breach the Data Protection Act 1998,disclosure of information would breach the Data Protection Act 1998,633.78,
201906,2.01906E+11,B4003,disclosure of information would breach the Data Protection Act 1998,disclosure of information would breach the Data Protection Act 1998,"4,800.00",
201906,2.01906E+11,B4004,disclosure of information would breach the Data Protection Act 1998,disclosure of information would breach the Data Protection Act 1998,"17,000.00",
201906,2.01906E+11,R6642,Court Fees,Her Majesty's Courts & Tribunal Service (HMCTS),567,
201906,2.01906E+11,B4005,Provision for Insurance Liabilities - Drawdown from Provision - Own Solicitor's Costs,Plexus Law,"4,164.50",
201906,2.01906E+11,B4007,Provision for Insurance Liabilities - Drawdown from Provision - Disbursements,Plexus Law,"1,925.00",
201906,2.01906E+11,B4005,Provision for Insurance Liabilities - Drawdown from Provision - Own Solicitor's Costs,Plexus Law,"2,337.50",
201906,2.01906E+11,B4005,Provision for Insurance Liabilities - Drawdown from Provision - Own Solicitor's Costs,Plexus Law,"2,100.00",
201906,2.01906E+11,B4053,Provision for Legal Claims - Drawdown from Provision,5 Essex Court,540,
201906,2.01906E+11,R1116,Medical Consultants,Dr Gareth Vincenti,700,
201906,2.01906E+11,R1136,Blood Screening,Kays Medical Limited,"2,909.78",
201906,2.01906E+11,R1220,Benevolent Fund Expenses,North West Police Benevolent Fund,"20,000.00",
201906,2.01906E+11,R1110,Force Doctor Fees,Redacted: Personal Information,"1,150.00",
201906,2.01906E+11,R1110,Force Doctor Fees,Redacted: Personal Information,575,
201906,2.01906E+11,R1110,Force Doctor Fees,Redacted: Personal Information,"1,150.00",
201906,2.01906E+11,R0570,Volunteer Expenses,William Leece (Police Volunter 6266),780.2,
201906,2.01906E+11,R1630,Other Operational Training,QA Training Ltd,700,
201906,2.01906E+11,R0500,Agency Staff,Comensura Ltd,695.27,
201906,2.01906E+11,R0500,Agency Staff,Comensura Ltd,"1,818.30",
201906,2.01906E+11,R0500,Agency Staff,Comensura Ltd,"2,927.06",
201906,2.01906E+11,R0500,Agency Staff,Comensura Ltd,525.12,
201906,2.01906E+11,R0500,Agency Staff,Comensura Ltd,"2,250.05",
201906,2.01906E+11,R0500,Agency Staff,Comensura Ltd,667.94,
201906,2.01906E+11,R0500,Agency Staff,Comensura Ltd,"1,974.02",
201906,2.01906E+11,R0500,Agency Staff,Comensura Ltd,"2,250.05",
201906,2.01906E+11,R0500,Agency Staff,Comensura Ltd,619.68,
201906,2.01906E+11,R0500,Agency Staff,Comensura Ltd,"3,649.00",
201906,2.01906E+11,R0500,Agency Staff,Comensura Ltd,"2,801.12",
201906,2.01906E+11,R0500,Agency Staff,Comensura Ltd,555.5,
201906,2.01906E+11,R0500,Agency Staff,Comensura Ltd,"2,264.05",
201906,2.01906E+11,R1110,Force Doctor Fees,Comensura Ltd,"1,389.53",
201906,2.01906E+11,R0500,Agency Staff,Comensura Ltd,703.46,
201906,2.01906E+11,R0500,Agency Staff,Comensura Ltd,"1,464.56",
201906,2.01906E+11,R0500,Agency Staff,Comensura Ltd,"2,148.74",
201906,2.01906E+11,R0500,Agency Staff,Comensura Ltd,"2,250.05",
201906,2.01906E+11,R0500,Agency Staff,Comensura Ltd,619.68,
201906,2.01906E+11,R0500,Agency Staff,Comensura Ltd,"1,714.74",
201906,2.01906E+11,R0500,Agency Staff,Comensura Ltd,"2,264.05",
201906,2.01906E+11,R0500,Agency Staff,Comensura Ltd,619.68,
201906,2.01906E+11,R0500,Agency Staff,Comensura Ltd,"2,929.12",
201906,2.01906E+11,R0500,Agency Staff,Comensura Ltd,"1,707.50",
201906,2.01906E+11,R0500,Agency Staff,Comensura Ltd,"1,358.43",
201906,2.01906E+11,R0500,Agency Staff,Comensura Ltd,658.41,
201906,2.01906E+11,R0500,Agency Staff,Comensura Ltd,"1,464.56",
201906,2.01906E+11,R0500,Agency Staff,Comensura Ltd,"2,310.99",
201906,2.01906E+11,R1110,Force Doctor Fees,Comensura Ltd,"1,379.83",
201906,2.01906E+11,R0500,Agency Staff,Comensura Ltd,"1,009.82",
201906,2.01906E+11,R0500,Agency Staff,Comensura Ltd,"1,830.70",
201906,2.01906E+11,R0500,Agency Staff,Comensura Ltd,"2,481.24",
201906,2.01906E+11,R0500,Agency Staff,Comensura Ltd,"5,886.53",
201906,2.01906E+11,R0500,Agency Staff,Comensura Ltd,"1,851.45",
201906,2.01906E+11,R1110,Force Doctor Fees,Comensura Ltd,519.64,
201906,2.01906E+11,R0500,Agency Staff,Comensura Ltd,"1,708.20",
201906,2.01906E+11,R0500,Agency Staff,Comensura Ltd,"3,661.40",
201906,2.01906E+11,R0500,Agency Staff,Comensura Ltd,"4,157.17",
201906,2.01906E+11,R0500,Agency Staff,Comensura Ltd,696.79,
201906,2.01906E+11,R0500,Agency Staff,Comensura Ltd,"2,272.45",
201906,2.01906E+11,R1110,Force Doctor Fees,Comensura Ltd,"1,388.33",
201906,2.01906E+11,R0500,Agency Staff,Comensura Ltd,"2,880.06",
201906,2.01906E+11,R0500,Agency Staff,Comensura Ltd,873.94,
201906,2.01906E+11,R0500,Agency Staff,Comensura Ltd,"2,264.05",
201906,2.01906E+11,R5946,Vetting Checks,UKSV (UK Security Vetting),"2,698.00",
201906,2.01906E+11,R1126,GP Records,Police and Crime Commissioner for Thames Valley,851,
201906,2.01906E+11,R1138,Psychological Screening,NTA Psychological Screening Ltd,"1,027.85",
201906,2.01906E+11,R1138,Psychological Screening,NTA Psychological Screening Ltd,"1,060.00",
201906,2.01906E+11,R1070,External Assessment Centres,College of Policing (NPIA),"3,925.88",
201906,2.01906E+11,R1720,Other Support Function Training,Police and Crime Commissioner for Hampshire Constabulary,598,
201906,2.01906E+11,R5980,Firearms Equipment,Law Enforcement International Ltd,615,
201906,2.01906E+11,R5912,Police Dogs - Feed,Royal Canin (Crown Pet Foods Ltd),"1,570.43",
201906,2.01906E+11,R4630,Detained Persons - Appropriate Adult Services,Child Action North West,"10,750.40",
201906,2.01906E+11,R4630,Detained Persons - Appropriate Adult Services,Child Action North West,"13,225.80",
201906,2.01906E+11,R5980,Firearms Equipment,Sellox Limited,"2,990.00",
201906,2.01906E+11,R5910,disclosure of information would breach the Data Protection Act 1998,disclosure of information would breach the Data Protection Act 1998,"2,200.00",
201906,2.01906E+11,R5865,Operational Equipment - Other,Grahams Power Washers,693.44,
201906,2.01906E+11,R5865,Operational Equipment - Other,Earle International,907.2,
201906,2.01906E+11,R5916,Police Dogs - Vets Fees,Frame & Swift,983.03,
201906,2.01906E+11,R4625,Detained Persons - Laundry,Shortridge Laundry,750,
201906,2.01906E+11,R4625,Detained Persons - Laundry,Shortridge Laundry,608.89,
201906,2.01906E+11,R4625,Detained Persons - Laundry,Shortridge Laundry,818.28,
201906,2.01906E+11,R4625,Detained Persons - Laundry,Shortridge Laundry,722.98,
201906,2.01906E+11,R6702,Confiscated Animal Costs,Whinmill Farm,"6,808.80",
201906,2.01906E+11,R6702,Confiscated Animal Costs,Whinmill Farm,"4,583.00",
201906,2.01906E+11,R6702,Confiscated Animal Costs,Whinmill Farm,"5,042.46",
201906,2.01906E+11,R4900,Custody Medical Contract,G4S Health Services (UK) Ltd,"107,330.20",
201906,2.01906E+11,R4900,Custody Medical Contract,G4S Health Services (UK) Ltd,"107,330.20",
201906,2.01906E+11,R5918,Police Dogs - Other Maintenance,Safe Solutions (Safe4) Ltd,"2,500.00",
201906,2.01906E+11,R7060,Underwater Search,Police and Crime Commissioner for Cheshire,"43,403.08",
201906,2.01906E+11,R4625,Detained Persons - Laundry,Shortridge Laundry,"1,228.08",
201906,2.01906E+11,R4625,Detained Persons - Laundry,Shortridge Laundry,"1,669.05",
201906,2.01906E+11,R4605,Detained Persons - Clothing,Charles Fellows Supplies Limited,540,
201906,2.01906E+11,R4620,Detained Persons - Consumables,Charles Fellows Supplies Limited,900,
201906,2.01906E+11,R6610,Vehicle Recovery Costs,FMG Support (RRRM) Ltd,"2,149.60",
201906,2.01906E+11,R6610,Vehicle Recovery Costs,FMG Support (RRRM) Ltd,"1,796.30",
201906,2.01906E+11,R5980,Firearms Equipment,Viking Arms Ltd,"22,850.00",
201906,2.01906E+11,R5980,Firearms Equipment,Viking Arms Ltd,"1,654.00",
201906,2.01906E+11,R5980,Firearms Equipment,Arco Limited,525,
201906,2.01906E+11,R4600,Detained Persons - Meals / Refreshments,Bidfood,719.05,
201906,2.01906E+11,R4600,Detained Persons - Meals / Refreshments,Bidfood,"1,089.61",
201906,2.01906E+11,R5980,Firearms Equipment,Primetake Ltd,"1,300.00",
201906,2.01906E+11,R5980,Firearms Equipment,Primetake Ltd,"7,893.00",
201906,2.01906E+11,R1630,Other Operational Training,Police and Crime Commissioner for Greater Manchester,"5,799.50",
201906,2.01906E+11,R1630,Other Operational Training,Police and Crime Commissioner for Greater Manchester,"5,799.50",
201906,2.01906E+11,R1630,Other Operational Training,Police and Crime Commissioner for Greater Manchester,"5,100.00",
201906,2.01906E+11,R1630,Other Operational Training,Police and Crime Commissioner for Greater Manchester,838.75,
201906,2.01906E+11,R1630,Other Operational Training,Police and Crime Commissioner for Greater Manchester,838.75,
201906,2.01906E+11,R4600,Detained Persons - Meals / Refreshments,Bidfood,615.29,
201906,2.01906E+11,R4950,Interpreters Fees - Face to Face,Capita Translation and Interpreting (Applied Language Solutions Ltd),"3,307.04",
201906,2.01906E+11,R4955,Interpreters Fees - Telephone,Capita Translation and Interpreting (Applied Language Solutions Ltd),"1,107.00",
201906,2.01906E+11,R4960,Interpreters Fees - Translation (Written),Capita Translation and Interpreting (Applied Language Solutions Ltd),557,
201906,2.01906E+11,R4950,Interpreters Fees - Face to Face,Capita Translation and Interpreting (Applied Language Solutions Ltd),"2,598.10",
201906,2.01906E+11,R5980,Firearms Equipment,Point South Limited,"1,445.00",
201906,2.01906E+11,R5980,Firearms Equipment,GMK Limited,"2,577.00",
201906,2.01906E+11,R5980,Firearms Equipment,GMK Limited,"5,461.00",
201906,2.01906E+11,R5980,Firearms Equipment,GMK Limited,"4,450.00",
201906,2.01906E+11,R5835,Operational Equipment - Testing Kits & Consumables,D TEC International Ltd,"5,277.00",
201906,2.01906E+11,R1630,Other Operational Training,The Atacc Group (Promedsol),"1,980.00",
201906,2.01906E+11,R5760,Operational Equipment - TASER,Niton Equipment Ltd,665,
201906,2.01906E+11,R1630,Other Operational Training,College of Policing (NPIA),"1,607.00",
201906,2.01906E+11,R5865,Operational Equipment - Other,S P Services (UK) Ltd,"1,500.00",
201906,2.01906E+11,R5865,Operational Equipment - Other,BT Business Direct Ltd,"1,781.00",
201906,2.01906E+11,R7008,CCC - Safeguarding Vulnerable People,Cumbria County Council,"10,000.00",
201906,2.01906E+11,R5835,Operational Equipment - Testing Kits & Consumables,Scenesafe Previously (WA Products (UK) Ltd),585,
201906,2.01906E+11,R4705,Forensic Analysis - Over Prescribed Limit,Key Forensic Services Ltd (Orange UK Holdings Ltd),994,
201906,2.01906E+11,R4705,Forensic Analysis - Over Prescribed Limit,Key Forensic Services Ltd (Orange UK Holdings Ltd),"1,404.53",
201906,2.01906E+11,R4705,Forensic Analysis - Over Prescribed Limit,Key Forensic Services Ltd (Orange UK Holdings Ltd),823.5,
201906,2.01906E+11,R4710,Forensic Analysis - Serious Crime,Key Forensic Services Ltd (Orange UK Holdings Ltd),"3,909.50",
201906,2.01906E+11,R4715,Forensic Analysis - Volume Crime,Key Forensic Services Ltd (Orange UK Holdings Ltd),"1,241.10",
201906,2.01906E+11,R4710,Forensic Analysis - Serious Crime,Key Forensic Services Ltd (Orange UK Holdings Ltd),510.4,
201906,2.01906E+11,R4715,Forensic Analysis - Volume Crime,Key Forensic Services Ltd (Orange UK Holdings Ltd),646.66,
201906,2.01906E+11,R4715,Forensic Analysis - Volume Crime,Key Forensic Services Ltd (Orange UK Holdings Ltd),538.56,
201906,2.01906E+11,R4705,Forensic Analysis - Over Prescribed Limit,Key Forensic Services Ltd (Orange UK Holdings Ltd),866.06,
201906,2.01906E+11,R4705,Forensic Analysis - Over Prescribed Limit,Key Forensic Services Ltd (Orange UK Holdings Ltd),"1,016.81",
201906,2.01906E+11,R4715,Forensic Analysis - Volume Crime,Key Forensic Services Ltd (Orange UK Holdings Ltd),812,
201906,2.01906E+11,R4715,Forensic Analysis - Volume Crime,Key Forensic Services Ltd (Orange UK Holdings Ltd),"1,606.30",
201906,2.01906E+11,R4710,Forensic Analysis - Serious Crime,Key Forensic Services Ltd (Orange UK Holdings Ltd),650,
201906,2.01906E+11,R4705,Forensic Analysis - Over Prescribed Limit,Key Forensic Services Ltd (Orange UK Holdings Ltd),565.5,
201906,2.01906E+11,R4715,Forensic Analysis - Volume Crime,Key Forensic Services Ltd (Orange UK Holdings Ltd),754,
201906,2.01906E+11,R4705,Forensic Analysis - Over Prescribed Limit,Key Forensic Services Ltd (Orange UK Holdings Ltd),750,
201906,2.01906E+11,R4705,Forensic Analysis - Over Prescribed Limit,Key Forensic Services Ltd (Orange UK Holdings Ltd),"1,439.34",
201906,2.01906E+11,R4705,Forensic Analysis - Over Prescribed Limit,Key Forensic Services Ltd (Orange UK Holdings Ltd),795,
201906,2.01906E+11,R4715,Forensic Analysis - Volume Crime,Key Forensic Services Ltd (Orange UK Holdings Ltd),846.32,
201906,2.01906E+11,R4710,Forensic Analysis - Serious Crime,Key Forensic Services Ltd (Orange UK Holdings Ltd),"4,455.20",
201906,2.01906E+11,R4715,Forensic Analysis - Volume Crime,Key Forensic Services Ltd (Orange UK Holdings Ltd),764.15,
201906,2.01906E+11,R4710,Forensic Analysis - Serious Crime,Key Forensic Services Ltd (Orange UK Holdings Ltd),"4,206.60",
201906,2.01906E+11,R4710,Forensic Analysis - Serious Crime,Key Forensic Services Ltd (Orange UK Holdings Ltd),910.6,
201906,2.01906E+11,R4715,Forensic Analysis - Volume Crime,Key Forensic Services Ltd (Orange UK Holdings Ltd),900,
201906,2.01906E+11,R4705,Forensic Analysis - Over Prescribed Limit,Key Forensic Services Ltd (Orange UK Holdings Ltd),"1,830.03",
201906,2.01906E+11,R4705,Forensic Analysis - Over Prescribed Limit,Key Forensic Services Ltd (Orange UK Holdings Ltd),"2,091.31",
201906,2.01906E+11,R4705,Forensic Analysis - Over Prescribed Limit,Key Forensic Services Ltd (Orange UK Holdings Ltd),774.5,
201906,2.01906E+11,R4710,Forensic Analysis - Serious Crime,Key Forensic Services Ltd (Orange UK Holdings Ltd),807.7,
201906,2.01906E+11,R4710,Forensic Analysis - Serious Crime,Key Forensic Services Ltd (Orange UK Holdings Ltd),"1,014.00",
201906,2.01906E+11,R4710,Forensic Analysis - Serious Crime,Key Forensic Services Ltd (Orange UK Holdings Ltd),"1,559.00",
201906,2.01906E+11,R4710,Forensic Analysis - Serious Crime,Key Forensic Services Ltd (Orange UK Holdings Ltd),"4,142.35",
201906,2.01906E+11,R4710,Forensic Analysis - Serious Crime,Key Forensic Services Ltd (Orange UK Holdings Ltd),"2,588.70",
201906,2.01906E+11,R4715,Forensic Analysis - Volume Crime,Key Forensic Services Ltd (Orange UK Holdings Ltd),617.3,
201906,2.01906E+11,R4710,Forensic Analysis - Serious Crime,Key Forensic Services Ltd (Orange UK Holdings Ltd),"1,545.35",
201906,2.01906E+11,R4715,Forensic Analysis - Volume Crime,Key Forensic Services Ltd (Orange UK Holdings Ltd),"1,035.30",
201906,2.01906E+11,R4715,Forensic Analysis - Volume Crime,Key Forensic Services Ltd (Orange UK Holdings Ltd),"1,856.00",
201906,2.01906E+11,R4705,Forensic Analysis - Over Prescribed Limit,Key Forensic Services Ltd (Orange UK Holdings Ltd),"1,535.53",
201906,2.01906E+11,R4705,Forensic Analysis - Over Prescribed Limit,Key Forensic Services Ltd (Orange UK Holdings Ltd),"2,191.50",
201906,2.01906E+11,R4705,Forensic Analysis - Over Prescribed Limit,Key Forensic Services Ltd (Orange UK Holdings Ltd),750,
201906,2.01906E+11,R4715,Forensic Analysis - Volume Crime,Key Forensic Services Ltd (Orange UK Holdings Ltd),619.84,
201906,2.01906E+11,R4715,Forensic Analysis - Volume Crime,Key Forensic Services Ltd (Orange UK Holdings Ltd),"1,162.20",
201906,2.01906E+11,R4710,Forensic Analysis - Serious Crime,IntaForensics Ltd,"3,428.90",
201906,2.01906E+11,R4710,Forensic Analysis - Serious Crime,IntaForensics Ltd,"2,297.55",
201906,2.01906E+11,R4710,Forensic Analysis - Serious Crime,IntaForensics Ltd,"1,870.00",
201906,2.01906E+11,R4710,Forensic Analysis - Serious Crime,IntaForensics Ltd,"1,441.60",
201906,2.01906E+11,R4710,Forensic Analysis - Serious Crime,IntaForensics Ltd,"1,955.00",
201906,2.01906E+11,R4700,Pathologists Fees,Cellular (Forensic) Pathology at the Royal Victoria Infirmary,"2,612.00",
201906,2.01906E+11,R5950,disclosure of information would breach the Data Protection Act 1998,disclosure of information would breach the Data Protection Act 1998,839.37,
201906,2.01906E+11,R5950,disclosure of information would breach the Data Protection Act 1998,disclosure of information would breach the Data Protection Act 1998,"1,633.99",
201906,2.01906E+11,R5950,disclosure of information would breach the Data Protection Act 1998,disclosure of information would breach the Data Protection Act 1998,606.32,
201906,2.01906E+11,R5950,disclosure of information would breach the Data Protection Act 1998,disclosure of information would breach the Data Protection Act 1998,555.34,
201906,2.01906E+11,R4780,CSI Consumables,Microflow (Bioquell),647.97,
201906,2.01906E+11,R4700,Pathologists Fees,Dr JL McPartland,680,
201906,2.01906E+11,R7065,TITAN - North West Collaboration,Police and Crime Commissioner for Merseyside,"2,374.17",
201906,2.01906E+11,R7065,TITAN - North West Collaboration,Police and Crime Commissioner for Merseyside,"6,931.50",
201906,2.01906E+11,R7065,TITAN - North West Collaboration,Police and Crime Commissioner for Merseyside,"5,841.50",
201906,2.01906E+11,R7065,TITAN - North West Collaboration,Police and Crime Commissioner for Merseyside,"35,773.08",
201906,2.01906E+11,R7065,TITAN - North West Collaboration,Police and Crime Commissioner for Merseyside,"32,259.63",
201906,2.01906E+11,R7065,TITAN - North West Collaboration,Police and Crime Commissioner for Merseyside,"17,274.11",
201906,2.01906E+11,R7065,TITAN - North West Collaboration,Police and Crime Commissioner for Merseyside,"37,574.90",
201906,2.01906E+11,R5950,disclosure of information would breach the Data Protection Act 1998,disclosure of information would breach the Data Protection Act 1998,649.31,
201906,2.01906E+11,R5950,disclosure of information would breach the Data Protection Act 1998,disclosure of information would breach the Data Protection Act 1998,604.84,
201906,2.01906E+11,R5950,disclosure of information would breach the Data Protection Act 1998,disclosure of information would breach the Data Protection Act 1998,535.87,
201906,2.01906E+11,R5950,disclosure of information would breach the Data Protection Act 1998,disclosure of information would breach the Data Protection Act 1998,536.09,
201906,2.01906E+11,R5950,disclosure of information would breach the Data Protection Act 1998,disclosure of information would breach the Data Protection Act 1998,648.76,
201906,2.01906E+11,R5950,disclosure of information would breach the Data Protection Act 1998,disclosure of information would breach the Data Protection Act 1998,601.92,
201906,2.01906E+11,R5950,disclosure of information would breach the Data Protection Act 1998,disclosure of information would breach the Data Protection Act 1998,"1,172.80",
201906,2.01906E+11,R5950,disclosure of information would breach the Data Protection Act 1998,disclosure of information would breach the Data Protection Act 1998,"1,088.70",
201906,2.01906E+11,R4845,Expert Witness Testimony / Reports,Quantis Limited,522,
201906,2.01906E+11,R1610,CID Training,ABM Intelligence Ltd,"1,020.00",
201906,2.01906E+11,R5940,disclosure of information would breach the Data Protection Act 1998,disclosure of information would breach the Data Protection Act 1998,"1,660.68",
201906,2.01906E+11,R5940,disclosure of information would breach the Data Protection Act 1998,disclosure of information would breach the Data Protection Act 1998,"1,581.19",
201906,2.01906E+11,R4715,Forensic Analysis - Volume Crime,Orchid Cellmark Ltd,741,
201906,2.01906E+11,R4715,Forensic Analysis - Volume Crime,Orchid Cellmark Ltd,930,
201906,2.01906E+11,R4710,Forensic Analysis - Serious Crime,Orchid Cellmark Ltd,548,
201906,2.01906E+11,R4710,Forensic Analysis - Serious Crime,Orchid Cellmark Ltd,896,
201906,2.01906E+11,R4715,Forensic Analysis - Volume Crime,Orchid Cellmark Ltd,896,
201906,2.01906E+11,R4715,Forensic Analysis - Volume Crime,Orchid Cellmark Ltd,896,
201906,2.01906E+11,R4710,Forensic Analysis - Serious Crime,Orchid Cellmark Ltd,"2,677.60",
201906,2.01906E+11,R4710,Forensic Analysis - Serious Crime,Orchid Cellmark Ltd,630,
201906,2.01906E+11,R4710,Forensic Analysis - Serious Crime,Orchid Cellmark Ltd,"1,769.00",
201906,2.01906E+11,R4710,Forensic Analysis - Serious Crime,Orchid Cellmark Ltd,"1,498.40",
201906,2.01906E+11,R4715,Forensic Analysis - Volume Crime,Orchid Cellmark Ltd,896,
201906,2.01906E+11,R4700,disclosure of information would breach the Data Protection Act 1998,disclosure of information would breach the Data Protection Act 1998,"2,698.02",
201906,2.01906E+11,R5820,Operational Equipment - Domestic Violence Alarms,Vodafone Limited,834,
201906,2.01906E+11,R5867,Operational Equipment - Maintenance,Optimum,585,
201906,2.01906E+11,R1610,CID Training,College of Policing (NPIA),"1,228.00",
201906,2.01906E+11,R1630,Other Operational Training,College of Policing (NPIA),"7,476.00",
201906,2.01906E+11,R1630,Other Operational Training,College of Policing (NPIA),950,
201906,2.01906E+11,R7135,disclosure of information would breach the Data Protection Act 1998,disclosure of information would breach the Data Protection Act 1998,"3,197.25",
201906,2.01906E+11,R5950,disclosure of information would breach the Data Protection Act 1998,disclosure of information would breach the Data Protection Act 1998,932.84,
201906,2.01906E+11,R4720,Forensic Analysis - PACE / DNA,Eurofins Forensic Services Ltd,"1,736.45",
201906,2.01906E+11,R4720,Forensic Analysis - PACE / DNA,Eurofins Forensic Services Ltd,651.69,
201906,2.01906E+11,R4720,Forensic Analysis - PACE / DNA,Eurofins Forensic Services Ltd,"2,515.59",
201906,2.01906E+11,R4720,Forensic Analysis - PACE / DNA,Eurofins Forensic Services Ltd,"2,315.07",
201906,2.01906E+11,R6750,Consultants Fees - Other,United Kingdom Accreditation Service (UKAS),"10,646.00",
201906,2.01906E+11,R5805,Operational Equipment - Recordable Media,Banner Group Limited (Previously Supplies Team Limited),614.4,
201906,2.01906E+11,R5600,Postage Costs,Pitney Bowes Ltd,"2,848.56",
201906,2.01906E+11,R5600,Postage Costs,Pitney Bowes Ltd,"9,102.04",
201906,2.01906E+11,R5630,Courier Services - Internal Deliveries,Cumbria County Council,"3,047.80",
201906,2.01906E+11,R5630,Courier Services - Internal Deliveries,Cumbria County Council,"3,200.19",
201906,2.01906E+11,R4090,The information is confidential or would attract an exemption under the Freedom of Information Act e.g. where disclosure could be prejudicial to the commercial interests of any person including the authority,The information is confidential or would attract an exemption under the Freedom of Information Act e.g. where disclosure could be prejudicial to the commercial interests of any person including the authority,542.01,
201906,2.01906E+11,R4090,The information is confidential or would attract an exemption under the Freedom of Information Act e.g. where disclosure could be prejudicial to the commercial interests of any person including the authority,The information is confidential or would attract an exemption under the Freedom of Information Act e.g. where disclosure could be prejudicial to the commercial interests of any person including the authority,587.37,
201906,2.01906E+11,R4090,The information is confidential or would attract an exemption under the Freedom of Information Act e.g. where disclosure could be prejudicial to the commercial interests of any person including the authority,The information is confidential or would attract an exemption under the Freedom of Information Act e.g. where disclosure could be prejudicial to the commercial interests of any person including the authority,886.26,
201906,2.01906E+11,R4090,The information is confidential or would attract an exemption under the Freedom of Information Act e.g. where disclosure could be prejudicial to the commercial interests of any person including the authority,The information is confidential or would attract an exemption under the Freedom of Information Act e.g. where disclosure could be prejudicial to the commercial interests of any person including the authority,549.36,
201906,2.01906E+11,R4090,The information is confidential or would attract an exemption under the Freedom of Information Act e.g. where disclosure could be prejudicial to the commercial interests of any person including the authority,The information is confidential or would attract an exemption under the Freedom of Information Act e.g. where disclosure could be prejudicial to the commercial interests of any person including the authority,604.53,
201906,2.01906E+11,R4090,The information is confidential or would attract an exemption under the Freedom of Information Act e.g. where disclosure could be prejudicial to the commercial interests of any person including the authority,The information is confidential or would attract an exemption under the Freedom of Information Act e.g. where disclosure could be prejudicial to the commercial interests of any person including the authority,854.49,
201906,2.01906E+11,R6850,Hotel Accommodation - Training,Police and Crime Commissioner for Cheshire,"1,007.96",
201906,2.01906E+11,R6850,Hotel Accommodation - Training,Capita Travel and Events,516.66,
201906,2.01906E+11,R6850,Hotel Accommodation - Training,Capita Travel and Events,533.34,
201906,2.01906E+11,R6850,Hotel Accommodation - Training,Capita Travel and Events,975,
201906,2.01906E+11,R6850,Hotel Accommodation - Training,Capita Travel and Events,650,
201906,2.01906E+11,R6850,Hotel Accommodation - Training,Capita Travel and Events,683.34,
201906,2.01906E+11,R6850,Hotel Accommodation - Training,Capita Travel and Events,"4,432.00",
201906,2.01906E+11,R6850,Hotel Accommodation - Training,Capita Travel and Events,"1,100.00",
201906,2.01906E+11,R6850,Hotel Accommodation - Training,Capita Travel and Events,576,
201906,2.01906E+11,R6850,Hotel Accommodation - Training,Capita Travel and Events,"2,450.00",
201906,2.01906E+11,R6850,Hotel Accommodation - Training,Capita Travel and Events,768,
201906,2.01906E+11,R6850,Hotel Accommodation - Training,Capita Travel and Events,800,
201906,2.01906E+11,R6850,Hotel Accommodation - Training,Capita Travel and Events,609,
201906,2.01906E+11,R6850,Hotel Accommodation - Training,Capita Travel and Events,"2,050.00",
201906,2.01906E+11,R6850,Hotel Accommodation - Training,Capita Travel and Events,"1,250.00",
201906,2.01906E+11,R6840,Hotel Accommodation,Capita Travel and Events,"1,093.02",
201906,2.01906E+11,R6850,Hotel Accommodation - Training,Capita Travel and Events,"1,040.00",
201906,2.01906E+11,R6850,Hotel Accommodation - Training,Capita Travel and Events,600,
201906,2.01906E+11,R6850,Hotel Accommodation - Training,Capita Travel and Events,"1,377.50",
201906,2.01906E+11,R6840,Hotel Accommodation,Capita Travel and Events,597.04,
201906,2.01906E+11,R6840,Hotel Accommodation,Capita Travel and Events,"1,155.00",
201906,2.01906E+11,R6850,Hotel Accommodation - Training,Capita Travel and Events,"2,097.30",
201906,2.01906E+11,R6850,Hotel Accommodation - Training,Capita Travel and Events,"4,634.53",
201906,2.01906E+11,R3790,Other Travel,Capita Travel and Events,969,
201906,2.01906E+11,R6850,Hotel Accommodation - Training,Capita Travel and Events,"2,461.75",
201906,2.01906E+11,R6850,Hotel Accommodation - Training,Capita Travel and Events,785.84,
201906,2.01906E+11,R6850,Hotel Accommodation - Training,Capita Travel and Events,"3,780.51",
201906,2.01906E+11,R6850,Hotel Accommodation - Training,Capita Travel and Events,584,
201906,2.01906E+11,R6850,Hotel Accommodation - Training,Capita Travel and Events,652,
201906,2.01906E+11,R1720,Other Support Function Training,MHR International UK LTD,"1,250.00",
201906,2.01906E+11,R3605,Vehicle Hire - Training,Enterprise Rent-a-car UK Limited,764.25,
201906,2.01906E+11,R3605,Vehicle Hire - Training,Enterprise Rent-a-car UK Limited,819.25,
201906,2.01906E+11,R3605,Vehicle Hire - Training,Enterprise Rent-a-car UK Limited,536.75,
201906,2.01906E+11,R3605,Vehicle Hire - Training,Enterprise Rent-a-car UK Limited,791,
201906,2.01906E+11,R3605,Vehicle Hire - Training,Enterprise Rent-a-car UK Limited,791,
201906,2.01906E+11,R3600,Vehicle Hire - Short term,Enterprise Rent-a-car UK Limited,555.34,
201906,2.01906E+11,R5600,Postage Costs,Royal Mail,787,
201906,2.01906E+11,R5600,Postage Costs,Royal Mail,787,
201906,2.01906E+11,R6850,Hotel Accommodation - Training,College of Policing (NPIA),"1,150.00",
201906,2.01906E+11,R6850,Hotel Accommodation - Training,College of Policing (NPIA),745,
201906,2.01906E+11,R6850,Hotel Accommodation - Training,College of Policing (NPIA),-745,
201906,2.01906E+11,R6850,Hotel Accommodation - Training,College of Policing (NPIA),745,
201906,2.01906E+11,R6785,Contributions - PCC Commissioning Services,Carlisle and District Youthwork Partnership,"6,650.00",
201906,2.01906E+11,R7290,Other Third Party Payments,Carlisle City Council,"2,772.96",
201906,2.01906E+11,R4420,Newspapers & Periodicals,King Street News,618.4,
201906,2.01906E+11,R6785,Contributions - PCC Commissioning Services,Triple A Project (All About Autism),"2,500.00",
201906,2.01906E+11,R2600,Rent,Cumbria Partnership NHS Foundation Trust,"1,400.00",
201906,2.01906E+11,R2700,Cleaning Contract,Cumbria Partnership NHS Foundation Trust,"2,186.25",
201906,2.01906E+11,R4920,SARC Doctors,G4S Health Services (UK) Ltd,"19,172.42",
201906,2.01906E+11,R4920,SARC Doctors,G4S Health Services (UK) Ltd,"19,172.42",
201906,2.01906E+11,R6785,Contributions - PCC Commissioning Services,Victim Support,"45,404.33",
201906,2.01906E+11,R6785,Contributions - PCC Commissioning Services,Victim Support,"18,688.34",
201906,2.01906E+11,R6785,Contributions - PCC Commissioning Services,Victim Support,"14,934.08",
201906,2.01906E+11,R6785,Contributions - PCC Commissioning Services,Victim Support,"18,688.34",
201906,2.01906E+11,R6785,Contributions - PCC Commissioning Services,Dignity in Dementia,"2,166.67",
201906,2.01906E+11,R6785,Contributions - PCC Commissioning Services,Jayne Kell 6287,"6,650.00",
201906,2.01906E+11,R6785,Contributions - PCC Commissioning Services,Barrow AFC Community Initiative,"4,550.00",
201906,2.01906E+11,R6785,Contributions - PCC Commissioning Services,Leaders Unlocked Limited,"8,294.00",
201906,2.01906E+11,R6830,External Audit Fee,Grant Thornton UK LLP,"5,840.00",
201906,2.01906E+11,R6785,Contributions - PCC Commissioning Services,Restorative Solutions CIC,"11,250.00",
201906,2.01906E+11,R6710,Subscriptions,Independent Custody Visiting Association ICVA,700,
201906,2.01906E+11,R6785,Contributions - PCC Commissioning Services,Remedi-Restorative Services,"9,041.63",
201906,2.01906E+11,R6785,Contributions - PCC Commissioning Services,Remedi-Restorative Services,"2,600.00",
201906,2.01906E+11,R1720,Other Support Function Training,On the Up Consulting,"1,660.40",
201906,2.01906E+11,R6785,Contributions - PCC Commissioning Services,Crimestoppers Trust,"8,219.10",
201906,2.01906E+11,R6710,Subscriptions,CPOSA,"3,074.00",
201906,2.01906E+11,R6710,Subscriptions,Association of Police and Crime Commissioners,"22,389.00",
201906,2.01906E+11,R6710,Subscriptions,Police Authority Treasurers' Society,"2,583.00",
201906,2.01906E+11,R7090,Other Collaboration Payments,Cumbria County Council,"3,623.00",
201906,2.01906E+11,R7090,Other Collaboration Payments,Police and Crime Commissioner for Cheshire,"6,691.09",
201906,2.01906E+11,R7090,Other Collaboration Payments,Police and Crime Commissioner for Cheshire,"4,636.43",
201906,2.01906E+11,R7090,Other Collaboration Payments,Police and Crime Commissioner for Cheshire,"2,881.95",
201906,2.01906E+11,R7090,Other Collaboration Payments,Police and Crime Commissioner for Lancashire,"2,221.67",
201906,2.01906E+11,R7090,Other Collaboration Payments,Police and Crime Commissioner for Lancashire,"1,838.73",
201906,2.01906E+11,R7090,Other Collaboration Payments,Police and Crime Commissioner for Lancashire,"4,593.93",
201906,2.01906E+11,R7290,Other Third Party Payments,University of Kent,"106,477.00",
201906,2.01906E+11,R3745,Travel - Public Transport,Capita Travel and Events,583.5,
201906,2.01906E+11,R3745,Travel - Public Transport,Capita Travel and Events,"1,361.50",
Period,Unique Record Identifier,Account,Account Code Description,Supplier Name,Amount ,
201909,2.01909E+11,R6780,Grants & Donations,Women's Aid Federation of England,"4,010.18",
201909,2.01909E+11,R6840,Hotel Accommodation,Shap Wells Hotel,"3,333.33",
201909,2.01909E+11,R5965,Crime Prevention - Labour Costs / Fitting,Mark Tubman (Locksmith & Joinery),"1,750.00",
201909,2.01909E+11,R5965,Crime Prevention - Labour Costs / Fitting,Mark Tubman (Locksmith & Joinery),550,
201909,2.01909E+11,R5965,Crime Prevention - Labour Costs / Fitting,Solon Security Limited,"1,350.00",
201909,2.01909E+11,R3745,Travel - Public Transport,Capita Travel and Events,662.4,
201909,2.01909E+11,R3745,Travel - Public Transport,Capita Travel and Events,662.4,
201909,2.01909E+11,R3745,Travel - Public Transport,Capita Travel and Events,-602.4,
201909,2.01909E+11,R6840,Hotel Accommodation,Capita Travel and Events,"-1,000.01",
201909,2.01909E+11,R6840,Hotel Accommodation,Capita Travel and Events,"2,400.00",
201909,2.01909E+11,R5960,Community Initiatives - Activities & Competitions,Onside Sports Development,750,
201909,2.01909E+11,R6840,Hotel Accommodation,Capita Travel and Events,649.99,
201909,2.01909E+11,R6840,Hotel Accommodation,Capita Travel and Events,577.65,
201909,2.01909E+11,R4300,Furniture - General,Gresham Office Furniture,"1,892.40",
201909,2.01909E+11,R4300,Furniture - General,Gresham Office Furniture,"-1,216.00",
201909,2.01909E+11,R3660,Vehicle Hire - Long Term,Redacted: The information is confidential or would attract an exemption under the Freedom of Information Act e.g. where disclosure could be prejudicial to the commercial interests of any person including the authority,"1,782.00",
201909,2.01909E+11,R3660,Vehicle Hire - Long Term,Redacted: The information is confidential or would attract an exemption under the Freedom of Information Act e.g. where disclosure could be prejudicial to the commercial interests of any person including the authority,"1,980.00",
201909,2.01909E+11,R3660,Vehicle Hire - Long Term,Redacted: The information is confidential or would attract an exemption under the Freedom of Information Act e.g. where disclosure could be prejudicial to the commercial interests of any person including the authority,"1,980.00",
201909,2.01909E+11,R2600,Rent,Reed Rains,750,
201909,2.01909E+11,R2600,Rent,Reed Rains,750,
201909,2.01909E+11,R2600,Rent,Reed Rains,750,
201909,2.01909E+11,R4155,External Printing,Liberty Printers (A.R. & R.F. Reddin) Ltd,"2,124.00",
201909,2.01909E+11,R6750,Consultants Fees - Other,SMSR Ltd,602,
201909,2.01909E+11,R6750,Consultants Fees - Other,SMSR Ltd,609,
201909,2.01909E+11,R6750,Consultants Fees - Other,SMSR Ltd,651,
201909,2.01909E+11,R4155,External Printing,Harlow Printing Ltd,"2,297.00",
201909,2.01909E+11,R5350,Web Design & Running Costs,GETTY IMAGES INTERNATIONAL,"1,000.00",
201909,2.01909E+11,R5350,Web Design & Running Costs,GETTY IMAGES INTERNATIONAL,"1,450.00",
201909,2.01909E+11,R5350,Web Design & Running Costs,Zengenti Ltd,"8,016.00",
201909,2.01909E+11,R4175,Print Unit - Digital Copier Click Charges,Xerox UK Ltd,"2,503.46",
201909,2.01909E+11,R5810,Operational Equipment - DNA,Scenesafe Previously (WA Products (UK) Ltd),"1,024.00",
201909,2.01909E+11,R5835,Operational Equipment - Testing Kits & Consumables,Scenesafe Previously (WA Products (UK) Ltd),620.64,
201909,2.01909E+11,R4845,Expert Witness Testimony / Reports,Infra Tech Forensics Audio Ltd,"2,905.00",
201909,2.01909E+11,R4710,Forensic Analysis - Serious Crime,Key Forensic Services Ltd (Orange UK Holdings Ltd),"2,362.15",
201909,2.01909E+11,R4715,Forensic Analysis - Volume Crime,Key Forensic Services Ltd (Orange UK Holdings Ltd),"2,084.30",
201909,2.01909E+11,R4705,Forensic Analysis - Over Prescribed Limit,Key Forensic Services Ltd (Orange UK Holdings Ltd),588.56,
201909,2.01909E+11,R4705,Forensic Analysis - Over Prescribed Limit,Key Forensic Services Ltd (Orange UK Holdings Ltd),735,
201909,2.01909E+11,R4715,Forensic Analysis - Volume Crime,Key Forensic Services Ltd (Orange UK Holdings Ltd),"1,439.34",
201909,2.01909E+11,R4710,Forensic Analysis - Serious Crime,Key Forensic Services Ltd (Orange UK Holdings Ltd),"5,769.50",
201909,2.01909E+11,R4710,Forensic Analysis - Serious Crime,Key Forensic Services Ltd (Orange UK Holdings Ltd),"1,365.25",
201909,2.01909E+11,R4710,Forensic Analysis - Serious Crime,Key Forensic Services Ltd (Orange UK Holdings Ltd),"2,296.35",
201909,2.01909E+11,R4715,Forensic Analysis - Volume Crime,Key Forensic Services Ltd (Orange UK Holdings Ltd),637,
201909,2.01909E+11,R4715,Forensic Analysis - Volume Crime,Key Forensic Services Ltd (Orange UK Holdings Ltd),838.3,
201909,2.01909E+11,R4705,Forensic Analysis - Over Prescribed Limit,Key Forensic Services Ltd (Orange UK Holdings Ltd),853.03,
201909,2.01909E+11,R4710,Forensic Analysis - Serious Crime,Key Forensic Services Ltd (Orange UK Holdings Ltd),"1,896.60",
201909,2.01909E+11,R4705,Forensic Analysis - Over Prescribed Limit,Key Forensic Services Ltd (Orange UK Holdings Ltd),517.5,
201909,2.01909E+11,R4705,Forensic Analysis - Over Prescribed Limit,Key Forensic Services Ltd (Orange UK Holdings Ltd),841.5,
201909,2.01909E+11,R4715,Forensic Analysis - Volume Crime,Key Forensic Services Ltd (Orange UK Holdings Ltd),931.25,
201909,2.01909E+11,R4710,Forensic Analysis - Serious Crime,Key Forensic Services Ltd (Orange UK Holdings Ltd),"3,687.55",
201909,2.01909E+11,R4710,Forensic Analysis - Serious Crime,Key Forensic Services Ltd (Orange UK Holdings Ltd),"1,809.60",
201909,2.01909E+11,R4715,Forensic Analysis - Volume Crime,Key Forensic Services Ltd (Orange UK Holdings Ltd),"4,674.80",
201909,2.01909E+11,R4715,Forensic Analysis - Volume Crime,Key Forensic Services Ltd (Orange UK Holdings Ltd),"1,508.00",
201909,2.01909E+11,R4710,Forensic Analysis - Serious Crime,Key Forensic Services Ltd (Orange UK Holdings Ltd),"4,716.40",
201909,2.01909E+11,R4710,Forensic Analysis - Serious Crime,Key Forensic Services Ltd (Orange UK Holdings Ltd),"3,946.60",
201909,2.01909E+11,R4705,Forensic Analysis - Over Prescribed Limit,Key Forensic Services Ltd (Orange UK Holdings Ltd),838.03,
201909,2.01909E+11,R4705,Forensic Analysis - Over Prescribed Limit,Key Forensic Services Ltd (Orange UK Holdings Ltd),"2,091.56",
201909,2.01909E+11,R4705,Forensic Analysis - Over Prescribed Limit,Key Forensic Services Ltd (Orange UK Holdings Ltd),826.5,
201909,2.01909E+11,R4710,Forensic Analysis - Serious Crime,Key Forensic Services Ltd (Orange UK Holdings Ltd),"1,559.05",
201909,2.01909E+11,R4710,Forensic Analysis - Serious Crime,Key Forensic Services Ltd (Orange UK Holdings Ltd),"1,025.55",
201909,2.01909E+11,R4715,Forensic Analysis - Volume Crime,Key Forensic Services Ltd (Orange UK Holdings Ltd),"2,573.70",
201909,2.01909E+11,R4705,Forensic Analysis - Over Prescribed Limit,Key Forensic Services Ltd (Orange UK Holdings Ltd),"1,297.03",
201909,2.01909E+11,R4705,Forensic Analysis - Over Prescribed Limit,Key Forensic Services Ltd (Orange UK Holdings Ltd),"1,123.03",
201909,2.01909E+11,R4715,Forensic Analysis - Volume Crime,Key Forensic Services Ltd (Orange UK Holdings Ltd),719.2,
201909,2.01909E+11,R4715,Forensic Analysis - Volume Crime,Key Forensic Services Ltd (Orange UK Holdings Ltd),"1,080.25",
201909,2.01909E+11,R5805,Operational Equipment - Recordable Media,PMD Magnetics (Pangbourne Musical Distributors Ltd),"1,090.00",
201909,2.01909E+11,R5950,Witness Intermediary Scheme Payments,Redacted: Disclosure of information would breach the Data Protection Act 1988,"1,246.44",
201909,2.01909E+11,R5950,Witness Intermediary Scheme Payments,Redacted: Disclosure of information would breach the Data Protection Act 1988,594.5,
201909,2.01909E+11,R5950,Witness Intermediary Scheme Payments,Redacted: Disclosure of information would breach the Data Protection Act 1988,"1,363.80",
201909,2.01909E+11,R5950,Witness Intermediary Scheme Payments,Redacted: Disclosure of information would breach the Data Protection Act 1988,911.01,
201909,2.01909E+11,R5950,Witness Intermediary Scheme Payments,Redacted: Disclosure of information would breach the Data Protection Act 1988,555.97,
201909,2.01909E+11,R5950,Witness Intermediary Scheme Payments,Redacted: Disclosure of information would breach the Data Protection Act 1988,822.05,
201909,2.01909E+11,R1720,Other Support Function Training,Cellebrite Uk Ltd,"3,200.00",
201909,2.01909E+11,R4710,Forensic Analysis - Serious Crime,Cellebrite Uk Ltd,"1,800.00",
201909,2.01909E+11,R1720,Other Support Function Training,Micro Systemation,"2,750.00",
201909,2.01909E+11,R4700,Pathologists Fees,Redacted: Disclosure of information would breach the Data Protection Act 1988,"2,056.53",
201909,2.01909E+11,R7065,TITAN - North West Collaboration,Police and Crime Commissioner for Merseyside,"12,914.16",
201909,2.01909E+11,R7065,TITAN - North West Collaboration,Police and Crime Commissioner for Merseyside,"10,081.97",
201909,2.01909E+11,R7065,TITAN - North West Collaboration,Police and Crime Commissioner for Merseyside,"33,011.79",
201909,2.01909E+11,R7065,TITAN - North West Collaboration,Police and Crime Commissioner for Merseyside,"45,576.39",
201909,2.01909E+11,R7065,TITAN - North West Collaboration,Police and Crime Commissioner for Merseyside,"43,776.12",
201909,2.01909E+11,R7065,TITAN - North West Collaboration,Police and Crime Commissioner for Merseyside,"8,672.84",
201909,2.01909E+11,R5950,Witness Intermediary Scheme Payments,Redacted: Disclosure of information would breach the Data Protection Act 1988,534.34,
201909,2.01909E+11,R5950,Witness Intermediary Scheme Payments,Redacted: Disclosure of information would breach the Data Protection Act 1988,536.42,
201909,2.01909E+11,R5950,Witness Intermediary Scheme Payments,Redacted: Disclosure of information would breach the Data Protection Act 1988,544.9,
201909,2.01909E+11,R5950,Witness Intermediary Scheme Payments,Redacted: Disclosure of information would breach the Data Protection Act 1988,517.34,
201909,2.01909E+11,R5950,Witness Intermediary Scheme Payments,Redacted: Disclosure of information would breach the Data Protection Act 1988,786.6,
201909,2.01909E+11,R5950,Witness Intermediary Scheme Payments,Redacted: Disclosure of information would breach the Data Protection Act 1988,921.1,
201909,2.01909E+11,R4845,Expert Witness Testimony / Reports,Redacted: Disclosure of information would breach the Data Protection Act 1988,720,
201909,2.01909E+11,R5940,Investigative Search Fees / Credit Checks,Experian Ltd,"1,660.68",
201909,2.01909E+11,R5940,Investigative Search Fees / Credit Checks,Experian Ltd,"1,660.68",
201909,2.01909E+11,R4725,Photographic & Imaging,Wex Photo Video,960.19,
201909,2.01909E+11,R4715,Forensic Analysis - Volume Crime,Orchid Cellmark Ltd,900,
201909,2.01909E+11,R4710,Forensic Analysis - Serious Crime,Orchid Cellmark Ltd,649.6,
201909,2.01909E+11,R4715,Forensic Analysis - Volume Crime,Orchid Cellmark Ltd,"5,220.00",
201909,2.01909E+11,R4720,Forensic Analysis - PACE / DNA,Orchid Cellmark Ltd,"1,478.39",
201909,2.01909E+11,R4715,Forensic Analysis - Volume Crime,Orchid Cellmark Ltd,794.6,
201909,2.01909E+11,R4720,Forensic Analysis - PACE / DNA,Orchid Cellmark Ltd,911.9,
201909,2.01909E+11,R4715,Forensic Analysis - Volume Crime,Orchid Cellmark Ltd,649.6,
201909,2.01909E+11,R4845,Expert Witness Testimony / Reports,Redacted: Disclosure of information would breach the Data Protection Act 1988,"1,120.00",
201909,2.01909E+11,R4845,Expert Witness Testimony / Reports,Redacted: Disclosure of information would breach the Data Protection Act 1988,"2,798.02",
201909,2.01909E+11,R5820,Operational Equipment - Domestic Violence Alarms,Vodafone Limited,630,
201909,2.01909E+11,R7135,Crimestoppers,Redacted: The information is confidential or would attract an exemption under the Freedom of Information Act e.g. where disclosure could be prejudicial to the commercial interests of any person including the authority,"3,197.25",
201909,2.01909E+11,R4780,CSI Consumables,Acota Limited,"4,825.88",
201909,2.01909E+11,R5950,Witness Intermediary Scheme Payments,Redacted: Disclosure of information would breach the Data Protection Act 1988,901.35,
201909,2.01909E+11,R4720,Forensic Analysis - PACE / DNA,Eurofins Forensic Services Ltd,"1,052.73",
201909,2.01909E+11,R4720,Forensic Analysis - PACE / DNA,Eurofins Forensic Services Ltd,"2,005.20",
201909,2.01909E+11,R4720,Forensic Analysis - PACE / DNA,Eurofins Forensic Services Ltd,"5,608.41",
201909,2.01909E+11,R4720,Forensic Analysis - PACE / DNA,Eurofins Forensic Services Ltd,"1,938.36",
201909,2.01909E+11,R4720,Forensic Analysis - PACE / DNA,Eurofins Forensic Services Ltd,"1,687.71",
201909,2.01909E+11,R6750,Consultants Fees - Other,United Kingdom Accreditation Service (UKAS),"1,378.50",
201909,2.01909E+11,R6750,Consultants Fees - Other,United Kingdom Accreditation Service (UKAS),"9,393.25",
201909,2.01909E+11,R6750,Consultants Fees - Other,United Kingdom Accreditation Service (UKAS),919,
201909,2.01909E+11,R5805,Operational Equipment - Recordable Media,Banner Group Limited (Previously Supplies Team Limited),555,
201909,2.01909E+11,R5867,Operational Equipment - Maintenance,Foster & Freeman Ltd,"2,815.33",
201909,2.01909E+11,R4835,Drug Destruction,Redacted: The information is confidential or would attract an exemption under the Freedom of Information Act e.g. where disclosure could be prejudicial to the commercial interests of any person including the authority,905,
201909,2.01909E+11,R1720,Other Support Function Training,SCC (Specialist Computer Centre),517.1,
201909,2.01909E+11,R5912,Police Dogs - Feed,Royal Canin (Crown Pet Foods Ltd),"1,128.86",
201909,2.01909E+11,R5912,Police Dogs - Feed,Royal Canin (Crown Pet Foods Ltd),"1,508.15",
201909,2.01909E+11,R4630,Detained Persons - Appropriate Adult Services,Child Action North West,"12,850.74",
201909,2.01909E+11,R4630,Detained Persons - Appropriate Adult Services,Child Action North West,"12,094.04",
201909,2.01909E+11,R6700,Stray Animals Costs,Craig Robinson Vets Ltd,568.18,
201909,2.01909E+11,R5865,Operational Equipment - Other,Lyon Equipment Ltd,534.06,
201909,2.01909E+11,R5980,Firearms Equipment,Lyon Equipment Ltd,784.26,
201909,2.01909E+11,R5865,Operational Equipment - Other,Dave Hudson,800,
201909,2.01909E+11,R5916,Police Dogs - Vets Fees,Frame & Swift,979.81,
201909,2.01909E+11,R5916,Police Dogs - Vets Fees,Frame & Swift,826.04,
201909,2.01909E+11,R5916,Police Dogs - Vets Fees,Frame & Swift,"1,978.13",
201909,2.01909E+11,R4625,Detained Persons - Laundry,Shortridge Laundry,655.14,
201909,2.01909E+11,R4625,Detained Persons - Laundry,Shortridge Laundry,604.74,
201909,2.01909E+11,R4625,Detained Persons - Laundry,Shortridge Laundry,888.98,
201909,2.01909E+11,R4625,Detained Persons - Laundry,Shortridge Laundry,692.45,
201909,2.01909E+11,R6702,Confiscated Animal Costs,Redacted: The information is confidential or would attract an exemption under the Freedom of Information Act e.g. where disclosure could be prejudicial to the commercial interests of any person including the authority,"6,235.00",
201909,2.01909E+11,R6702,Confiscated Animal Costs,Redacted: The information is confidential or would attract an exemption under the Freedom of Information Act e.g. where disclosure could be prejudicial to the commercial interests of any person including the authority,"5,253.13",
201909,2.01909E+11,R5960,Community Initiatives - Activities & Competitions,Jansen Travel Ltd (formerly J B Pickthall),"1,540.00",
201909,2.01909E+11,R4900,Custody Medical Contract,G4S Health Services (UK) Ltd,"107,330.20",
201909,2.01909E+11,R4900,Custody Medical Contract,G4S Health Services (UK) Ltd,"107,330.20",
201909,2.01909E+11,R4625,Detained Persons - Laundry,Shortridge Laundry,"1,303.35",
201909,2.01909E+11,R4625,Detained Persons - Laundry,Shortridge Laundry,"1,357.55",
201909,2.01909E+11,R4620,Detained Persons - Consumables,Charles Fellows Supplies Limited,840,
201909,2.01909E+11,R5865,Operational Equipment - Other,Animaware Ltd,"1,430.00",
201909,2.01909E+11,R4940,First Aid Equipment / Consumables,Wel Medical Ltd,"4,770.00",
201909,2.01909E+11,R6610,Vehicle Recovery Costs,FMG Support (RRRM) Ltd,"1,377.00",
201909,2.01909E+11,R6610,Vehicle Recovery Costs,FMG Support (RRRM) Ltd,"1,100.00",
201909,2.01909E+11,R5980,Firearms Equipment,Viking Arms Ltd,"4,617.90",
201909,2.01909E+11,R5916,Police Dogs - Vets Fees,Kentdale Veterinary Orthopaedics,"1,769.75",
201909,2.01909E+11,R5980,Firearms Equipment,Civil Defence Supply Limited,"2,549.96",
201909,2.01909E+11,R5865,Operational Equipment - Other,Lakeside Creatives LTD,"2,996.00",
201909,2.01909E+11,R1630,Other Operational Training,Police and Crime Commissioner for Greater Manchester,"1,200.00",
201909,2.01909E+11,R1630,Other Operational Training,Police and Crime Commissioner for Greater Manchester,"1,200.00",
201909,2.01909E+11,R1630,Other Operational Training,Police and Crime Commissioner for Greater Manchester,"1,200.00",
201909,2.01909E+11,R1630,Other Operational Training,Police and Crime Commissioner for Greater Manchester,"4,170.00",
201909,2.01909E+11,R1720,Other Support Function Training,Insight Direct (UK) Ltd,"2,389.60",
201909,2.01909E+11,R1720,Other Support Function Training,Insight Direct (UK) Ltd,"2,126.95",
201909,2.01909E+11,R5800,Operational Equipment - Breathalyser Consumables,BOC Gases,603.6,
201909,2.01909E+11,R5865,Operational Equipment - Other,BOC Gases,521,
201909,2.01909E+11,R7002,Mutual Aid,Police and Crime Commissioner for Kent,"2,918.02",
201909,2.01909E+11,R5865,Operational Equipment - Other,Cloudhouses Ltd,"1,700.00",
201909,2.01909E+11,R5910,Police Dogs - Purchase,Redacted: The information is confidential or would attract an exemption under the Freedom of Information Act e.g. where disclosure could be prejudicial to the commercial interests of any person including the authority,700,
201909,2.01909E+11,R5760,Operational Equipment - TASER,Axon Public Safety UK Limited,930,
201909,2.01909E+11,R4950,Interpreters Fees - Face to Face,Capita Translation and Interpreting (Applied Language Solutions Ltd),"2,845.54",
201909,2.01909E+11,R4950,Interpreters Fees - Face to Face,Capita Translation and Interpreting (Applied Language Solutions Ltd),"1,173.38",
201909,2.01909E+11,R4955,Interpreters Fees - Telephone,Capita Translation and Interpreting (Applied Language Solutions Ltd),841.27,
201909,2.01909E+11,R7010,Other Operational Support from Other Forces,Police and Crime Commissioner for Lancashire,"1,002.74",
201909,2.01909E+11,R5835,Operational Equipment - Testing Kits & Consumables,D TEC International Ltd,"5,484.00",
201909,2.01909E+11,R4940,First Aid Equipment / Consumables,The Atacc Group (Promedsol),"4,350.00",
201909,2.01909E+11,R1630,Other Operational Training,The Atacc Group (Promedsol),"3,960.00",
201909,2.01909E+11,R1880,Conference & Seminar Fees,Police Superintendents Association,650,
201909,2.01909E+11,R5760,Operational Equipment - TASER,Edgar Brothers,595,
201909,2.01909E+11,R1620,Public Order Training,College of Policing (NPIA),"3,096.50",
201909,2.01909E+11,R5865,Operational Equipment - Other,S P Services (UK) Ltd,935.7,
201909,2.01909E+11,R5865,Operational Equipment - Other,S P Services (UK) Ltd,"-1,500.00",
201909,2.01909E+11,R1630,Other Operational Training,Truvelo (UK) Limited,"2,090.00",
201909,2.01909E+11,R5865,Operational Equipment - Other,Truvelo (UK) Limited,"1,020.00",
201909,2.01909E+11,R1630,Other Operational Training,Police and Crime Commissioner for West Yorkshire,"11,550.00",
201909,2.01909E+11,R1090,Other Recruitment Costs,Spring Technology Staffing Services (STSS),"5,065.65",
201909,2.01909E+11,R1090,Other Recruitment Costs,Spring Technology Staffing Services (STSS),"5,478.75",
201909,2.01909E+11,R1128,Medical Equipment,P & A Medical Ltd,695,
201909,2.01909E+11,R1340,Added Years Qtrly - LGPS,Cumbria County Council,"16,140.62",
201909,2.01909E+11,R1120,Ergonomist,Green Ends Limited,"2,520.00",
201909,2.01909E+11,R1120,Ergonomist,Green Ends Limited,"2,520.00",
201909,2.01909E+11,R1120,Ergonomist,Green Ends Limited,"2,520.00",
201909,2.01909E+11,R1120,Ergonomist,Green Ends Limited,"2,520.00",
201909,2.01909E+11,R1120,Ergonomist,Green Ends Limited,"2,100.00",
201909,2.01909E+11,R1610,CID Training,Police and Crime Commissioner for South Wales,"2,800.00",
201909,2.01909E+11,R0500,Agency Staff,Hays Specialist Recruitment Limited,"6,922.80",
201909,2.01909E+11,R1132,Immunisations & Vaccinations,Kays Medical Limited,"3,040.73",
201909,2.01909E+11,R1110,Force Doctor Fees,Redacted: The information is confirdential or would attract an exemption under the Freedom of Information Act e.g. where disclosure could be prejudicial to the commercial interests of any person including the authority,575,
201909,2.01909E+11,R1110,Force Doctor Fees,Redacted: The information is confirdential or would attract an exemption under the Freedom of Information Act e.g. where disclosure could be prejudicial to the commercial interests of any person including the authority,575,
201909,2.01909E+11,R1110,Force Doctor Fees,Redacted: The information is confirdential or would attract an exemption under the Freedom of Information Act e.g. where disclosure could be prejudicial to the commercial interests of any person including the authority,"1,150.00",
201909,2.01909E+11,R0500,Agency Staff,Comensura Ltd,"1,794.49",
201909,2.01909E+11,R0500,Agency Staff,Comensura Ltd,"3,295.57",
201909,2.01909E+11,R0500,Agency Staff,Comensura Ltd,903.8,
201909,2.01909E+11,R1110,Force Doctor Fees,Comensura Ltd,"1,379.83",
201909,2.01909E+11,R0500,Agency Staff,Comensura Ltd,868.86,
201909,2.01909E+11,R0500,Agency Staff,Comensura Ltd,"3,071.63",
201909,2.01909E+11,R0500,Agency Staff,Comensura Ltd,873.94,
201909,2.01909E+11,R0500,Agency Staff,Comensura Ltd,"4,528.10",
201909,2.01909E+11,R0500,Agency Staff,Comensura Ltd,"1,623.72",
201909,2.01909E+11,R0500,Agency Staff,Comensura Ltd,"2,264.05",
201909,2.01909E+11,R0500,Agency Staff,Comensura Ltd,963.79,
201909,2.01909E+11,R0500,Agency Staff,Comensura Ltd,"2,068.62",
201909,2.01909E+11,R1110,Force Doctor Fees,Comensura Ltd,"1,410.28",
201909,2.01909E+11,R0500,Agency Staff,Comensura Ltd,"2,556.18",
201909,2.01909E+11,R0500,Agency Staff,Comensura Ltd,"1,800.14",
201909,2.01909E+11,R0500,Agency Staff,Comensura Ltd,"4,075.29",
201909,2.01909E+11,R1110,Force Doctor Fees,Comensura Ltd,"1,432.83",
201909,2.01909E+11,R0500,Agency Staff,Comensura Ltd,"1,231.45",
201909,2.01909E+11,R0500,Agency Staff,Comensura Ltd,"1,982.85",
201909,2.01909E+11,R0500,Agency Staff,Comensura Ltd,"1,811.24",
201909,2.01909E+11,R1110,Force Doctor Fees,Comensura Ltd,"1,409.33",
201909,2.01909E+11,R0500,Agency Staff,Comensura Ltd,"1,617.01",
201909,2.01909E+11,R0500,Agency Staff,Comensura Ltd,"2,264.05",
201909,2.01909E+11,R1110,Force Doctor Fees,Comensura Ltd,"1,389.08",
201909,2.01909E+11,R0500,Agency Staff,Comensura Ltd,"1,231.45",
201909,2.01909E+11,R0500,Agency Staff,Comensura Ltd,"1,982.85",
201909,2.01909E+11,R0500,Agency Staff,Comensura Ltd,"1,811.24",
201909,2.01909E+11,R1110,Force Doctor Fees,Comensura Ltd,"1,409.33",
201909,2.01909E+11,R0500,Agency Staff,Comensura Ltd,"2,155.97",
201909,2.01909E+11,R0500,Agency Staff,Comensura Ltd,"1,070.82",
201909,2.01909E+11,R0500,Agency Staff,Comensura Ltd,"2,264.05",
201909,2.01909E+11,R0500,Agency Staff,Comensura Ltd,"1,034.43",
201909,2.01909E+11,R0500,Agency Staff,Comensura Ltd,"-1,231.45",
201909,2.01909E+11,R0500,Agency Staff,Comensura Ltd,"-1,982.85",
201909,2.01909E+11,R0500,Agency Staff,Comensura Ltd,"-1,811.24",
201909,2.01909E+11,R1110,Force Doctor Fees,Comensura Ltd,"-1,409.33",
201909,2.01909E+11,R0500,Agency Staff,Comensura Ltd,"1,916.45",
201909,2.01909E+11,R0500,Agency Staff,Comensura Ltd,"2,326.03",
201909,2.01909E+11,R1110,Force Doctor Fees,Comensura Ltd,"1,404.83",
201909,2.01909E+11,R0500,Agency Staff,Comensura Ltd,"2,275.86",
201909,2.01909E+11,R0500,Agency Staff,Comensura Ltd,510.79,
201909,2.01909E+11,R0500,Agency Staff,Comensura Ltd,"5,433.72",
201909,2.01909E+11,R0500,Agency Staff,Comensura Ltd,"1,032.80",
201909,2.01909E+11,R0500,Agency Staff,Comensura Ltd,"1,922.31",
201909,2.01909E+11,R0500,Agency Staff,Comensura Ltd,526.49,
201909,2.01909E+11,R0500,Agency Staff,Comensura Ltd,"2,264.05",
201909,2.01909E+11,R0500,Agency Staff,Comensura Ltd,"1,213.54",
201909,2.01909E+11,R0500,Agency Staff,Comensura Ltd,"1,788.43",
201909,2.01909E+11,R0500,Agency Staff,Comensura Ltd,549,
201909,2.01909E+11,R0500,Agency Staff,Comensura Ltd,"1,811.24",
201909,2.01909E+11,R1110,Force Doctor Fees,Comensura Ltd,"1,377.33",
201909,2.01909E+11,R1630,Other Operational Training,Sancus Solutions Ltd,"3,040.00",
201909,2.01909E+11,R1132,Immunisations & Vaccinations,Library House Surgery,879,
201909,2.01909E+11,R1880,Conference & Seminar Fees,Police Superintendents Association,650,
201909,2.01909E+11,R1138,Psychological Screening,NTA Psychological Screening Ltd,750,
201909,2.01909E+11,R1740,Leadership Training,On the Up Consulting,"9,983.00",
201909,2.01909E+11,R1070,External Assessment Centres,College of Policing (NPIA),"12,551.80",
201909,2.01909E+11,R1070,External Assessment Centres,College of Policing (NPIA),"5,935.48",
201909,2.01909E+11,R1610,CID Training,College of Policing (NPIA),"1,547.52",
201909,2.01909E+11,B2302,Inventories/Stocks - General / Admin Equipment - Purchases,Arrow County Supplies,673.8,
201909,2.01909E+11,B2302,Inventories/Stocks - General / Admin Equipment - Purchases,Arrow County Supplies,659.54,
201909,2.01909E+11,B2302,Inventories/Stocks - General / Admin Equipment - Purchases,Arrow County Supplies,622.22,
201909,2.01909E+11,B2302,Inventories/Stocks - General / Admin Equipment - Purchases,Arrow County Supplies,612.18,
201909,2.01909E+11,B2302,Inventories/Stocks - General / Admin Equipment - Purchases,Arrow County Supplies,898.8,
201909,2.01909E+11,B2302,Inventories/Stocks - General / Admin Equipment - Purchases,Arrow County Supplies,715.79,
201909,2.01909E+11,B2312,Inventories/Stocks - Uniforms - Purchases,Sonic Communications Ltd,590,
201909,2.01909E+11,B2312,Inventories/Stocks - Uniforms - Purchases,TCH UK Ltd,967.6,
201909,2.01909E+11,B2312,Inventories/Stocks - Uniforms - Purchases,TCH UK Ltd,"2,054.90",
201909,2.01909E+11,B2312,Inventories/Stocks - Uniforms - Purchases,Tranam,"1,148.32",
201909,2.01909E+11,B2312,Inventories/Stocks - Uniforms - Purchases,Tranam,"1,893.11",
201909,2.01909E+11,B2312,Inventories/Stocks - Uniforms - Purchases,Tranam,"1,619.56",
201909,2.01909E+11,B2312,Inventories/Stocks - Uniforms - Purchases,Tranam,"1,148.32",
201909,2.01909E+11,B2312,Inventories/Stocks - Uniforms - Purchases,Tranam,"1,148.32",
201909,2.01909E+11,B2302,Inventories/Stocks - General / Admin Equipment - Purchases,Pro-tect Safety Signs,"3,480.00",
201909,2.01909E+11,B2312,Inventories/Stocks - Uniforms - Purchases,J & L Motorcycles,542.98,
201909,2.01909E+11,R4000,Office Equipment - Purchase,PSS Home Entertainment Ltd (Penrith Satellite Systems),540,
201909,2.01909E+11,R4000,Office Equipment - Purchase,PSS Home Entertainment Ltd (Penrith Satellite Systems),976,
201909,2.01909E+11,R4400,Books & Publications,Hills Books,535.32,
201909,2.01909E+11,B2302,Inventories/Stocks - General / Admin Equipment - Purchases,Scenesafe Previously (WA Products (UK) Ltd),634.9,
201909,2.01909E+11,B2302,Inventories/Stocks - General / Admin Equipment - Purchases,Scenesafe Previously (WA Products (UK) Ltd),623.5,
201909,2.01909E+11,B2302,Inventories/Stocks - General / Admin Equipment - Purchases,Scenesafe Previously (WA Products (UK) Ltd),638,
201909,2.01909E+11,B2302,Inventories/Stocks - General / Admin Equipment - Purchases,Scenesafe Previously (WA Products (UK) Ltd),782.1,
201909,2.01909E+11,B2302,Inventories/Stocks - General / Admin Equipment - Purchases,Scenesafe Previously (WA Products (UK) Ltd),870,
201909,2.01909E+11,B2302,Inventories/Stocks - General / Admin Equipment - Purchases,Scenesafe Previously (WA Products (UK) Ltd),816.6,
201909,2.01909E+11,B2302,Inventories/Stocks - General / Admin Equipment - Purchases,Scenesafe Previously (WA Products (UK) Ltd),"1,299.87",
201909,2.01909E+11,B2312,Inventories/Stocks - Uniforms - Purchases,Toye Kenning & Spencer,678,
201909,2.01909E+11,B2312,Inventories/Stocks - Uniforms - Purchases,Derby Unitex Ltd,549.87,
201909,2.01909E+11,B2312,Inventories/Stocks - Uniforms - Purchases,Derby Unitex Ltd,659.85,
201909,2.01909E+11,B2312,Inventories/Stocks - Uniforms - Purchases,Derby Unitex Ltd,659.85,
201909,2.01909E+11,B2312,Inventories/Stocks - Uniforms - Purchases,Derby Unitex Ltd,"1,099.73",
201909,2.01909E+11,B2312,Inventories/Stocks - Uniforms - Purchases,Endura Ltd,977.5,
201909,2.01909E+11,B2312,Inventories/Stocks - Uniforms - Purchases,Endura Ltd,"2,196.50",
201909,2.01909E+11,B2312,Inventories/Stocks - Uniforms - Purchases,Yaffy (MWUK Ltd),"17,568.00",
201909,2.01909E+11,B2312,Inventories/Stocks - Uniforms - Purchases,Yaffy (MWUK Ltd),"2,440.00",
201909,2.01909E+11,B2312,Inventories/Stocks - Uniforms - Purchases,Yaffy (MWUK Ltd),"6,127.50",
201909,2.01909E+11,B2312,Inventories/Stocks - Uniforms - Purchases,Lloyd Motors Ltd,958.85,
201909,2.01909E+11,B2312,Inventories/Stocks - Uniforms - Purchases,Keela International Ltd,964.6,
201909,2.01909E+11,B2312,Inventories/Stocks - Uniforms - Purchases,Keela International Ltd,868.14,
201909,2.01909E+11,B2312,Inventories/Stocks - Uniforms - Purchases,Keela International Ltd,"1,032.54",
201909,2.01909E+11,B2312,Inventories/Stocks - Uniforms - Purchases,Keela International Ltd,506.06,
201909,2.01909E+11,B2312,Inventories/Stocks - Uniforms - Purchases,Keela International Ltd,764.75,
201909,2.01909E+11,B2312,Inventories/Stocks - Uniforms - Purchases,Try & Lilly Ltd,607.05,
201909,2.01909E+11,B2312,Inventories/Stocks - Uniforms - Purchases,Try & Lilly Ltd,705.6,
201909,2.01909E+11,B2312,Inventories/Stocks - Uniforms - Purchases,Ioma Clothing Company,557.25,
201909,2.01909E+11,B2312,Inventories/Stocks - Uniforms - Purchases,MC Products UK Ltd,"1,433.10",
201909,2.01909E+11,B2312,Inventories/Stocks - Uniforms - Purchases,MC Products UK Ltd,583.24,
201909,2.01909E+11,B2312,Inventories/Stocks - Uniforms - Purchases,Bennett Safetywear Ltd,"1,195.00",
201909,2.01909E+11,R4300,Furniture - General,Centric Office Solutions Limited,980,
201909,2.01909E+11,B2312,Inventories/Stocks - Uniforms - Purchases,Turner Virr & Co Ltd,806.25,
201909,2.01909E+11,B2312,Inventories/Stocks - Uniforms - Purchases,Turner Virr & Co Ltd,710.5,
201909,2.01909E+11,B2302,Inventories/Stocks - General / Admin Equipment - Purchases,Draeger Safety UK Ltd,998.1,
201909,2.01909E+11,B2302,Inventories/Stocks - General / Admin Equipment - Purchases,Essentra Components Ltd,532.27,
201909,2.01909E+11,B2302,Inventories/Stocks - General / Admin Equipment - Purchases,Clavering Stationers,"1,185.00",
201909,2.01909E+11,B2312,Inventories/Stocks - Uniforms - Purchases,Deenside Ltd,864.48,
201909,2.01909E+11,B2312,Inventories/Stocks - Uniforms - Purchases,Mehler Vario System GmbH,534.6,
201909,2.01909E+11,B2312,Inventories/Stocks - Uniforms - Purchases,Mehler Vario System GmbH,762.1,
201909,2.01909E+11,B2312,Inventories/Stocks - Uniforms - Purchases,Mehler Vario System GmbH,"4,622.20",
201909,2.01909E+11,B2312,Inventories/Stocks - Uniforms - Purchases,Mehler Vario System GmbH,"1,231.00",
201909,2.01909E+11,B2312,Inventories/Stocks - Uniforms - Purchases,Mehler Vario System GmbH,"1,206.20",
201909,2.01909E+11,B2312,Inventories/Stocks - Uniforms - Purchases,Mehler Vario System GmbH,717,
201909,2.01909E+11,B2312,Inventories/Stocks - Uniforms - Purchases,Mehler Vario System GmbH,717,
201909,2.01909E+11,B2312,Inventories/Stocks - Uniforms - Purchases,Mehler Vario System GmbH,"1,560.00",
201909,2.01909E+11,B2312,Inventories/Stocks - Uniforms - Purchases,Niton Equipment Ltd,781.2,
201909,2.01909E+11,B2312,Inventories/Stocks - Uniforms - Purchases,Niton Equipment Ltd,"7,020.00",
201909,2.01909E+11,R4005,Office Equipment - Maintenance,Kardex Systems UK Limited,"2,483.10",
201909,2.01909E+11,B2312,Inventories/Stocks - Uniforms - Purchases,Edgar Brothers,"1,219.90",
201909,2.01909E+11,B2312,Inventories/Stocks - Uniforms - Purchases,Hi-tec Europe Ltd,550,
201909,2.01909E+11,B2312,Inventories/Stocks - Uniforms - Purchases,Price Western Leather Co Ltd,830.7,
201909,2.01909E+11,B2312,Inventories/Stocks - Uniforms - Purchases,Price Western Leather Co Ltd,559.77,
201909,2.01909E+11,B2312,Inventories/Stocks - Uniforms - Purchases,Michael Lupton Associates Ltd,967.99,
201909,2.01909E+11,R1150,Gym Equipment - Purchase,Precor,550.12,
201909,2.01909E+11,R1740,Leadership Training,CENTRE FOR LEADERSHIP PERFORMANCE,700,
201909,2.01909E+11,R1610,CID Training,Jill Grant Psychology Services,879.1,
201909,2.01909E+11,R1630,Other Operational Training,CJL Consultancy (Sole Trader C Lillicrap),800,
201909,2.01909E+11,R1740,Leadership Training,DB Agencies Ltd,"2,500.00",
201909,2.01909E+11,R1720,Other Support Function Training,Skills for Justice (Enterprise) Ltd - SFJ Awards,680,
201909,2.01909E+11,R6660,Counsel Fees,Atlantic Chambers,720,
201909,2.01909E+11,R6660,Counsel Fees,Atlantic Chambers,546,
201909,2.01909E+11,R6660,Counsel Fees,Trinity Chambers (Newcastle-upon-Tyne),924,
201909,2.01909E+11,R6660,Counsel Fees,Trinity Chambers (Newcastle-upon-Tyne),"1,561.00",
201909,2.01909E+11,R6660,Counsel Fees,Trinity Chambers (Newcastle-upon-Tyne),"1,092.00",
201909,2.01909E+11,R6660,Counsel Fees,Trinity Chambers (Newcastle-upon-Tyne),600,
201909,2.01909E+11,R6660,Counsel Fees,Trinity Chambers (Newcastle-upon-Tyne),"2,604.00",
201909,2.01909E+11,R1880,Conference & Seminar Fees,Association of Police Lawyers,640,
201909,2.01909E+11,B4004,Provision for Insurance Liabilities - Drawdown from Provision - Third Party Costs,Redacted: The information is confidential or would attract an exemption under the Freedom of Information Act e.g. where disclosure could be prejudicial to the commercial interests of any person including the authority,"6,000.00",
201909,2.01909E+11,R6642,Court Fees,Her Majesty's Courts & Tribunal Service (HMCTS),567,
201909,2.01909E+11,R6642,Court Fees,Her Majesty's Courts & Tribunal Service (HMCTS),567,
201909,2.01909E+11,B4005,Provision for Insurance Liabilities - Drawdown from Provision - Own Solicitor's Costs,Redacted: The information is confidential or would attract an exemption under the Freedom of Information Act e.g. where disclosure could be prejudicial to the commercial interests of any person including the authority,"1,662.50",
201909,2.01909E+11,R6644,Costs Awarded Against Police,Redacted: The information is confidential or would attract an exemption under the Freedom of Information Act e.g. where disclosure could be prejudicial to the commercial interests of any person including the authority,600,
201909,2.01909E+11,B4006,Provision for Insurance Liabilities - Drawdown from Provision - Own Counsel's Costs,5 Essex Court,540,
201909,2.01909E+11,R6660,Counsel Fees,5 Essex Court,990,
201909,2.01909E+11,B4003,Provision for Insurance Liabilities - Drawdown from Provision - Damages & Compensation,Redacted: The information is confidential or would attract an exemption under the Freedom of Information Act e.g. where disclosure could be prejudicial to the commercial interests of any person including the authority,"4,500.00",
201909,2.01909E+11,B4004,Provision for Insurance Liabilities - Drawdown from Provision - Third Party Costs,Redacted: The information is confidential or would attract an exemption under the Freedom of Information Act e.g. where disclosure could be prejudicial to the commercial interests of any person including the authority,720,
201909,2.01909E+11,B4006,Provision for Insurance Liabilities - Drawdown from Provision - Own Counsel's Costs,Outer Temple Chambers,"2,374.32",
201909,2.01909E+11,R5630,Courier Services - Internal Deliveries,Cumbria County Council,"3,325.89",
201909,2.01909E+11,R5630,Courier Services - Internal Deliveries,Cumbria County Council,"3,000.54",
201909,2.01909E+11,R4090,Offsite Storage of Documents,Redacted: The information is confidential or would attract an exemption under the Freedom of Information Act e.g. where disclosure could be prejudicial to the commercial interests of any person including the authority,582.84,
201909,2.01909E+11,R4090,Offsite Storage of Documents,Redacted: The information is confirdential or would attract an exemption under the Freedom of Information Act e.g. where disclosure could be prejudicial to the commercial interests of any person including the authority,577.32,
201909,2.01909E+11,R4090,Offsite Storage of Documents,Redacted: The information is confirdential or would attract an exemption under the Freedom of Information Act e.g. where disclosure could be prejudicial to the commercial interests of any person including the authority,914.88,
201909,2.01909E+11,R4090,Offsite Storage of Documents,Redacted: The information is confirdential or would attract an exemption under the Freedom of Information Act e.g. where disclosure could be prejudicial to the commercial interests of any person including the authority,567.33,
201909,2.01909E+11,R4090,Offsite Storage of Documents,Redacted: The information is confirdential or would attract an exemption under the Freedom of Information Act e.g. where disclosure could be prejudicial to the commercial interests of any person including the authority,681.3,
201909,2.01909E+11,R4090,Offsite Storage of Documents,Redacted: The information is confirdential or would attract an exemption under the Freedom of Information Act e.g. where disclosure could be prejudicial to the commercial interests of any person including the authority,905.58,
201909,2.01909E+11,R6870,Subsistence - Training,Redacted: The information is confirdential or would attract an exemption under the Freedom of Information Act e.g. where disclosure could be prejudicial to the commercial interests of any person including the authority,520,
201909,2.01909E+11,R3745,Travel - Public Transport,Capita Travel and Events,527.82,
201909,2.01909E+11,R3745,Travel - Public Transport,Capita Travel and Events,"1,199.48",
201909,2.01909E+11,R6850,Hotel Accommodation - Training,Capita Travel and Events,"4,738.50",
201909,2.01909E+11,R6850,Hotel Accommodation - Training,Capita Travel and Events,"1,823.84",
201909,2.01909E+11,R6850,Hotel Accommodation - Training,Capita Travel and Events,962.94,
201909,2.01909E+11,R6840,Hotel Accommodation,Capita Travel and Events,"1,588.57",
201909,2.01909E+11,R6850,Hotel Accommodation - Training,Capita Travel and Events,548,
201909,2.01909E+11,R6850,Hotel Accommodation - Training,Capita Travel and Events,"4,074.00",
201909,2.01909E+11,R6850,Hotel Accommodation - Training,Capita Travel and Events,"1,422.92",
201909,2.01909E+11,R6850,Hotel Accommodation - Training,Capita Travel and Events,"2,898.00",
201909,2.01909E+11,R6840,Hotel Accommodation,Capita Travel and Events,685.58,
201909,2.01909E+11,R6840,Hotel Accommodation,Capita Travel and Events,"1,480.44",
201909,2.01909E+11,R6840,Hotel Accommodation,Capita Travel and Events,713.33,
201909,2.01909E+11,R6850,Hotel Accommodation - Training,Capita Travel and Events,"5,053.54",
201909,2.01909E+11,R3745,Travel - Public Transport,Capita Travel and Events,604.05,
201909,2.01909E+11,R6850,Hotel Accommodation - Training,Capita Travel and Events,924.17,
201909,2.01909E+11,R6850,Hotel Accommodation - Training,Capita Travel and Events,541.6,
201909,2.01909E+11,R6850,Hotel Accommodation - Training,Capita Travel and Events,"2,321.00",
201909,2.01909E+11,R6850,Hotel Accommodation - Training,Capita Travel and Events,660,
201909,2.01909E+11,R6850,Hotel Accommodation - Training,Capita Travel and Events,976,
201909,2.01909E+11,R6850,Hotel Accommodation - Training,Capita Travel and Events,570.83,
201909,2.01909E+11,R3745,Travel - Public Transport,Capita Travel and Events,724.93,
201909,2.01909E+11,R6850,Hotel Accommodation - Training,Capita Travel and Events,"2,521.00",
201909,2.01909E+11,R6840,Hotel Accommodation,Capita Travel and Events,554.52,
201909,2.01909E+11,R6840,Hotel Accommodation,Capita Travel and Events,600,
201909,2.01909E+11,R6840,Hotel Accommodation,Capita Travel and Events,"1,062.45",
201909,2.01909E+11,R6840,Hotel Accommodation,Capita Travel and Events,526.86,
201909,2.01909E+11,R6840,Hotel Accommodation,Capita Travel and Events,"2,205.80",
201909,2.01909E+11,R6850,Hotel Accommodation - Training,Capita Travel and Events,"1,075.49",
201909,2.01909E+11,R6850,Hotel Accommodation - Training,Capita Travel and Events,633,
201909,2.01909E+11,R6850,Hotel Accommodation - Training,Capita Travel and Events,870,
201909,2.01909E+11,R6850,Hotel Accommodation - Training,Capita Travel and Events,881.02,
201909,2.01909E+11,R6850,Hotel Accommodation - Training,Capita Travel and Events,"11,904.76",
201909,2.01909E+11,R6850,Hotel Accommodation - Training,Capita Travel and Events,"3,632.00",
201909,2.01909E+11,R6850,Hotel Accommodation - Training,Capita Travel and Events,949.5,
201909,2.01909E+11,R6850,Hotel Accommodation - Training,Capita Travel and Events,950,
201909,2.01909E+11,R6850,Hotel Accommodation - Training,Capita Travel and Events,"1,400.00",
201909,2.01909E+11,R6850,Hotel Accommodation - Training,Capita Travel and Events,550,
201909,2.01909E+11,R6850,Hotel Accommodation - Training,Capita Travel and Events,800,
201909,2.01909E+11,R6850,Hotel Accommodation - Training,Capita Travel and Events,"2,321.00",
201909,2.01909E+11,R6850,Hotel Accommodation - Training,Capita Travel and Events,585,
201909,2.01909E+11,R6840,Hotel Accommodation,Capita Travel and Events,600,
201909,2.01909E+11,R6850,Hotel Accommodation - Training,Capita Travel and Events,800,
201909,2.01909E+11,R6850,Hotel Accommodation - Training,Capita Travel and Events,"1,000.00",
201909,2.01909E+11,R6850,Hotel Accommodation - Training,Capita Travel and Events,845,
201909,2.01909E+11,R6850,Hotel Accommodation - Training,Capita Travel and Events,550,
201909,2.01909E+11,R6840,Hotel Accommodation,Capita Travel and Events,500.5,
201909,2.01909E+11,R3745,Travel - Public Transport,Capita Travel and Events,564.07,
201909,2.01909E+11,R3745,Travel - Public Transport,Capita Travel and Events,"1,417.03",
201909,2.01909E+11,R6850,Hotel Accommodation - Training,Capita Travel and Events,"1,584.00",
201909,2.01909E+11,R3745,Travel - Public Transport,Capita Travel and Events,759.21,
201909,2.01909E+11,R6850,Hotel Accommodation - Training,Capita Travel and Events,550,
201909,2.01909E+11,R6850,Hotel Accommodation - Training,Capita Travel and Events,513.33,
201909,2.01909E+11,R6850,Hotel Accommodation - Training,Capita Travel and Events,"2,250.00",
201909,2.01909E+11,R6840,Hotel Accommodation,Capita Travel and Events,801.2,
201909,2.01909E+11,R6840,Hotel Accommodation,Capita Travel and Events,690,
201909,2.01909E+11,R6850,Hotel Accommodation - Training,Capita Travel and Events,"1,360.00",
201909,2.01909E+11,R6850,Hotel Accommodation - Training,College of Policing (NPIA),517.5,
201909,2.01909E+11,R6850,Hotel Accommodation - Training,College of Policing (NPIA),517.5,
201909,2.01909E+11,R6840,Hotel Accommodation,Mayor's Office for Policing and Crime,700,
201909,2.01909E+11,R7290,Other Third Party Payments,University of Kent (Home Office Funded),"82,815.00",
201909,2.01909E+11,R3745,Travel - Public Transport,Capita Travel and Events (recharged to HMPPS),"1,357.20",
201909,2.01909E+11,R3745,Travel - Public Transport,Capita Travel and Events (recharged to HMPPS),972.5,
201909,2.01909E+11,R7090,Other Collaboration Payments,Cumbria County Council,"3,623.00",
201909,2.01909E+11,R7090,Other Collaboration Payments,Police and Crime Commissioner for Cheshire,"4,820.04",
201909,2.01909E+11,R7090,Other Collaboration Payments,Police and Crime Commissioner for Cheshire,"5,540.02",
201909,2.01909E+11,R7090,Other Collaboration Payments,Police and Crime Commissioner for Merseyside,"6,517.47",
201909,2.01909E+11,R7290,Other Third Party Payments,Police and Crime Commissioner for West Midlands,"34,989.00",
201909,2.01909E+11,R4880,Ex-Gratia Payments,Exgratia Payments,525,
201909,2.01909E+11,R4880,Ex-Gratia Payments,Exgratia Payments,"2,125.00",
201909,2.01909E+11,Z2114,Police Property Act Fund - Transactions Money Out (Total Expenditure),Allerdale Girls Football Club,"2,500.00",
201909,2.01909E+11,Z2114,Police Property Act Fund - Transactions Money Out (Total Expenditure),Allerdale Girls Football Club,"2,500.00",
201909,2.01909E+11,Z2123,Returned Payments - Clearance in the Year (Expenditure),Allerdale Girls Football Club,"2,500.00",
201909,2.01909E+11,Z2114,Police Property Act Fund - Transactions Money Out (Total Expenditure),Maryport Boys and Girls Club,"1,000.00",
201909,2.01909E+11,R6757,Consultants Fees - Finance,Link Treasury Services Ltd,"6,500.00",
201909,2.01909E+11,R6757,Consultants Fees - Finance,Government Actuary's Department,"5,699.89",
201909,2.01909E+11,Z2114,Police Property Act Fund - Transactions Money Out (Total Expenditure),2nd Ulverston Scout Group,"2,500.00",
201909,2.01909E+11,R6710,Subscriptions,PPL PRS Ltd,"11,643.38",
201909,2.01909E+11,R7380,Settlement of 3rd Party Claims for damage to property / vehicles,Gallagher Bassett International Ltd,"7,656.00",
201909,2.01909E+11,R7290,Other Third Party Payments,Police and Crime Commissioner for Greater Manchester,"8,850.00",
201909,2.01909E+11,R6824,NatWest Corporate Card Payments,Natwest Corporate Card,"2,293.19",
201909,2.01909E+11,R6824,NatWest Corporate Card Payments,Natwest Corporate Card,"3,220.13",
201909,2.01909E+11,R6824,NatWest Corporate Card Payments,Natwest Corporate Card,"8,099.87",
201909,2.01909E+11,R6830,External Audit Fee,Grant Thornton UK LLP,"2,888.00",
201909,2.01909E+11,R7042,Pension Services,XPS Administration Limited T/A XPS Administration,"8,396.00",
201909,2.01909E+11,Z2123,Returned Payments - Clearance in the Year (Expenditure),XPS Administration Limited T/A XPS Administration,"10,075.20",
201909,2.01909E+11,R6710,Subscriptions,Information Commissioner,"2,895.00",
201909,2.01909E+11,R7042,Pension Services,XPS Administration Limited T/A XPS Administration,"8,396.00",
201909,2.01909E+11,R7290,Other Third Party Payments,Tellemachus Limited,"18,999.90",
201909,2.01909E+11,R1720,Other Support Function Training,Chartered Institute of Public Finance and Accountancy,"-2,500.00",
201909,2.01909E+11,R6710,Subscriptions,Chartered Institute of Public Finance and Accountancy,"15,000.00",
201909,2.01909E+11,R1720,Other Support Function Training,Chartered Institute of Public Finance and Accountancy,"2,500.00",
201909,2.01909E+11,R6785,Contributions - PCC Commissioning Services,GLL North (Greenwich Leisure),"2,000.00",
201909,2.01909E+11,R6785,Contributions - PCC Commissioning Services,Cumbria Gateway,"10,445.25",
201909,2.01909E+11,R6785,Contributions - PCC Commissioning Services,Carlisle Mencap Ltd,"7,000.00",
201909,2.01909E+11,R6785,Contributions - PCC Commissioning Services,Triple A Project (All About Autism),"2,500.00",
201909,2.01909E+11,R6785,Contributions - PCC Commissioning Services,Triple A Project (All About Autism),"7,000.00",
201909,2.01909E+11,R6785,Contributions - PCC Commissioning Services,Cumbria Partnership NHS Foundation Trust,"42,000.00",
201909,2.01909E+11,R2600,Rent,Cumbria Partnership NHS Foundation Trust,"1,400.00",
201909,2.01909E+11,R2700,Cleaning Contract,Cumbria Partnership NHS Foundation Trust,"2,186.25",
201909,2.01909E+11,R2505,Gas,Cumbria Partnership NHS Foundation Trust,858.5,
201909,2.01909E+11,R2510,Electricity,Cumbria Partnership NHS Foundation Trust,"1,054.48",
201909,2.01909E+11,R6785,Contributions - PCC Commissioning Services,Cumbria Partnership NHS Foundation Trust,"42,000.00",
201909,2.01909E+11,R7290,Other Third Party Payments,Allerdale Borough Council,989.26,
201909,2.01909E+11,R6785,Contributions - PCC Commissioning Services,Shackles off,"6,942.92",
201909,2.01909E+11,R4920,SARC Doctors,G4S Health Services (UK) Ltd,"19,172.42",
201909,2.01909E+11,R4920,SARC Doctors,G4S Health Services (UK) Ltd,"19,172.42",
201909,2.01909E+11,R6785,Contributions - PCC Commissioning Services,Victim Support,"72,888.55",
201909,2.01909E+11,R6785,Contributions - PCC Commissioning Services,Victim Support,"72,888.55",
201909,2.01909E+11,R6785,Contributions - PCC Commissioning Services,Victim Support,"18,688.34",
201909,2.01909E+11,R6785,Contributions - PCC Commissioning Services,Victim Support,"72,888.55",
201909,2.01909E+11,R6785,Contributions - PCC Commissioning Services,Victim Support,"72,888.55",
201909,2.01909E+11,R6785,Contributions - PCC Commissioning Services,Victim Support,"18,688.33",
201909,2.01909E+11,R5730,Other Allowances,Redacted: Disclosure of information would breach the Data Protection Act 1988,603.75,
201909,2.01909E+11,R4155,External Printing,42 Creative,900,
201909,2.01909E+11,R6785,Contributions - PCC Commissioning Services,Springfield,"7,000.00",
201909,2.01909E+11,R6785,Contributions - PCC Commissioning Services,Women's Community Matters,"3,000.00",
201909,2.01909E+11,R6785,Contributions - PCC Commissioning Services,Women's Community Matters,"3,591.17",
201909,2.01909E+11,R6785,Contributions - PCC Commissioning Services,Women's Community Matters,"10,088.76",
201909,2.01909E+11,R6785,Contributions - PCC Commissioning Services,Signal Film and Media,"3,000.00",
201909,2.01909E+11,R6785,Contributions - PCC Commissioning Services,Signal Film and Media,"6,930.00",
201909,2.01909E+11,R6830,External Audit Fee,Grant Thornton UK LLP,"5,840.00",
201909,2.01909E+11,R6730,Non-Staff Advertising,Newsquest Media Group,600,
201909,2.01909E+11,R6785,Contributions - PCC Commissioning Services,Remedi-Restorative Services,"2,600.00",
201909,2.01909E+11,R6785,Contributions - PCC Commissioning Services,Remedi-Restorative Services,"9,041.67",
201909,2.01909E+11,R6785,Contributions - PCC Commissioning Services,Remedi-Restorative Services,"9,041.67",
201909,2.01909E+11,R6785,Contributions - PCC Commissioning Services,Remedi-Restorative Services,"2,600.00",
201909,2.01909E+11,R5600,Postage Costs,Royal Mail,"1,055.79",
201909,2.01909E+11,R5600,Postage Costs,Royal Mail,"1,813.47",
201909,2.01909E+11,R5600,Postage Costs,Royal Mail,973.69,
201909,2.01909E+11,R5600,Postage Costs,Royal Mail,996.81,
201909,2.01909E+11,R5600,Postage Costs,Royal Mail,"1,049.09",
201909,2.01909E+11,R5600,Postage Costs,Royal Mail,993,
201909,2.01909E+11,R5600,Postage Costs,Royal Mail,"1,116.36",
201909,2.01909E+11,R5600,Postage Costs,Royal Mail,"1,131.26",
201909,2.01909E+11,R5600,Postage Costs,Royal Mail,"1,239.69",
201909,2.01909E+11,R5600,Postage Costs,Royal Mail,"1,054.44",
201909,2.01909E+11,R5600,Postage Costs,Royal Mail,954.44,
201909,2.01909E+11,R5600,Postage Costs,Royal Mail,"1,239.69",
201909,2.01909E+11,R5867,Operational Equipment - Maintenance,Truvelo (UK) Limited,"2,768.00",
201909,2.01909E+11,R2720,Other Cleaning & Domestic Equipment,Arrow County Supplies,900,
201909,2.01909E+11,R2720,Other Cleaning & Domestic Equipment,Arrow County Supplies,"1,196.80",
201909,2.01909E+11,R2720,Other Cleaning & Domestic Equipment,Arrow County Supplies,"1,196.80",
201909,2.01909E+11,R2720,Other Cleaning & Domestic Equipment,Arrow County Supplies,"1,347.60",
201909,2.01909E+11,R2720,Other Cleaning & Domestic Equipment,Arrow County Supplies,906.7,
201909,2.01909E+11,R3110,Vehicle Maintenance - Tyres & Tubes,Goodyear Dunlop Tyres UK Limited,"12,336.19",
201909,2.01909E+11,R3110,Vehicle Maintenance - Tyres & Tubes,Goodyear Dunlop Tyres UK Limited,"10,858.76",
201909,2.01909E+11,R3450,Accident Damage (Below Insurance Excess)),National Windscreens,663.5,
201909,2.01909E+11,R3510,Vehicle Fuel,Allstar Business Solutions Ltd,"1,785.69",
201909,2.01909E+11,R3510,Vehicle Fuel,Allstar Business Solutions Ltd,"1,095.70",
201909,2.01909E+11,R3510,Vehicle Fuel,Allstar Business Solutions Ltd,"1,828.91",
201909,2.01909E+11,R2030,Unplanned Building Services Security & Security Equipment Maintenance,Chubb Fire & Security Limited,992.18,
201909,2.01909E+11,R2265,Planned Servicing Fire Systems,Chubb Fire & Security Limited,866.11,
201909,2.01909E+11,R2800,Security and Alarms (inc locks),Chubb Fire & Security Limited,"1,994.00",
201909,2.01909E+11,R2030,Unplanned Building Services Security & Security Equipment Maintenance,Chubb Fire & Security Limited,597.53,
201909,2.01909E+11,R3460,Accident Damage (Below Insurance Threshold),James Alpe Ltd,"1,000.00",
201909,2.01909E+11,R3460,Accident Damage (Below Insurance Threshold),James Alpe Ltd,"1,408.81",
201909,2.01909E+11,R3460,Accident Damage (Below Insurance Threshold),James Alpe Ltd,"1,000.00",
201909,2.01909E+11,R2700,Cleaning Contract,Bulloughs Cleaning Services Ltd,980,
201909,2.01909E+11,R2700,Cleaning Contract,Bulloughs Cleaning Services Ltd,513,
201909,2.01909E+11,R2700,Cleaning Contract,Bulloughs Cleaning Services Ltd,"13,144.49",
201909,2.01909E+11,R2700,Cleaning Contract,Bulloughs Cleaning Services Ltd,"3,742.03",
201909,2.01909E+11,R2700,Cleaning Contract,Bulloughs Cleaning Services Ltd,600.98,
201909,2.01909E+11,R2700,Cleaning Contract,Bulloughs Cleaning Services Ltd,"5,127.48",
201909,2.01909E+11,R2700,Cleaning Contract,Bulloughs Cleaning Services Ltd,"2,423.10",
201909,2.01909E+11,R2700,Cleaning Contract,Bulloughs Cleaning Services Ltd,"3,665.94",
201909,2.01909E+11,R2700,Cleaning Contract,Bulloughs Cleaning Services Ltd,"1,502.43",
201909,2.01909E+11,R2700,Cleaning Contract,Bulloughs Cleaning Services Ltd,600.97,
201909,2.01909E+11,R2700,Cleaning Contract,Bulloughs Cleaning Services Ltd,"1,502.43",
201909,2.01909E+11,R2700,Cleaning Contract,Bulloughs Cleaning Services Ltd,"13,144.49",
201909,2.01909E+11,R2700,Cleaning Contract,Bulloughs Cleaning Services Ltd,"3,742.03",
201909,2.01909E+11,R2700,Cleaning Contract,Bulloughs Cleaning Services Ltd,600.98,
201909,2.01909E+11,R2700,Cleaning Contract,Bulloughs Cleaning Services Ltd,"5,127.48",
201909,2.01909E+11,R2700,Cleaning Contract,Bulloughs Cleaning Services Ltd,"2,423.10",
201909,2.01909E+11,R2700,Cleaning Contract,Bulloughs Cleaning Services Ltd,"3,665.94",
201909,2.01909E+11,R2700,Cleaning Contract,Bulloughs Cleaning Services Ltd,"1,502.43",
201909,2.01909E+11,R2700,Cleaning Contract,Bulloughs Cleaning Services Ltd,600.97,
201909,2.01909E+11,R2700,Cleaning Contract,Bulloughs Cleaning Services Ltd,"1,502.43",
201909,2.01909E+11,R7006,North West Ambulance Service - Estates Management Collaboration,BID Group Ltd,"1,683.00",
201909,2.01909E+11,R7006,North West Ambulance Service - Estates Management Collaboration,BID Group Ltd,"1,440.00",
201909,2.01909E+11,R7006,North West Ambulance Service - Estates Management Collaboration,BID Group Ltd,"1,247.00",
201909,2.01909E+11,R7006,North West Ambulance Service - Estates Management Collaboration,BID Group Ltd,"1,230.00",
201909,2.01909E+11,R7006,North West Ambulance Service - Estates Management Collaboration,BID Group Ltd,735,
201909,2.01909E+11,R7006,North West Ambulance Service - Estates Management Collaboration,BID Group Ltd,999.25,
201909,2.01909E+11,R4540,Canteen - Hot Drink Machines,Rijo 42 Ingredients Ltd,846.36,
201909,2.01909E+11,R4540,Canteen - Hot Drink Machines,Rijo 42 Ingredients Ltd,"1,032.36",
201909,2.01909E+11,R4540,Canteen - Hot Drink Machines,Rijo 42 Ingredients Ltd,900.26,
201909,2.01909E+11,R4540,Canteen - Hot Drink Machines,BNP Paribas Leasing Solutions Ltd,559.99,
201909,2.01909E+11,R4540,Canteen - Hot Drink Machines,BNP Paribas Leasing Solutions Ltd,559.99,
201909,2.01909E+11,R4540,Canteen - Hot Drink Machines,BNP Paribas Leasing Solutions Ltd,559.99,
201909,2.01909E+11,R4540,Canteen - Hot Drink Machines,BNP Paribas Leasing Solutions Ltd,559.99,
201909,2.01909E+11,R4520,Canteen - Purchase of Food / Ingredients,PFD (Carlisle) Ltd t/a Pioneer Foodservice,"1,003.95",
201909,2.01909E+11,R4520,Canteen - Purchase of Food / Ingredients,PFD (Carlisle) Ltd t/a Pioneer Foodservice,777.69,
201909,2.01909E+11,R4520,Canteen - Purchase of Food / Ingredients,PFD (Carlisle) Ltd t/a Pioneer Foodservice,749.52,
201909,2.01909E+11,R4520,Canteen - Purchase of Food / Ingredients,PFD (Carlisle) Ltd t/a Pioneer Foodservice,957,
201909,2.01909E+11,R4520,Canteen - Purchase of Food / Ingredients,PFD (Carlisle) Ltd t/a Pioneer Foodservice,602.44,
201909,2.01909E+11,R4520,Canteen - Purchase of Food / Ingredients,PFD (Carlisle) Ltd t/a Pioneer Foodservice,"1,185.57",
201909,2.01909E+11,R4520,Canteen - Purchase of Food / Ingredients,PFD (Carlisle) Ltd t/a Pioneer Foodservice,643.64,
201909,2.01909E+11,R4520,Canteen - Purchase of Food / Ingredients,PFD (Carlisle) Ltd t/a Pioneer Foodservice,"1,075.73",
201909,2.01909E+11,R4520,Canteen - Purchase of Food / Ingredients,PFD (Carlisle) Ltd t/a Pioneer Foodservice,634.33,
201909,2.01909E+11,R4520,Canteen - Purchase of Food / Ingredients,PFD (Carlisle) Ltd t/a Pioneer Foodservice,857.38,
201909,2.01909E+11,R4520,Canteen - Purchase of Food / Ingredients,PFD (Carlisle) Ltd t/a Pioneer Foodservice,627.65,
201909,2.01909E+11,R4520,Canteen - Purchase of Food / Ingredients,PFD (Carlisle) Ltd t/a Pioneer Foodservice,535.87,
201909,2.01909E+11,R4520,Canteen - Purchase of Food / Ingredients,PFD (Carlisle) Ltd t/a Pioneer Foodservice,965.38,
201909,2.01909E+11,R4520,Canteen - Purchase of Food / Ingredients,PFD (Carlisle) Ltd t/a Pioneer Foodservice,886.04,
201909,2.01909E+11,R4520,Canteen - Purchase of Food / Ingredients,PFD (Carlisle) Ltd t/a Pioneer Foodservice,"1,140.39",
201909,2.01909E+11,R4520,Canteen - Purchase of Food / Ingredients,PFD (Carlisle) Ltd t/a Pioneer Foodservice,"1,146.81",
201909,2.01909E+11,R4520,Canteen - Purchase of Food / Ingredients,PFD (Carlisle) Ltd t/a Pioneer Foodservice,947.44,
201909,2.01909E+11,R3460,Accident Damage (Below Insurance Threshold),Thompson Accident Repair Centre,"1,000.00",
201909,2.01909E+11,R3120,Vehicle Maintenance - Parts Purchase,Thompson Accident Repair Centre,505.83,
201909,2.01909E+11,R3410,Vehicle Misuse & Neglect,Thompson Accident Repair Centre,"1,408.38",
201909,2.01909E+11,R3450,Accident Damage (Below Insurance Excess)),Thompson Accident Repair Centre,871.74,
201909,2.01909E+11,R3460,Accident Damage (Below Insurance Threshold),Thompson Accident Repair Centre,"1,000.00",
201909,2.01909E+11,R3460,Accident Damage (Below Insurance Threshold),Thompson Accident Repair Centre,"6,301.77",
201909,2.01909E+11,R3460,Accident Damage (Below Insurance Threshold),Thompson Accident Repair Centre,"1,000.00",
201909,2.01909E+11,R3460,Accident Damage (Below Insurance Threshold),Thompson Accident Repair Centre,"1,968.30",
201909,2.01909E+11,R3460,Accident Damage (Below Insurance Threshold),Thompson Accident Repair Centre,848.41,
201909,2.01909E+11,R3460,Accident Damage (Below Insurance Threshold),Thompson Accident Repair Centre,"1,690.78",
201909,2.01909E+11,R3460,Accident Damage (Below Insurance Threshold),Thompson Accident Repair Centre,"1,000.00",
201909,2.01909E+11,R2290,Planned Servicing General Maintenance,System Hydraulics Limited,708,
201909,2.01909E+11,R7006,North West Ambulance Service - Estates Management Collaboration,Contract Flooring (Cumbria) Ltd,"1,083.00",
201909,2.01909E+11,R2140,Unplanned Building Maintenance Internal Maintenance,Refrigeration (Mitton) Ltd,"1,784.00",
201909,2.01909E+11,C2830,Professional Fees,Unwin Jones Partnership,"2,500.00",
201909,2.01909E+11,C2830,Professional Fees,Unwin Jones Partnership,"2,500.00",
201909,2.01909E+11,R2280,Planned Servicing Electrics,Dawson Electrical Services Ltd,"1,140.00",
201909,2.01909E+11,R2050,Unplanned Building Services Electrics,Dawson Electrical Services Ltd,720,
201909,2.01909E+11,R2280,Planned Servicing Electrics,Dawson Electrical Services Ltd,"5,820.00",
201909,2.01909E+11,R2230,Planned Survey Electrics,JJ Group (Contracting) Ltd,"1,616.82",
201909,2.01909E+11,R2230,Planned Survey Electrics,JJ Group (Contracting) Ltd,"1,329.90",
201909,2.01909E+11,R2215,Planned Survey Structural Maintenance,JJ Group (Contracting) Ltd,804,
201909,2.01909E+11,R2260,Planned Servicing Boiler & Heating Plant,Cumbria Mechanical Plumbing Ltd,560,
201909,2.01909E+11,R2050,Unplanned Building Services Electrics,JJ Group (Contracting) Ltd,"1,035.00",
201909,2.01909E+11,R2160,Unplanned Building Maintenance Environmental Services/Plumbing,Cumbria Mechanical Plumbing Ltd,"1,493.00",
201909,2.01909E+11,R2150,Unplanned Building Maintenance Electrics,JJ Group (Contracting) Ltd,730,
201909,2.01909E+11,R2150,Unplanned Building Maintenance Electrics,JJ Group (Contracting) Ltd,820,
201909,2.01909E+11,R7006,North West Ambulance Service - Estates Management Collaboration,Cumbria Mechanical Plumbing Ltd,618.86,
201909,2.01909E+11,R2160,Unplanned Building Maintenance Environmental Services/Plumbing,Cumbria Mechanical Plumbing Ltd,747.5,
201909,2.01909E+11,R2160,Unplanned Building Maintenance Environmental Services/Plumbing,Cumbria Mechanical Plumbing Ltd,962,
201909,2.01909E+11,R3460,Accident Damage (Below Insurance Threshold),Arnold Clark Automobiles Ltd,502.05,
201909,2.01909E+11,R3410,Vehicle Misuse & Neglect,Arnold Clark Automobiles Ltd,"1,250.30",
201909,2.01909E+11,R3120,Vehicle Maintenance - Parts Purchase,Arnold Clark Automobiles Ltd,569.77,
201909,2.01909E+11,R3450,Accident Damage (Below Insurance Excess)),Border Motor Group (Car Deal Centre),618.61,
201909,2.01909E+11,R2610,Estates Leases,Walton Goodland Limited,"1,324.29",
201909,2.01909E+11,R2210,Planned Survey External Maintenance,A W Blake Ltd,"1,700.00",
201909,2.01909E+11,R2210,Planned Survey External Maintenance,A W Blake Ltd,"3,380.00",
201909,2.01909E+11,R3010,Workshop Equipment & Tools - Purchases,Thomas Graham & Sons Ltd,"1,036.00",
201909,2.01909E+11,R2460,Grounds Maintenance - Contract,S Nicholson Grounds Maintenance,750,
201909,2.01909E+11,R2460,Grounds Maintenance - Contract,S Nicholson Grounds Maintenance,750,
201909,2.01909E+11,R2610,Estates Leases,Solway Plain Futures Ltd,"1,898.00",
201909,2.01909E+11,R2730,Refuse,Amey PLC - Enterprise Managed Services Ltd,"1,159.60",
201909,2.01909E+11,R2060,Unplanned Building Services Environmental Services/Plumbing,R B Loveridge & Son Ltd,902.97,
201909,2.01909E+11,R7006,North West Ambulance Service - Estates Management Collaboration,R B Loveridge & Son Ltd,"1,409.41",
201909,2.01909E+11,R2160,Unplanned Building Maintenance Environmental Services/Plumbing,R B Loveridge & Son Ltd,965,
201909,2.01909E+11,R3120,Vehicle Maintenance - Parts Purchase,David Hayton Ltd,872.56,
201909,2.01909E+11,R7006,North West Ambulance Service - Estates Management Collaboration,Metcalfe Plant & Tool Ltd,"4,964.00",
201909,2.01909E+11,R2210,Planned Survey External Maintenance,Metcalfe Plant & Tool Ltd,"1,992.00",
201909,2.01909E+11,R7006,North West Ambulance Service - Estates Management Collaboration,John Sandelands Ltd,"4,910.97",
201909,2.01909E+11,R2610,Estates Leases,Allerdale Borough Council,512.5,
201909,2.01909E+11,C2245,Planned Survey Alterations & Improvements,Thomas Armstrong (Construction) Ltd,"390,974.43",
201909,2.01909E+11,C2245,Planned Survey Alterations & Improvements,Thomas Armstrong (Construction) Ltd,"445,994.76",
201909,2.01909E+11,C2245,Planned Survey Alterations & Improvements,Thomas Armstrong (Construction) Ltd,"382,188.09",
201909,2.01909E+11,R2610,Estates Leases,Frederick Potts & Sons Ltd,787.5,
201909,2.01909E+11,C2830,Professional Fees,Baker Mallett LLP,827.24,
201909,2.01909E+11,C2830,Professional Fees,Baker Mallett LLP,827.24,
201909,2.01909E+11,R2230,Planned Survey Electrics,Margrange Ltd,"2,619.44",
201909,2.01909E+11,C2830,Professional Fees,Tremorfa Ltd,"47,286.00",
201909,2.01909E+11,C3900,Vehicle Purchases - Capital,Ford Motor Co Ltd T/A Parts Plus,"30,559.87",
201909,2.01909E+11,R2715,Clinical Waste,FCC Environment Uk Ltd,556.4,
201909,2.01909E+11,R2735,Pest Control,Rentokil Initial UK Ltd,625,
201909,2.01909E+11,R3980,Vehicle Road Fund Licenses,Post Office Counters Ltd,590,
201909,2.01909E+11,R2680,PFI Occupancy Charges,West Cumbria Estates Management Limited,"100,965.33",
201909,2.01909E+11,R2680,PFI Occupancy Charges,West Cumbria Estates Management Limited,"100,965.33",
201909,2.01909E+11,R2680,PFI Occupancy Charges,West Cumbria Estates Management Limited,"100,965.33",
201909,2.01909E+11,R2505,Gas,Energy Assets Ltd,548.44,
201909,2.01909E+11,R2500,Oil,Scottish Fuels,"3,552.60",
201909,2.01909E+11,R2500,Oil,Scottish Fuels,591.89,
201909,2.01909E+11,R2500,Oil,Scottish Fuels,890.7,
201909,2.01909E+11,R2500,Oil,Scottish Fuels,"5,950.00",
201909,2.01909E+11,R3010,Workshop Equipment & Tools - Purchases,Autoparts Garage Services,"4,580.87",
201909,2.01909E+11,R3010,Workshop Equipment & Tools - Purchases,Autoparts Garage Services,"4,580.87",
201909,2.01909E+11,R3020,Workshop Equipment & Tools - Servicing / Repairs,Autoparts Garage Services,"3,815.00",
201909,2.01909E+11,R3020,Workshop Equipment & Tools - Servicing / Repairs,Autoparts Garage Services,862,
201909,2.01909E+11,R3020,Workshop Equipment & Tools - Servicing / Repairs,Autoparts Garage Services,"2,660.00",
201909,2.01909E+11,R3020,Workshop Equipment & Tools - Servicing / Repairs,Autoparts Garage Services,608.44,
201909,2.01909E+11,R3120,Vehicle Maintenance - Parts Purchase,Arnold Clark Automobiles Ltd,879.64,
201909,2.01909E+11,R3120,Vehicle Maintenance - Parts Purchase,Arnold Clark Automobiles Ltd,811.03,
201909,2.01909E+11,R2510,Electricity,British Gas Trading,"7,831.66",
201909,2.01909E+11,R2510,Electricity,British Gas Trading,"4,698.57",
201909,2.01909E+11,R3210,Police Vehicle Recovery & Transport,FMG Support (RRRM) Ltd,"1,775.00",
201909,2.01909E+11,R3210,Police Vehicle Recovery & Transport,FMG Support (RRRM) Ltd,"2,009.60",
201909,2.01909E+11,R2730,Refuse,Biffa Waste Services Ltd,735.6,
201909,2.01909E+11,R2730,Refuse,Biffa Waste Services Ltd,627.52,
201909,2.01909E+11,R2730,Refuse,Biffa Waste Services Ltd,655.6,
201909,2.01909E+11,R2730,Refuse,Biffa Waste Services Ltd,513.3,
201909,2.01909E+11,R2140,Unplanned Building Maintenance Internal Maintenance,A1 Lifts Limited,720,
201909,2.01909E+11,R2140,Unplanned Building Maintenance Internal Maintenance,A1 Lifts Limited,"1,657.00",
201909,2.01909E+11,R7006,North West Ambulance Service - Estates Management Collaboration,George Shepherd Ltd,"1,417.98",
201909,2.01909E+11,R2185,Unplanned Building Maintenance Internal Structures,FTS Fire & Security Ltd,950.4,
201909,2.01909E+11,R2040,Unplanned Building Services Fire Systems,FTS Fire & Security Ltd,918,
201909,2.01909E+11,R2265,Planned Servicing Fire Systems,FTS Fire & Security Ltd,622.5,
201909,2.01909E+11,R2185,Unplanned Building Maintenance Internal Structures,FTS Fire & Security Ltd,564,
201909,2.01909E+11,R2240,Planned Survey Safety Works,FTS Fire & Security Ltd,"1,552.00",
201909,2.01909E+11,R3120,Vehicle Maintenance - Parts Purchase,Lloyd Motors South Lakes Ltd,758.64,
201909,2.01909E+11,R3020,Workshop Equipment & Tools - Servicing / Repairs,Snap On Holdings Ltd,"2,835.00",
201909,2.01909E+11,R2610,Estates Leases,Millom Network Centre,568.75,
201909,2.01909E+11,R3920,Marine Unit - Maintenance Costs,Maiden Marine Ltd,592.37,
201909,2.01909E+11,R2505,Gas,Flogas Britain Ltd,689.75,
201909,2.01909E+11,R2273,Planned Servicing Firearms - Bullet Trap etc,Aberswift De-Leading Specialists Limited,"4,920.00",
201909,2.01909E+11,R2830,Professional Fees,DSSR Consulting Engineers,"1,200.00",
201909,2.01909E+11,R2830,Professional Fees,DSSR Consulting Engineers,"1,200.00",
201909,2.01909E+11,R2740,Destruction of Confidential Waste,Shred-it (Europe) Ltd,"1,335.00",
201909,2.01909E+11,R2740,Destruction of Confidential Waste,Shred-it (Europe) Ltd,819,
201909,2.01909E+11,R2610,Estates Leases,Ulverston Properties Ltd,780,
201909,2.01909E+11,R2610,Estates Leases,Ulverston Properties Ltd,780,
201909,2.01909E+11,R2610,Estates Leases,Ulverston Properties Ltd,780,
201909,2.01909E+11,R4505,Catering - Operational,The Street Diner,"9,047.00",
201909,2.01909E+11,R2550,Metered Water,Castle Water Limited,"12,106.46",
201909,2.01909E+11,R2565,Sewerage & Environmental Services,Castle Water Limited,"23,881.13",
201909,2.01909E+11,R2550,Metered Water,Castle Water Limited,"8,135.44",
201909,2.01909E+11,R2565,Sewerage & Environmental Services,Castle Water Limited,"4,124.23",
201909,2.01909E+11,R2510,Electricity,EDF Energy,"10,807.92",
201909,2.01909E+11,R2530,Climate Change Levy,EDF Energy,697.8,
201909,2.01909E+11,R2510,Electricity,EDF Energy,"5,366.67",
201909,2.01909E+11,R2510,Electricity,EDF Energy,"-5,634.28",
201909,2.01909E+11,R2510,Electricity,EDF Energy,"2,948.74",
201909,2.01909E+11,R2510,Electricity,EDF Energy,"16,088.06",
201909,2.01909E+11,R2530,Climate Change Levy,EDF Energy,"1,044.61",
201909,2.01909E+11,R2510,Electricity,EDF Energy,"5,696.52",
201909,2.01909E+11,R2510,Electricity,EDF Energy,"-5,696.52",
201909,2.01909E+11,R2510,Electricity,EDF Energy,"3,084.37",
201909,2.01909E+11,R2510,Electricity,EDF Energy,"5,740.48",
201909,2.01909E+11,R2510,Electricity,EDF Energy,"11,461.80",
201909,2.01909E+11,R2530,Climate Change Levy,EDF Energy,741,
201909,2.01909E+11,R2510,Electricity,EDF Energy,"16,800.70",
201909,2.01909E+11,R2530,Climate Change Levy,EDF Energy,"1,081.88",
201909,2.01909E+11,R2510,Electricity,EDF Energy,"10,870.37",
201909,2.01909E+11,R2530,Climate Change Levy,EDF Energy,701.18,
201909,2.01909E+11,R2510,Electricity,EDF Energy,"3,162.83",
201909,2.01909E+11,R2510,Electricity,EDF Energy,"16,078.37",
201909,2.01909E+11,R2530,Climate Change Levy,EDF Energy,"1,034.26",
201909,2.01909E+11,R2510,Electricity,EDF Energy,"5,714.66",
201909,2.01909E+11,R3450,Accident Damage (Below Insurance Excess)),Enterprise Rent-a-car UK Limited,790.92,
201909,2.01909E+11,R2170,Unplanned Building Maintenance External Maintenance,Dorma UK Ltd,"3,026.95",
201909,2.01909E+11,R2170,Unplanned Building Maintenance External Maintenance,Dorma UK Ltd,"-1,046.00",
201909,2.01909E+11,R2170,Unplanned Building Maintenance External Maintenance,Dorma UK Ltd,"1,992.50",
201909,2.01909E+11,R2170,Unplanned Building Maintenance External Maintenance,Dorma UK Ltd,"1,857.95",
201909,2.01909E+11,R2030,Unplanned Building Services Security & Security Equipment Maintenance,Dorma UK Ltd,561.02,
201909,2.01909E+11,R2277,Planned Servicing Water Chlorination,Water and air Management Limited,"1,700.73",
201909,2.01909E+11,R2277,Planned Servicing Water Chlorination,Water and air Management Limited,989.4,
201909,2.01909E+11,R7006,North West Ambulance Service - Estates Management Collaboration,Countrywide Grounds Maintenance Ltd,641.66,
201909,2.01909E+11,R7006,North West Ambulance Service - Estates Management Collaboration,Countrywide Grounds Maintenance Ltd,641.66,
201909,2.01909E+11,R7006,North West Ambulance Service - Estates Management Collaboration,Countrywide Grounds Maintenance Ltd,641.66,
201909,2.01909E+11,R3120,Vehicle Maintenance - Parts Purchase,Castrol (UK) Ltd,524.16,
201909,2.01909E+11,R3120,Vehicle Maintenance - Parts Purchase,Castrol (UK) Ltd,"1,048.32",
201909,2.01909E+11,R3120,Vehicle Maintenance - Parts Purchase,Castrol (UK) Ltd,"1,072.36",
201909,2.01909E+11,C3900,Vehicle Purchases - Capital,Volkswagen Group UK Ltd,"21,236.42",
201909,2.01909E+11,C3900,Vehicle Purchases - Capital,Volkswagen Group UK Ltd,"21,236.42",
201909,2.01909E+11,C3900,Vehicle Purchases - Capital,Volkswagen Group UK Ltd,"21,236.42",
201909,2.01909E+11,R3110,Vehicle Maintenance - Tyres & Tubes,Lloyd Motors Ltd,"3,081.22",
201909,2.01909E+11,R3120,Vehicle Maintenance - Parts Purchase,Lloyd Motors Ltd,530.5,
201909,2.01909E+11,R3120,Vehicle Maintenance - Parts Purchase,Lloyd Motors Ltd,544.9,
201909,2.01909E+11,R2286,Planned Servicing Generators/UPS,Burtonwood Generator & Switchgear Services Limited,547,
201909,2.01909E+11,R2286,Planned Servicing Generators/UPS,Burtonwood Generator & Switchgear Services Limited,547,
201909,2.01909E+11,R2286,Planned Servicing Generators/UPS,Burtonwood Generator & Switchgear Services Limited,547,
201909,2.01909E+11,R2286,Planned Servicing Generators/UPS,Burtonwood Generator & Switchgear Services Limited,620,
201909,2.01909E+11,R2286,Planned Servicing Generators/UPS,Burtonwood Generator & Switchgear Services Limited,620,
201909,2.01909E+11,R2505,Gas,Corona Energy,"7,822.34",
201909,2.01909E+11,R2505,Gas,Corona Energy,"4,200.41",
201909,2.01909E+11,R1720,Other Support Function Training,Auto Train Ltd,"3,078.00",
201909,2.01909E+11,R3510,Vehicle Fuel,Allstar Business Solutions Ltd,629,
201909,2.01909E+11,R3510,Vehicle Fuel,Allstar Business Solutions Ltd,"1,411.94",
201909,2.01909E+11,R3510,Vehicle Fuel,Allstar Business Solutions Ltd,"70,170.27",
201909,2.01909E+11,R3510,Vehicle Fuel,Allstar Business Solutions Ltd,"1,366.11",
201909,2.01909E+11,R3510,Vehicle Fuel,Allstar Business Solutions Ltd,"2,692.05",
201909,2.01909E+11,R3510,Vehicle Fuel,Allstar Business Solutions Ltd,502.74,
201909,2.01909E+11,R3510,Vehicle Fuel,Allstar Business Solutions Ltd,"1,273.53",
201909,2.01909E+11,R3510,Vehicle Fuel,Allstar Business Solutions Ltd,"2,165.17",
201909,2.01909E+11,R3510,Vehicle Fuel,Allstar Business Solutions Ltd,"64,376.93",
201909,2.01909E+11,R3510,Vehicle Fuel,Allstar Business Solutions Ltd,645.58,
201909,2.01909E+11,R3510,Vehicle Fuel,Allstar Business Solutions Ltd,"1,596.50",
201909,2.01909E+11,R3510,Vehicle Fuel,Allstar Business Solutions Ltd,"1,498.69",
201909,2.01909E+11,R3510,Vehicle Fuel,Allstar Business Solutions Ltd,"1,239.24",
201909,2.01909E+11,R3510,Vehicle Fuel,Allstar Business Solutions Ltd,780.32,
201909,2.01909E+11,R3510,Vehicle Fuel,Allstar Business Solutions Ltd,964.52,
201909,2.01909E+11,R3510,Vehicle Fuel,Allstar Business Solutions Ltd,"2,220.63",
201909,2.01909E+11,R3510,Vehicle Fuel,Allstar Business Solutions Ltd,"1,307.87",
201909,2.01909E+11,R3510,Vehicle Fuel,Allstar Business Solutions Ltd,"3,731.66",
201909,2.01909E+11,R3510,Vehicle Fuel,Allstar Business Solutions Ltd,"69,628.04",
201909,2.01909E+11,R3510,Vehicle Fuel,Allstar Business Solutions Ltd,"1,263.66",
201909,2.01909E+11,R3510,Vehicle Fuel,Allstar Business Solutions Ltd,838.92,
201909,2.01909E+11,R3510,Vehicle Fuel,Allstar Business Solutions Ltd,"1,912.77",
201909,2.01909E+11,R3020,Workshop Equipment & Tools - Servicing / Repairs,RSG Engineering Ltd,"1,067.00",
201909,2.01909E+11,C3905,Vehicle Adaptations - Capital,RSG Engineering Ltd,941.21,
201909,2.01909E+11,R2730,Refuse,City Electrical Factors,"1,165.33",
201909,2.01909E+11,R5325,Computer Software - Maintenance,Jedson Technologies SP,731.87,
201909,2.01909E+11,R1710,ICT Training,SailPoint Technologies Inc,"1,610.00",
201909,2.01909E+11,R1710,ICT Training,SailPoint Technologies Inc,966,
201909,2.01909E+11,R5015,Telephone Charges - Mobile Phones,EE Limited,"3,440.05",
201909,2.01909E+11,R5015,Telephone Charges - Mobile Phones,EE Limited,"4,607.25",
201909,2.01909E+11,R5015,Telephone Charges - Mobile Phones,EE Limited,"4,597.35",
201909,2.01909E+11,R5015,Telephone Charges - Mobile Phones,EE Limited,"3,439.06",
201909,2.01909E+11,R5310,Computer Hardware - Purchase,SCC (Specialist Computer Centre),"1,516.66",
201909,2.01909E+11,R5310,Computer Hardware - Purchase,SCC (Specialist Computer Centre),"1,849.74",
201909,2.01909E+11,R5310,Computer Hardware - Purchase,SCC (Specialist Computer Centre),"1,080.46",
201909,2.01909E+11,C5310,Computer Hardware - Purchase,BT Business Direct Ltd,"10,648.01",
201909,2.01909E+11,C5310,Computer Hardware - Purchase,BT Business Direct Ltd,"27,292.08",
201909,2.01909E+11,R5310,Computer Hardware - Purchase,BT Business Direct Ltd,848,
201909,2.01909E+11,R5115,Networks Hardware Maintenance,Capita IT Services,"9,000.00",
201909,2.01909E+11,R5325,Computer Software - Maintenance,Capita Secure Information Solutions Ltd,"4,335.43",
201909,2.01909E+11,R5325,Computer Software - Maintenance,Capita Secure Information Solutions Ltd,"17,481.72",
201909,2.01909E+11,R5325,Computer Software - Maintenance,Capita Secure Information Solutions Ltd,"5,523.90",
201909,2.01909E+11,R5325,Computer Software - Maintenance,Saadian Technologies Limited,"9,999.00",
201909,2.01909E+11,R5325,Computer Software - Maintenance,Altia Solutions Ltd,"2,560.00",
201909,2.01909E+11,C5320,Computer Software - Purchase,Saab AB,"10,240.00",
201909,2.01909E+11,C5320,Computer Software - Purchase,Saab AB,"6,548.00",
201909,2.01909E+11,R5325,Computer Software - Maintenance,Saab AB,"398,792.36",
201909,2.01909E+11,C5320,Computer Software - Purchase,Saab AB,"715,583.40",
201909,2.01909E+11,C5320,Computer Software - Purchase,Saab AB,"700,349.98",
201909,2.01909E+11,R5320,Computer Software - Purchase,Saab AB,-891.95,
201909,2.01909E+11,R1710,ICT Training,QA Training Ltd,"3,210.15",
201909,2.01909E+11,R1710,ICT Training,QA Training Ltd,"7,802.00",
201909,2.01909E+11,C5325,Computer Software - Services,NCC Group Security Services Limited,"2,531.56",
201909,2.01909E+11,R5325,Computer Software - Maintenance,NCC Group Security Services Limited,"13,750.00",
201909,2.01909E+11,C5310,Computer Hardware - Purchase,Softcat PLC,"1,452.01",
201909,2.01909E+11,R5325,Computer Software - Maintenance,Softcat PLC,"41,518.60",
201909,2.01909E+11,R5325,Computer Software - Maintenance,Insight Direct (UK) Ltd,648.56,
201909,2.01909E+11,R5320,Computer Software - Purchase,Insight Direct (UK) Ltd,685.65,
201909,2.01909E+11,R5120,Networks Private Circuits,Insight Direct (UK) Ltd,"3,352.40",
201909,2.01909E+11,C5120,Networks Private Circuits,Insight Direct (UK) Ltd,"1,000.00",
201909,2.01909E+11,R5120,Networks Private Circuits,Insight Direct (UK) Ltd,"3,549.82",
201909,2.01909E+11,R5120,Networks Private Circuits,Insight Direct (UK) Ltd,"2,481.94",
201909,2.01909E+11,R5120,Networks Private Circuits,Insight Direct (UK) Ltd,"3,333.24",
201909,2.01909E+11,R5120,Networks Private Circuits,Insight Direct (UK) Ltd,"2,082.77",
201909,2.01909E+11,C5120,Networks Private Circuits,Insight Direct (UK) Ltd,"2,375.00",
201909,2.01909E+11,R5120,Networks Private Circuits,Insight Direct (UK) Ltd,"2,752.20",
201909,2.01909E+11,R5120,Networks Private Circuits,Insight Direct (UK) Ltd,"3,477.71",
201909,2.01909E+11,R5120,Networks Private Circuits,Insight Direct (UK) Ltd,"5,407.82",
201909,2.01909E+11,R5120,Networks Private Circuits,Insight Direct (UK) Ltd,"3,760.37",
201909,2.01909E+11,C5120,Networks Private Circuits,Insight Direct (UK) Ltd,950,
201909,2.01909E+11,R5120,Networks Private Circuits,Insight Direct (UK) Ltd,"2,858.75",
201909,2.01909E+11,R5120,Networks Private Circuits,Vodafone Limited,"3,958.16",
201909,2.01909E+11,R5120,Networks Private Circuits,Vodafone Limited,"11,876.21",
201909,2.01909E+11,R5120,Networks Private Circuits,Vodafone Limited,"11,876.21",
201909,2.01909E+11,R5120,Networks Private Circuits,Vodafone Limited,"46,800.00",
201909,2.01909E+11,R5120,Networks Private Circuits,Vodafone Limited,"-9,784.11",
201909,2.01909E+11,R5120,Networks Private Circuits,Vodafone Limited,"-11,630.11",
201909,2.01909E+11,R5120,Networks Private Circuits,Vodafone Limited,"3,958.16",
201909,2.01909E+11,R5120,Networks Private Circuits,Vodafone Limited,"3,958.16",
201909,2.01909E+11,R5315,Computer Hardware - Maintenance,Specialised Equipment Cleaning,645,
201909,2.01909E+11,R5315,Computer Hardware - Maintenance,Specialised Equipment Cleaning,565.25,
201909,2.01909E+11,R5010,Telephone Charges - Landlines,TalkTalk,"2,698.43",
201909,2.01909E+11,R5010,Telephone Charges - Landlines,TalkTalk,"2,560.81",
201909,2.01909E+11,R5325,Computer Software - Maintenance,ABM Intelligence Ltd,"14,346.56",
201909,2.01909E+11,C6755,Consultants Fees - ICT,MHR International UK LTD,"1,062.00",
201909,2.01909E+11,R5120,Networks Private Circuits,Vodafone Limited,"1,776.00",
201909,2.01909E+11,R5120,Networks Private Circuits,Vodafone Limited,"1,776.00",
201909,2.01909E+11,R5010,Telephone Charges - Landlines,British Telecom,"16,843.29",
201909,2.01909E+11,R5325,Computer Software - Maintenance,Bottomline Technologies Europe Ltd,"1,421.99",
201909,2.01909E+11,R5325,Computer Software - Maintenance,Griffeye Technologies AB,"2,985.00",
201909,2.01909E+11,R5325,Computer Software - Maintenance,Fortrus Limited,"17,496.00",
201909,2.01909E+11,R5215,Radio / Airwave Equipment - Maintenance,Airwave Solutions Limited (Subsidiary:- Kelvin Connect),"78,907.77",
201909,2.01909E+11,R5215,Radio / Airwave Equipment - Maintenance,Airwave Solutions Limited (Subsidiary:- Kelvin Connect),"76,892.28",
201909,2.01909E+11,C5310,Computer Hardware - Purchase,Airwave Solutions Limited (Subsidiary:- Kelvin Connect),"1,350.00",
201909,2.01909E+11,R5215,Radio / Airwave Equipment - Maintenance,Airwave Solutions Limited (Subsidiary:- Kelvin Connect),"75,748.10",
201909,2.01909E+11,R5310,Computer Hardware - Purchase,Stone Computers Ltd,"1,250.00",
201909,2.01909E+11,R5310,Computer Hardware - Purchase,Stone Computers Ltd,"4,072.88",
201909,2.01909E+11,R5315,Computer Hardware - Maintenance,Stone Computers Ltd,784,
201909,2.01909E+11,R5325,Computer Software - Maintenance,Unisys Ltd,"19,396.00",
201909,2.01909E+11,R5325,Computer Software - Maintenance,Version 1 Solutions Limited,"3,908.63",
201909,2.01909E+11,R5345,Computer & Printer Consumables,Xerox UK Ltd,"5,024.99",
Period,Unique Record Identifier,Account,Account Code Description,Supplier Name,Amount ,
201910,2.0191E+11,R5600,Postage Costs,Royal Mail,1054.44,
201910,2.0191E+11,R5600,Postage Costs,Royal Mail,1239.69,
201910,2.0191E+11,R5600,Postage Costs,Royal Mail,1304.89,
201910,2.0191E+11,R5600,Postage Costs,Royal Mail,2071.89,
201910,2.0191E+11,R2600,Rent,Reed Rains,750,
201910,2.0191E+11,R3660,Redacted: The information is confidential or would attract an exemption under the Freedom of Information Act e.g. where disclosure could be prejudicial to the commercial interests of any person including the authority ,Redacted: The information is confidential or would attract an exemption under the Freedom of Information Act e.g. where disclosure could be prejudicial to the commercial interests of any person including the authority ,1782,
201910,2.0191E+11,R3660,Redacted: The information is confidential or would attract an exemption under the Freedom of Information Act e.g. where disclosure could be prejudicial to the commercial interests of any person including the authority ,Redacted: The information is confidential or would attract an exemption under the Freedom of Information Act e.g. where disclosure could be prejudicial to the commercial interests of any person including the authority ,1980,
201910,2.0191E+11,R3660,Redacted: The information is confidential or would attract an exemption under the Freedom of Information Act e.g. where disclosure could be prejudicial to the commercial interests of any person including the authority ,Redacted: The information is confidential or would attract an exemption under the Freedom of Information Act e.g. where disclosure could be prejudicial to the commercial interests of any person including the authority ,1980,
201910,2.0191E+11,B2302,Inventories/Stocks - General / Admin Equipment - Purchases,Arrow County Supplies,715.79,
201910,2.0191E+11,B2302,Inventories/Stocks - General / Admin Equipment - Purchases,Arrow County Supplies,561.9,
201910,2.0191E+11,B2312,Inventories/Stocks - Uniforms - Purchases,Sonic Communications Ltd,1190,
201910,2.0191E+11,B2312,Inventories/Stocks - Uniforms - Purchases,TCH UK Ltd,967.6,
201910,2.0191E+11,B2312,Inventories/Stocks - Uniforms - Purchases,TCH UK Ltd,2054.9,
201910,2.0191E+11,B2312,Inventories/Stocks - Uniforms - Purchases,Tranam,1148.32,
201910,2.0191E+11,B2312,Inventories/Stocks - Uniforms - Purchases,Tranam,1148.32,
201910,2.0191E+11,B2302,Inventories/Stocks - General / Admin Equipment - Purchases,Scenesafe Previously (WA Products (UK) Ltd),816.6,
201910,2.0191E+11,B2302,Inventories/Stocks - General / Admin Equipment - Purchases,Scenesafe Previously (WA Products (UK) Ltd),1299.87,
201910,2.0191E+11,B2312,Inventories/Stocks - Uniforms - Purchases,Lloyd Motors Ltd,958.85,
201910,2.0191E+11,B2312,Inventories/Stocks - Uniforms - Purchases,Keela International Ltd,506.06,
201910,2.0191E+11,B2312,Inventories/Stocks - Uniforms - Purchases,Keela International Ltd,764.75,
201910,2.0191E+11,B2312,Inventories/Stocks - Uniforms - Purchases,Try & Lilly Ltd,705.6,
201910,2.0191E+11,B2312,Inventories/Stocks - Uniforms - Purchases,Ioma Clothing Company,1844.44,
201910,2.0191E+11,B2312,Inventories/Stocks - Uniforms - Purchases,MC Products UK Ltd,583.24,
201910,2.0191E+11,B2312,Inventories/Stocks - Uniforms - Purchases,MC Products UK Ltd,595,
201910,2.0191E+11,R4300,Furniture - General,Centric Office Solutions Limited,980,
201910,2.0191E+11,R4300,Furniture - General,Centric Office Solutions Limited,1568,
201910,2.0191E+11,B2302,Inventories/Stocks - General / Admin Equipment - Purchases,Draeger Safety UK Ltd,998.1,
201910,2.0191E+11,B2312,Inventories/Stocks - Uniforms - Purchases,Deenside Ltd,864.48,
201910,2.0191E+11,B2312,Inventories/Stocks - Uniforms - Purchases,Deenside Ltd,768.99,
201910,2.0191E+11,B2312,Inventories/Stocks - Uniforms - Purchases,Mehler Vario System GmbH,717,
201910,2.0191E+11,B2312,Inventories/Stocks - Uniforms - Purchases,Mehler Vario System GmbH,1560,
201910,2.0191E+11,B2312,Inventories/Stocks - Uniforms - Purchases,Mehler Vario System GmbH,782.2,
201910,2.0191E+11,B2312,Inventories/Stocks - Uniforms - Purchases,C W Headdress Ltd,988,
201910,2.0191E+11,B2312,Inventories/Stocks - Uniforms - Purchases,Niton Equipment Ltd,7020,
201910,2.0191E+11,R4005,Office Equipment - Maintenance,Kardex Systems UK Limited,2483.1,
201910,2.0191E+11,B2312,Inventories/Stocks - Uniforms - Purchases,Edgar Brothers,1219.9,
201910,2.0191E+11,B2312,Inventories/Stocks - Uniforms - Purchases,Michael Lupton Associates Ltd,967.99,
201910,2.0191E+11,B2312,Inventories/Stocks - Uniforms - Purchases,Michael Lupton Associates Ltd,1916.65,
201910,2.0191E+11,R6750,Consultants Fees - Other,SMSR Ltd,651,
201910,2.0191E+11,R6750,Consultants Fees - Other,SMSR Ltd,665,
201910,2.0191E+11,R5350,Web Design & Running Costs,Zengenti Ltd,8016,
201910,2.0191E+11,R2720,Other Cleaning & Domestic Equipment,Arrow County Supplies,1347.6,
201910,2.0191E+11,R2720,Other Cleaning & Domestic Equipment,Arrow County Supplies,906.7,
201910,2.0191E+11,R3110,Vehicle Maintenance - Tyres & Tubes,Goodyear Dunlop Tyres UK Limited,7669.3,
201910,2.0191E+11,R3510,Vehicle Fuel,Allstar Business Solutions Ltd,1828.91,
201910,2.0191E+11,R3120,Vehicle Maintenance - Parts Purchase,Ciceley Commercials,704.91,
201910,2.0191E+11,R3460,Accident Damage (Below Insurance Threshold),James Alpe Ltd,1408.81,
201910,2.0191E+11,R3460,Accident Damage (Below Insurance Threshold),James Alpe Ltd,1000,
201910,2.0191E+11,R2700,Cleaning Contract,Bulloughs Cleaning Services Ltd,13144.49,
201910,2.0191E+11,R2700,Cleaning Contract,Bulloughs Cleaning Services Ltd,3742.03,
201910,2.0191E+11,R2700,Cleaning Contract,Bulloughs Cleaning Services Ltd,600.98,
201910,2.0191E+11,R2700,Cleaning Contract,Bulloughs Cleaning Services Ltd,5127.48,
201910,2.0191E+11,R2700,Cleaning Contract,Bulloughs Cleaning Services Ltd,2423.1,
201910,2.0191E+11,R2700,Cleaning Contract,Bulloughs Cleaning Services Ltd,3665.94,
201910,2.0191E+11,R2700,Cleaning Contract,Bulloughs Cleaning Services Ltd,1502.43,
201910,2.0191E+11,R2700,Cleaning Contract,Bulloughs Cleaning Services Ltd,600.97,
201910,2.0191E+11,R2700,Cleaning Contract,Bulloughs Cleaning Services Ltd,1502.43,
201910,2.0191E+11,R7006,North West Ambulance Service - Estates Management Collaboration,BID Group Ltd,999.25,
201910,2.0191E+11,R2070,Unplanned Building Services Internal Other,BID Group Ltd,514,
201910,2.0191E+11,R2140,Unplanned Building Maintenance Internal Maintenance,BID Group Ltd,2350,
201910,2.0191E+11,R4540,Canteen - Hot Drink Machines,Rijo 42 Ingredients Ltd,1032.36,
201910,2.0191E+11,R4540,Canteen - Hot Drink Machines,Rijo 42 Ingredients Ltd,900.26,
201910,2.0191E+11,R4520,Canteen - Purchase of Food / Ingredients,PFD (Carlisle) Ltd t/a Pioneer Foodservice,1140.39,
201910,2.0191E+11,R4520,Canteen - Purchase of Food / Ingredients,PFD (Carlisle) Ltd t/a Pioneer Foodservice,1146.81,
201910,2.0191E+11,R4520,Canteen - Purchase of Food / Ingredients,PFD (Carlisle) Ltd t/a Pioneer Foodservice,947.44,
201910,2.0191E+11,R4520,Canteen - Purchase of Food / Ingredients,PFD (Carlisle) Ltd t/a Pioneer Foodservice,1040.15,
201910,2.0191E+11,R4520,Canteen - Purchase of Food / Ingredients,PFD (Carlisle) Ltd t/a Pioneer Foodservice,950.75,
201910,2.0191E+11,R4520,Canteen - Purchase of Food / Ingredients,PFD (Carlisle) Ltd t/a Pioneer Foodservice,1076.05,
201910,2.0191E+11,R4520,Canteen - Purchase of Food / Ingredients,PFD (Carlisle) Ltd t/a Pioneer Foodservice,981.38,
201910,2.0191E+11,R4520,Canteen - Purchase of Food / Ingredients,PFD (Carlisle) Ltd t/a Pioneer Foodservice,964.06,
201910,2.0191E+11,R2080,Unplanned Building Services External Other,Top Notch Contractors Ltd,513.48,
201910,2.0191E+11,R3460,Accident Damage (Below Insurance Threshold),Thompson Accident Repair Centre,1690.78,
201910,2.0191E+11,R3460,Accident Damage (Below Insurance Threshold),Thompson Accident Repair Centre,1000,
201910,2.0191E+11,R3450,Accident Damage (Below Insurance Excess)),Thompson Accident Repair Centre,569.48,
201910,2.0191E+11,C2850,Other Building Related Fees (Planning etc),Compass Services Group (Cabling Systems) Ltd,1620,
201910,2.0191E+11,R2220,Planned Survey Internal Maintenance,Contract Flooring (Cumbria) Ltd,980,
201910,2.0191E+11,R2020,Unplanned Building Services HVAC System,Refrigeration (Mitton) Ltd,603,
201910,2.0191E+11,C2830,Professional Fees,Unwin Jones Partnership,2500,
201910,2.0191E+11,R3120,Vehicle Maintenance - Parts Purchase,Lloyd Motorrad,674.32,
201910,2.0191E+11,R3450,Accident Damage (Below Insurance Excess)),Lloyd Motorrad,2490.74,
201910,2.0191E+11,R3420,Vehicle Other Supplements,Lloyd Motorrad,2490.74,
201910,2.0191E+11,R7006,North West Ambulance Service - Estates Management Collaboration,Cumbria Mechanical Plumbing Ltd,618.86,
201910,2.0191E+11,R2160,Unplanned Building Maintenance Environmental Services/Plumbing,Cumbria Mechanical Plumbing Ltd,747.5,
201910,2.0191E+11,R2160,Unplanned Building Maintenance Environmental Services/Plumbing,Cumbria Mechanical Plumbing Ltd,962,
201910,2.0191E+11,R7006,North West Ambulance Service - Estates Management Collaboration,JJ Group (Contracting) Ltd,968.22,
201910,2.0191E+11,R2160,Unplanned Building Maintenance Environmental Services/Plumbing,Cumbria Mechanical Plumbing Ltd,2338,
201910,2.0191E+11,R2150,Unplanned Building Maintenance Electrics,JJ Group (Contracting) Ltd,730,
201910,2.0191E+11,R7006,North West Ambulance Service - Estates Management Collaboration,Cumbria Mechanical Plumbing Ltd,3665,
201910,2.0191E+11,R7006,North West Ambulance Service - Estates Management Collaboration,Cumbria Mechanical Plumbing Ltd,806,
201910,2.0191E+11,R2060,Unplanned Building Services Environmental Services/Plumbing,Cumbria Mechanical Plumbing Ltd,514.2,
201910,2.0191E+11,R2150,Unplanned Building Maintenance Electrics,Cumbria Mechanical Plumbing Ltd,1890,
201910,2.0191E+11,R2610,Estates Leases,Carlisle City Council,7750,
201910,2.0191E+11,R2460,Grounds Maintenance - Contract,S Nicholson Grounds Maintenance,750,
201910,2.0191E+11,R2610,Estates Leases,Solway Plain Futures Ltd,1898,
201910,2.0191E+11,R2730,Refuse,Amey PLC - Enterprise Managed Services Ltd,1248.8,
201910,2.0191E+11,R3120,Vehicle Maintenance - Parts Purchase,David Hayton Ltd,819.11,
201910,2.0191E+11,R7006,North West Ambulance Service - Estates Management Collaboration,John Sandelands Ltd,4910.97,
201910,2.0191E+11,R7006,North West Ambulance Service - Estates Management Collaboration,John Sandelands Ltd,637.79,
201910,2.0191E+11,C2830,Professional Fees,Baker Mallett LLP,827.24,
201910,2.0191E+11,C2830,Professional Fees,Tremorfa Ltd,47286,
201910,2.0191E+11,R3980,Vehicle Road Fund Licenses,Post Office Counters Ltd,1040,
201910,2.0191E+11,R3980,Vehicle Road Fund Licenses,Post Office Counters Ltd,770,
201910,2.0191E+11,R2680,PFI Occupancy Charges,West Cumbria Estates Management Limited,100965.33,
201910,2.0191E+11,R2680,PFI Occupancy Charges,West Cumbria Estates Management Limited,100965.33,
201910,2.0191E+11,R2500,Oil,Scottish Fuels,890.7,
201910,2.0191E+11,R2500,Oil,Scottish Fuels,5950,
201910,2.0191E+11,R3120,Vehicle Maintenance - Parts Purchase,Arnold Clark Automobiles Ltd,811.03,
201910,2.0191E+11,R2510,Electricity,British Gas Trading,5121.76,
201910,2.0191E+11,R3210,Police Vehicle Recovery & Transport,FMG Support (RRRM) Ltd,1670.5,
201910,2.0191E+11,R2730,Refuse,Biffa Waste Services Ltd,684.4,
201910,2.0191E+11,R2730,Refuse,Biffa Waste Services Ltd,557.5,
201910,2.0191E+11,R2730,Refuse,Biffa Waste Services Ltd,819.5,
201910,2.0191E+11,R2240,Planned Survey Safety Works,FTS Fire & Security Ltd,1552,
201910,2.0191E+11,R2610,Estates Leases,Dalton Community Association,1100,
201910,2.0191E+11,C3900,Vehicle Purchases - Capital,Rayrigg Motors,11687.7,
201910,2.0191E+11,C3900,Vehicle Purchases - Capital,Rayrigg Motors,11687.7,
201910,2.0191E+11,C3900,Vehicle Purchases - Capital,Rayrigg Motors,11687.7,
201910,2.0191E+11,C3900,Vehicle Purchases - Capital,Rayrigg Motors,11687.7,
201910,2.0191E+11,C3900,Vehicle Purchases - Capital,Rayrigg Motors,11687.7,
201910,2.0191E+11,C3900,Vehicle Purchases - Capital,Rayrigg Motors,11687.7,
201910,2.0191E+11,R2505,Gas,Flogas Britain Ltd,689.75,
201910,2.0191E+11,R2273,Planned Servicing Firearms - Bullet Trap etc,Aberswift De-Leading Specialists Limited,4920,
201910,2.0191E+11,R3420,Vehicle Other Supplements,Volkswagen Group UK Ltd,558.84,
201910,2.0191E+11,R3120,Vehicle Maintenance - Parts Purchase,Volkswagen Group UK Ltd,552.55,
201910,2.0191E+11,R2830,Professional Fees,DSSR Consulting Engineers,1360,
201910,2.0191E+11,R2740,Destruction of Confidential Waste,Shred-it (Europe) Ltd,923,
201910,2.0191E+11,R2610,Estates Leases,Ulverston Properties Ltd,861.66,
201910,2.0191E+11,R2610,Estates Leases,National Crime Agency (NCA),20000,
201910,2.0191E+11,R2510,Electricity,EDF Energy,5658,
201910,2.0191E+11,R2510,Electricity,EDF Energy,2951.24,
201910,2.0191E+11,R2510,Electricity,EDF Energy,16261.33,
201910,2.0191E+11,R2530,Climate Change Levy,EDF Energy,1045.36,
201910,2.0191E+11,R2510,Electricity,EDF Energy,10627.89,
201910,2.0191E+11,R2530,Climate Change Levy,EDF Energy,685.99,
201910,2.0191E+11,R3450,Accident Damage (Below Insurance Excess)),Enterprise Rent-a-car UK Limited,790.92,
201910,2.0191E+11,R2030,Unplanned Building Services Security & Security Equipment Maintenance,Dorma UK Ltd,612.16,
201910,2.0191E+11,R2277,Planned Servicing Water Chlorination,Water and air Management Limited,1700.73,
201910,2.0191E+11,R2277,Planned Servicing Water Chlorination,Water and air Management Limited,989.4,
201910,2.0191E+11,R2277,Planned Servicing Water Chlorination,Water and air Management Limited,3710.25,
201910,2.0191E+11,R7006,North West Ambulance Service - Estates Management Collaboration,Countrywide Grounds Maintenance Ltd,641.66,
201910,2.0191E+11,R3120,Vehicle Maintenance - Parts Purchase,Castrol (UK) Ltd,1072.36,
201910,2.0191E+11,R3120,Vehicle Maintenance - Parts Purchase,Lloyd Motors Ltd,530.5,
201910,2.0191E+11,R3120,Vehicle Maintenance - Parts Purchase,Lloyd Motors Ltd,544.9,
201910,2.0191E+11,R2286,Planned Servicing Generators/UPS,Burtonwood Generator & Switchgear Services Limited,547,
201910,2.0191E+11,R2505,Gas,Corona Energy,8276.73,
201910,2.0191E+11,R3510,Vehicle Fuel,Allstar Business Solutions Ltd,2220.63,
201910,2.0191E+11,R3510,Vehicle Fuel,Allstar Business Solutions Ltd,1307.87,
201910,2.0191E+11,R3510,Vehicle Fuel,Allstar Business Solutions Ltd,3731.66,
201910,2.0191E+11,R3510,Vehicle Fuel,Allstar Business Solutions Ltd,69628.04,
201910,2.0191E+11,R3510,Vehicle Fuel,Allstar Business Solutions Ltd,1263.66,
201910,2.0191E+11,R3510,Vehicle Fuel,Allstar Business Solutions Ltd,838.92,
201910,2.0191E+11,R3510,Vehicle Fuel,Allstar Business Solutions Ltd,1912.77,
201910,2.0191E+11,C3905,Vehicle Adaptations - Capital,RSG Engineering Ltd,941.21,
201910,2.0191E+11,R1610,CID Training,Jill Grant Psychology Services,879.1,
201910,2.0191E+11,R1630,Other Operational Training,Police and Crime Commissioner for Greater Manchester,4128.65,
201910,2.0191E+11,R1610,CID Training,Alex Preston - Solicitor,850,
201910,2.0191E+11,R1150,Gym Equipment - Purchase,Precor,550.12,
201910,2.0191E+11,R1152,Gym Equipment - Lease,Investec Asset Finance Plc,2199.89,
201910,2.0191E+11,R1152,Gym Equipment - Lease,Investec Asset Finance Plc,2121,
201910,2.0191E+11,R6660,Counsel Fees,Atlantic Chambers,546,
201910,2.0191E+11,B4003,Redacted: Disclosure of information would breach the Data Protection Act 1998 ,Redacted: Disclosure of information would breach the Data Protection Act 1998 ,588,
201910,2.0191E+11,R6660,Counsel Fees,Trinity Chambers (Newcastle-upon-Tyne),600,
201910,2.0191E+11,R6660,Counsel Fees,Trinity Chambers (Newcastle-upon-Tyne),2604,
201910,2.0191E+11,B4003,Redacted: Disclosure of information would breach the Data Protection Act 1998 ,Redacted: Disclosure of information would breach the Data Protection Act 1998 ,2200,
201910,2.0191E+11,B4003,Redacted: Disclosure of information would breach the Data Protection Act 1998 ,Redacted: Disclosure of information would breach the Data Protection Act 1998 ,4000,
201910,2.0191E+11,R6644,Redacted: Disclosure of information would breach the Data Protection Act 1998 ,Redacted: Disclosure of information would breach the Data Protection Act 1998 ,600,
201910,2.0191E+11,B4006,Provision for Insurance Liabilities - Drawdown from Provision - Own Counsel's Costs,5 Essex Court,3060,
201910,2.0191E+11,B4006,Provision for Insurance Liabilities - Drawdown from Provision - Own Counsel's Costs,5 Essex Court,912,
201910,2.0191E+11,B4006,Provision for Insurance Liabilities - Drawdown from Provision - Own Counsel's Costs,Outer Temple Chambers,2374.32,
201910,2.0191E+11,R7290,Other Third Party Payments,Police and Crime Commissioner for West Midlands,34989,
201910,2.0191E+11,Z2114,Police Property Act Fund - Transactions Money Out (Total Expenditure),Harraby Catholic Club Youth Football,1806,
201910,2.0191E+11,Z2114,Police Property Act Fund - Transactions Money Out (Total Expenditure),Green Door Centre,1000,
201910,2.0191E+11,Z2114,Police Property Act Fund - Transactions Money Out (Total Expenditure),Penrith AFC Juniors,2500,
201910,2.0191E+11,Z2114,Police Property Act Fund - Transactions Money Out (Total Expenditure),Plumpton Community Play Area Project,2500,
201910,2.0191E+11,Z2123,Returned Payments - Clearance in the Year (Expenditure),Allerdale Girls Football Club,2500,
201910,2.0191E+11,Z2123,Returned Payments - Clearance in the Year (Expenditure),Allerdale Girls Football Club,2500,
201910,2.0191E+11,Z2123,Returned Payments - Clearance in the Year (Expenditure),Allerdale Girls Football Club,2500,
201910,2.0191E+11,R6757,Consultants Fees - Finance,Government Actuary's Department,5699.89,
201910,2.0191E+11,R6824,NatWest Corporate Card Payments,Natwest Corporate Card,8099.87,
201910,2.0191E+11,R6824,NatWest Corporate Card Payments,Natwest Corporate Card,2379.97,
201910,2.0191E+11,R6830,External Audit Fee,Grant Thornton UK LLP,2888,
201910,2.0191E+11,R7042,Pension Services,XPS Administration Limited T/A XPS Administration,8396,
201910,2.0191E+11,R6710,Subscriptions,Reed Business Information,4095,
201910,2.0191E+11,R7290,Other Third Party Payments,Tellemachus Limited,22163.11,
201910,2.0191E+11,R5950,Redacted: Disclosure of information would breach the Data Protection Act 1998 ,Redacted: Disclosure of information would breach the Data Protection Act 1998 ,528.65,
201910,2.0191E+11,R5835,Operational Equipment - Testing Kits & Consumables,Scenesafe Previously (WA Products (UK) Ltd),620.64,
201910,2.0191E+11,R4845,Redacted: The information relates to the protection of vulnerable adults or children ,Redacted: The information relates to the protection of vulnerable adults or children ,2905,
201910,2.0191E+11,R4710,Forensic Analysis - Serious Crime,Key Forensic Services Ltd (Orange UK Holdings Ltd),1025.55,
201910,2.0191E+11,R4715,Forensic Analysis - Volume Crime,Key Forensic Services Ltd (Orange UK Holdings Ltd),2573.7,
201910,2.0191E+11,R4705,Forensic Analysis - Over Prescribed Limit,Key Forensic Services Ltd (Orange UK Holdings Ltd),1297.03,
201910,2.0191E+11,R4705,Forensic Analysis - Over Prescribed Limit,Key Forensic Services Ltd (Orange UK Holdings Ltd),1123.03,
201910,2.0191E+11,R4715,Forensic Analysis - Volume Crime,Key Forensic Services Ltd (Orange UK Holdings Ltd),719.2,
201910,2.0191E+11,R4715,Forensic Analysis - Volume Crime,Key Forensic Services Ltd (Orange UK Holdings Ltd),1080.25,
201910,2.0191E+11,R4710,Forensic Analysis - Serious Crime,Key Forensic Services Ltd (Orange UK Holdings Ltd),3004.9,
201910,2.0191E+11,R4715,Forensic Analysis - Volume Crime,Key Forensic Services Ltd (Orange UK Holdings Ltd),527.8,
201910,2.0191E+11,R4715,Forensic Analysis - Volume Crime,Key Forensic Services Ltd (Orange UK Holdings Ltd),625.8,
201910,2.0191E+11,R4710,Forensic Analysis - Serious Crime,Key Forensic Services Ltd (Orange UK Holdings Ltd),2262,
201910,2.0191E+11,R4710,Forensic Analysis - Serious Crime,Key Forensic Services Ltd (Orange UK Holdings Ltd),1788.72,
201910,2.0191E+11,R4705,Forensic Analysis - Over Prescribed Limit,Key Forensic Services Ltd (Orange UK Holdings Ltd),1289.06,
201910,2.0191E+11,R4705,Forensic Analysis - Over Prescribed Limit,Key Forensic Services Ltd (Orange UK Holdings Ltd),2297.53,
201910,2.0191E+11,R4705,Forensic Analysis - Over Prescribed Limit,Key Forensic Services Ltd (Orange UK Holdings Ltd),870,
201910,2.0191E+11,R5950,Redacted: Disclosure of information would breach the Data Protection Act 1998 ,Redacted: Disclosure of information would breach the Data Protection Act 1998 ,672.75,
201910,2.0191E+11,R5950,Redacted: Disclosure of information would breach the Data Protection Act 1998 ,Redacted: Disclosure of information would breach the Data Protection Act 1998 ,1246.44,
201910,2.0191E+11,R5950,Redacted: Disclosure of information would breach the Data Protection Act 1998 ,Redacted: Disclosure of information would breach the Data Protection Act 1998 ,822.05,
201910,2.0191E+11,R5950,Redacted: Disclosure of information would breach the Data Protection Act 1998 ,Redacted: Disclosure of information would breach the Data Protection Act 1998 ,903.47,
201910,2.0191E+11,R4710,Forensic Analysis - Serious Crime,Cellebrite Uk Ltd,1800,
201910,2.0191E+11,R5950,Redacted: Disclosure of information would breach the Data Protection Act 1998 ,Redacted: Disclosure of information would breach the Data Protection Act 1998 ,536.42,
201910,2.0191E+11,R5950,Redacted: Disclosure of information would breach the Data Protection Act 1998 ,Redacted: Disclosure of information would breach the Data Protection Act 1998 ,921.1,
201910,2.0191E+11,R5950,Redacted: Disclosure of information would breach the Data Protection Act 1998 ,Redacted: Disclosure of information would breach the Data Protection Act 1998 ,740.78,
201910,2.0191E+11,R5940,Redacted: The information is confidential or would attract an exemption under the Freedom of Information Act e.g. where disclosure could be prejudicial to the commercial interests of any person including the authority ,Redacted: The information is confidential or would attract an exemption under the Freedom of Information Act e.g. where disclosure could be prejudicial to the commercial interests of any person including the authority ,7200,
201910,2.0191E+11,R1720,Other Support Function Training,Insight Direct (UK) Ltd,3289,
201910,2.0191E+11,R1630,Other Operational Training,Police and Crime Commissioner for Kent,1000,
201910,2.0191E+11,R5940,Redacted: The information is confidential or would attract an exemption under the Freedom of Information Act e.g. where disclosure could be prejudicial to the commercial interests of any person including the authority ,Redacted: The information is confidential or would attract an exemption under the Freedom of Information Act e.g. where disclosure could be prejudicial to the commercial interests of any person including the authority ,1660.68,
201910,2.0191E+11,R4705,Forensic Analysis - Over Prescribed Limit,Orchid Cellmark Ltd,870,
201910,2.0191E+11,R4715,Forensic Analysis - Volume Crime,Orchid Cellmark Ltd,649.6,
201910,2.0191E+11,R4845,Redacted: Disclosure of information would breach the Data Protection Act 1998 ,Redacted: Disclosure of information would breach the Data Protection Act 1998 ,2698.02,
201910,2.0191E+11,R4845,Redacted: Disclosure of information would breach the Data Protection Act 1998 ,Redacted: Disclosure of information would breach the Data Protection Act 1998 ,2798.02,
201910,2.0191E+11,R4845,Redacted: Disclosure of information would breach the Data Protection Act 1998 ,Redacted: Disclosure of information would breach the Data Protection Act 1998 ,2945.04,
201910,2.0191E+11,R4845,Redacted: Disclosure of information would breach the Data Protection Act 1998 ,Redacted: Disclosure of information would breach the Data Protection Act 1998 ,2200,
201910,2.0191E+11,R4780,CSI Consumables,Acota Limited,4825.88,
201910,2.0191E+11,R4845,Expert Witness Testimony / Reports,Acuity Forensic Limited,3600,
201910,2.0191E+11,R4720,Forensic Analysis - PACE / DNA,Eurofins Forensic Services Ltd,1938.36,
201910,2.0191E+11,R4720,Forensic Analysis - PACE / DNA,Eurofins Forensic Services Ltd,1687.71,
201910,2.0191E+11,R6750,Consultants Fees - Other,United Kingdom Accreditation Service (UKAS),9393.25,
201910,2.0191E+11,R6750,Consultants Fees - Other,United Kingdom Accreditation Service (UKAS),919,
201910,2.0191E+11,R1610,CID Training,Institute for Collaborative Working,2500,
201910,2.0191E+11,R5867,Operational Equipment - Maintenance,Foster & Freeman Ltd,2815.33,
201910,2.0191E+11,R1090,Other Recruitment Costs,Spring Technology Staffing Services (STSS),5065.65,
201910,2.0191E+11,R1090,Other Recruitment Costs,Spring Technology Staffing Services (STSS),5478.75,
201910,2.0191E+11,R1340,Added Years Qtrly - LGPS,Cumbria County Council,16192.98,
201910,2.0191E+11,R1110,Redacted: The information is confirdential or would attract an exemption under the Freedom of Information Act e.g. where disclosure could be prejudicial to the commercial interests of any person including the authority,Redacted: The information is confirdential or would attract an exemption under the Freedom of Information Act e.g. where disclosure could be prejudicial to the commercial interests of any person including the authority,1150,
201910,2.0191E+11,R1110,Redacted: The information is confirdential or would attract an exemption under the Freedom of Information Act e.g. where disclosure could be prejudicial to the commercial interests of any person including the authority,Redacted: The information is confirdential or would attract an exemption under the Freedom of Information Act e.g. where disclosure could be prejudicial to the commercial interests of any person including the authority,575,
201910,2.0191E+11,R0500,Agency Staff,Comensura Ltd,1032.8,
201910,2.0191E+11,R0500,Agency Staff,Comensura Ltd,1922.31,
201910,2.0191E+11,R0500,Agency Staff,Comensura Ltd,526.49,
201910,2.0191E+11,R0500,Agency Staff,Comensura Ltd,2264.05,
201910,2.0191E+11,R0500,Agency Staff,Comensura Ltd,1032.8,
201910,2.0191E+11,R0500,Agency Staff,Comensura Ltd,1855.07,
201910,2.0191E+11,R0500,Agency Staff,Comensura Ltd,1213.54,
201910,2.0191E+11,R0500,Agency Staff,Comensura Ltd,1788.43,
201910,2.0191E+11,R0500,Agency Staff,Comensura Ltd,549,
201910,2.0191E+11,R0500,Agency Staff,Comensura Ltd,1811.24,
201910,2.0191E+11,R1110,Force Doctor Fees,Comensura Ltd,1377.33,
201910,2.0191E+11,R0500,Agency Staff,Comensura Ltd,1131.61,
201910,2.0191E+11,R0500,Agency Staff,Comensura Ltd,2264.05,
201910,2.0191E+11,R0500,Agency Staff,Comensura Ltd,1088.84,
201910,2.0191E+11,R0500,Agency Staff,Comensura Ltd,1559.29,
201910,2.0191E+11,R0500,Agency Staff,Comensura Ltd,2264.05,
201910,2.0191E+11,R0500,Agency Staff,Comensura Ltd,1116.05,
201910,2.0191E+11,R0500,Agency Staff,Comensura Ltd,766.87,
201910,2.0191E+11,R0500,Agency Staff,Comensura Ltd,526.49,
201910,2.0191E+11,R0500,Agency Staff,Comensura Ltd,2264.05,
201910,2.0191E+11,R1110,Force Doctor Fees,Comensura Ltd,1151.63,
201910,2.0191E+11,R1132,Immunisations & Vaccinations,Library House Surgery,839,
201910,2.0191E+11,R1610,CID Training,College of Policing (NPIA),1547.52,
201910,2.0191E+11,R5912,Police Dogs - Feed,Royal Canin (Crown Pet Foods Ltd),1508.15,
201910,2.0191E+11,R4630,Detained Persons - Appropriate Adult Services,Child Action North West,11291.28,
201910,2.0191E+11,R6780,Grants & Donations,National Association of Police Officers (NARPO),600,
201910,2.0191E+11,R5916,Police Dogs - Vets Fees,Frame & Swift,679.11,
201910,2.0191E+11,R5916,Police Dogs - Vets Fees,Frame & Swift,1978.13,
201910,2.0191E+11,R4625,Detained Persons - Laundry,Shortridge Laundry,612.81,
201910,2.0191E+11,R4625,Detained Persons - Laundry,Shortridge Laundry,540.21,
201910,2.0191E+11,R4900,Custody Medical Contract,G4S Health Services (UK) Ltd,107330.2,
201910,2.0191E+11,R4625,Detained Persons - Laundry,Shortridge Laundry,1232.87,
201910,2.0191E+11,R6610,Vehicle Recovery Costs,FMG Support (RRRM) Ltd,1100,
201910,2.0191E+11,R6610,Vehicle Recovery Costs,FMG Support (RRRM) Ltd,1419,
201910,2.0191E+11,R5980,Firearms Equipment,Civil Defence Supply Limited,2549.96,
201910,2.0191E+11,R1720,Other Support Function Training,Insight Direct (UK) Ltd,1196,
201910,2.0191E+11,R5865,Operational Equipment - Other,BOC Gases,521,
201910,2.0191E+11,R7002,Mutual Aid,Police and Crime Commissioner for Kent,2918.02,
201910,2.0191E+11,R4600,Detained Persons - Meals / Refreshments,Bidfood,574.18,
201910,2.0191E+11,R5760,Operational Equipment - TASER,Axon Public Safety UK Limited,930,
201910,2.0191E+11,C5790,Operational Equipment - Audio / Video Equipment,Axon Public Safety UK Limited,10000,
201910,2.0191E+11,R5980,Firearms Equipment,Accuracy International,558.12,
201910,2.0191E+11,R1630,Other Operational Training,The Atacc Group (Promedsol),3960,
201910,2.0191E+11,R1720,Other Support Function Training,The Atacc Group (Promedsol),1320,
201910,2.0191E+11,R5865,Operational Equipment - Other,S P Services (UK) Ltd,-1500,
201910,2.0191E+11,R4940,First Aid Equipment / Consumables,S P Services (UK) Ltd,1988.7,
201910,2.0191E+11,R7295,Contribution to NPAS,Police and Crime Commissioner for West Yorkshire,4572,
201910,2.0191E+11,R5965,Crime Prevention - Labour Costs / Fitting,Mark Tubman (Locksmith & Joinery),550,
201910,2.0191E+11,R5965,Crime Prevention - Labour Costs / Fitting,Solon Security Limited,1350,
201910,2.0191E+11,R5960,Community Initiatives - Activities & Competitions,Onside Sports Development,750,
201910,2.0191E+11,R5965,Crime Prevention - Labour Costs / Fitting,City Electrical Factors,920,
201910,2.0191E+11,R6785,Contributions - PCC Commissioning Services,Cumbria Gateway,9544,
201910,2.0191E+11,R6785,Contributions - PCC Commissioning Services,Carlisle and District Youthwork Partnership,2850,
201910,2.0191E+11,R4922,SARC Counselling Services,Safety Net (UK) - Advice & Support Centre,33306.25,
201910,2.0191E+11,R5730,Other Allowances,Legally Qualified Chair,525,
201910,2.0191E+11,R6730,Non-Staff Advertising,The Ink Events Company,1100,
201910,2.0191E+11,R6785,Contributions - PCC Commissioning Services,Cumbria Partnership NHS Foundation Trust,42000,
201910,2.0191E+11,R4920,SARC Doctors,G4S Health Services (UK) Ltd,19172.42,
201910,2.0191E+11,R6780,Grants & Donations,Brake,2500,
201910,2.0191E+11,R6785,Contributions - PCC Commissioning Services,Resource Creatives Enterprises Ltd,1384.88,
201910,2.0191E+11,R6785,Contributions - PCC Commissioning Services,South Lakeland District Council,50000,
201910,2.0191E+11,R6785,Contributions - PCC Commissioning Services,Women's Community Matters,3591.17,
201910,2.0191E+11,R6785,Contributions - PCC Commissioning Services,Women's Community Matters,10088.76,
201910,2.0191E+11,R0500,Agency Staff,Comensura Ltd,807.77,
201910,2.0191E+11,R6785,Contributions - PCC Commissioning Services,Leaders Unlocked Limited,8293,
201910,2.0191E+11,R6830,External Audit Fee,Grant Thornton UK LLP,5840,
201910,2.0191E+11,R6730,Non-Staff Advertising,Newsquest Media Group,600,
201910,2.0191E+11,R6785,Contributions - PCC Commissioning Services,Restorative Solutions CIC,11250,
201910,2.0191E+11,R6785,Contributions - PCC Commissioning Services,Remedi-Restorative Services,9041.67,
201910,2.0191E+11,R6785,Contributions - PCC Commissioning Services,Remedi-Restorative Services,2600,
201910,2.0191E+11,R6785,Contributions - PCC Commissioning Services,Remedi-Restorative Services,2600,
201910,2.0191E+11,R6785,Contributions - PCC Commissioning Services,Remedi-Restorative Services,9041.67,
201910,2.0191E+11,R1710,ICT Training,SailPoint Technologies Inc,1610,
201910,2.0191E+11,R1710,ICT Training,SailPoint Technologies Inc,966,
201910,2.0191E+11,C6755,Consultants Fees - ICT,EE Limited,2400,
201910,2.0191E+11,R5320,Computer Software - Purchase,SCC (Specialist Computer Centre),661.71,
201910,2.0191E+11,R5325,Computer Software - Maintenance,SCC (Specialist Computer Centre),3615.13,
201910,2.0191E+11,R5325,Computer Software - Maintenance,Capita Secure Information Solutions Ltd,5523.9,
201910,2.0191E+11,R5325,Computer Software - Maintenance,Altia Solutions Ltd,2560,
201910,2.0191E+11,R1710,ICT Training,QA Training Ltd,5302,
201910,2.0191E+11,R1710,ICT Training,QA Training Ltd,6526,
201910,2.0191E+11,R1710,ICT Training,QA Training Ltd,5888,
201910,2.0191E+11,C6755,Consultants Fees - ICT,NCC Group Security Services Limited,6050,
201910,2.0191E+11,R5325,Computer Software - Maintenance,NCC Group Security Services Limited,1821.77,
201910,2.0191E+11,C5310,Computer Hardware - Purchase,Softcat PLC,1452.01,
201910,2.0191E+11,R5325,Computer Software - Maintenance,Softcat PLC,41518.6,
201910,2.0191E+11,C5120,Networks Private Circuits,Insight Direct (UK) Ltd,950,
201910,2.0191E+11,R5120,Networks Private Circuits,Insight Direct (UK) Ltd,2858.75,
201910,2.0191E+11,R5120,Networks Private Circuits,Insight Direct (UK) Ltd,3771.63,
201910,2.0191E+11,R5120,Networks Private Circuits,Vodafone Limited,11876.21,
201910,2.0191E+11,R5120,Networks Private Circuits,Vodafone Limited,3958.16,
201910,2.0191E+11,R5120,Networks Private Circuits,Vodafone Limited,11876.21,
201910,2.0191E+11,R5315,Computer Hardware - Maintenance,Specialised Equipment Cleaning,685,
201910,2.0191E+11,R5010,Telephone Charges - Landlines,TalkTalk,2536.25,
201910,2.0191E+11,R5325,Computer Software - Maintenance,Nevis Systems Ltd,2009.61,
201910,2.0191E+11,C5320,Computer Software - Purchase,MHR International UK LTD,4000,
201910,2.0191E+11,R5320,Computer Software - Purchase,MHR International UK LTD,1002.74,
201910,2.0191E+11,R5320,Computer Software - Purchase,Axon Public Safety UK Limited,3875,
201910,2.0191E+11,R5120,Networks Private Circuits,Vodafone Limited,1776,
201910,2.0191E+11,R5325,Computer Software - Maintenance,Fortrus Limited,17496,
201910,2.0191E+11,R5215,Radio / Airwave Equipment - Maintenance,Airwave Solutions Limited (Subsidiary:- Kelvin Connect),74068.24,
201910,2.0191E+11,R5315,Computer Hardware - Maintenance,Stone Computers Ltd,784,
201910,2.0191E+11,R5325,Computer Software - Maintenance,Unisys Ltd,19396,
201910,2.0191E+11,R5325,Computer Software - Maintenance,Version 1 Solutions Limited,3908.63,
201910,2.0191E+11,R5345,Computer & Printer Consumables,Xerox UK Ltd,622.62,
201910,2.0191E+11,C6755,Consultants Fees - ICT,Finyx Consulting Limited,18500,
201910,2.0191E+11,R5630,Courier Services - Internal Deliveries,Cumbria County Council,3025.77,
201910,2.0191E+11,R4090,Redacted: The information is confidential or would attract an exemption under the Freedom of Information Act e.g. where disclosure could be prejudicial to the commercial interests of any person including the authority,Redacted: The information is confidential or would attract an exemption under the Freedom of Information Act e.g. where disclosure could be prejudicial to the commercial interests of any person including the authority,877.41,
201910,2.0191E+11,R4090,Redacted: The information is confidential or would attract an exemption under the Freedom of Information Act e.g. where disclosure could be prejudicial to the commercial interests of any person including the authority,Redacted: The information is confidential or would attract an exemption under the Freedom of Information Act e.g. where disclosure could be prejudicial to the commercial interests of any person including the authority,594.63,
201910,2.0191E+11,R4090,Redacted: The information is confidential or would attract an exemption under the Freedom of Information Act e.g. where disclosure could be prejudicial to the commercial interests of any person including the authority,Redacted: The information is confidential or would attract an exemption under the Freedom of Information Act e.g. where disclosure could be prejudicial to the commercial interests of any person including the authority,617.4,
201910,2.0191E+11,R6850,Hotel Accommodation - Training,Capita Travel and Events,800,
201910,2.0191E+11,R6850,Hotel Accommodation - Training,Capita Travel and Events,1000,
201910,2.0191E+11,R6850,Hotel Accommodation - Training,Capita Travel and Events,845,
201910,2.0191E+11,R6850,Hotel Accommodation - Training,Capita Travel and Events,550,
201910,2.0191E+11,R6840,Hotel Accommodation,Capita Travel and Events,500.5,
201910,2.0191E+11,R3745,Travel - Public Transport,Capita Travel and Events,564.07,
201910,2.0191E+11,R3745,Travel - Public Transport,Capita Travel and Events,1417.03,
201910,2.0191E+11,R6850,Hotel Accommodation - Training,Capita Travel and Events,1584,
201910,2.0191E+11,R3745,Travel - Public Transport,Capita Travel and Events,759.21,
201910,2.0191E+11,R6850,Hotel Accommodation - Training,Capita Travel and Events,550,
201910,2.0191E+11,R6850,Hotel Accommodation - Training,Capita Travel and Events,513.33,
201910,2.0191E+11,R6850,Hotel Accommodation - Training,Capita Travel and Events,2250,
201910,2.0191E+11,R6840,Hotel Accommodation,Capita Travel and Events,801.2,
201910,2.0191E+11,R6840,Hotel Accommodation,Capita Travel and Events,690,
201910,2.0191E+11,R6850,Hotel Accommodation - Training,Capita Travel and Events,1360,
201910,2.0191E+11,R6850,Hotel Accommodation - Training,Capita Travel and Events,1060,
201910,2.0191E+11,R6850,Hotel Accommodation - Training,Capita Travel and Events,2496,
201910,2.0191E+11,R6850,Hotel Accommodation - Training,Capita Travel and Events,4154.51,
201910,2.0191E+11,R6850,Hotel Accommodation - Training,Capita Travel and Events,545,
201910,2.0191E+11,R3605,Vehicle Hire - Training,Enterprise Rent-a-car UK Limited,566.82,
201910,2.0191E+11,R6840,Hotel Accommodation,Newton Rigg College [part of Askham Bryan],1152,
201910,2.0191E+11,R3745,Travel - Public Transport,Capita Travel and Events,574.4,
201910,2.0191E+11,R7090,Other Collaboration Payments,Cumbria County Council,3623,
201910,2.0191E+11,R1710,ICT Training,Blue Light Digital Ltd,6300,
201911,2.01911E+11,R5600,Postage Costs,Royal Mail,1083.87,
201911,2.01911E+11,R5600,Postage Costs,Royal Mail,918.11,
201911,2.01911E+11,R2600,Rent,Reed Rains,750,
201911,2.01911E+11,R3660,Redacted: The information is confidential or would attract an exemption under the Freedom of Information Act e.g. where disclosure could be prejudicial to the commercial interests of any person including the authority ,Redacted: The information is confidential or would attract an exemption under the Freedom of Information Act e.g. where disclosure could be prejudicial to the commercial interests of any person including the authority ,2234.5,
201911,2.01911E+11,B2302,Inventories/Stocks - General / Admin Equipment - Purchases,Arrow County Supplies,1072.93,
201911,2.01911E+11,B2302,Inventories/Stocks - General / Admin Equipment - Purchases,Arrow County Supplies,1030.34,
201911,2.01911E+11,B2312,Inventories/Stocks - Uniforms - Purchases,Needle Sports,833.14,
201911,2.01911E+11,R4400,Books & Publications,Hills Books,3570,
